Workbook

Sheet Infos
A1: Presentation of the eco-fee code generator – 2025
A6: Create codes for application of the eco-fee to DIY and Gardening Products
A7: Version 2.2 - 01 June 2025
A8: Update of applicable prices as of 1 January 2025 Addition of eco-modulated codes and simplified codification for 2025
A10: Who is this tool intended for?
A11: This tool is intended for marketers of DIY and Gardening Products.
A13: What is it for?
A14: This file allows you to generate the product codes used to declare information linked to placing products on the market. These product codes make it possible to apply the eco-fee rate to DIY and Gardening Products, according to their characteristics.
A15: To understand how this 11-digit product code is composed, click on the "Understanding the coding system" tab.
A17: How do you generate a product code?
A18: To generate a product code, click on the "Product code generator" tab.
A19: Please note: To be sure of entering the correct codes when submitting your declaration, use the "Product code generator" tab and the copy-paste function, selecting "Paste absolute value".
A21: Declaring eco-fees
A23: When should you issue your declaration?
A24: Quarterly declarations must be issued in the month after each calendar quarter (April for Q1, July for Q2, October for Q3, and January for Q4).
A25: Annual declarations must be issued in the in January Y+1.
A26: If you declare eco-modulated codes that give rise to an incorporation premium, additional proof may be required. Refer to the Eco-modulation guide to help fill out the declaration.
A28: How do you issue your declaration (with product codes)?
A29: The declaration of products placed on the market with product codes is issued via data input or by uploading a file* in .csv format to the Extranet: https://espace-services.ecomaison.com/ *You can download the standard file from the Declarations area.
A32: > To find out how to issue your declaration, consult the complete operating procedures:
A33: https://espace-services.ecomaison.com/mode-operatoire-declarer

Sheet Scope
B1: =MID(CELL("filename",A1),FIND("]",CELL("filename",A1))+1,256) -> Scope
B4: DIY AND GARDENING PRODUCTS | E4: FOR INFORMATION PURPOSES - CERTIFICATION UNDERWAY (end 2027)
B6: DIY products
B8: 100 | C8: Hand tools and their accessories
C10: Department | D10: Category | E10: Examples of products (non-exhaustive)
C11: =$B$6 -> DIY products | D11: =$C$8 -> Hand tools and their accessories | E11: abrasives in sheets, rolls, etc.
C12: DIY products | D12: =$C$8 -> Hand tools and their accessories | E12: staplers
C13: DIY products | D13: =$C$8 -> Hand tools and their accessories | E13: batten pullers
C14: DIY products | D14: =$C$8 -> Hand tools and their accessories | E14: sanding belts
C15: DIY products | D15: Hand tools and their accessories | E15: digging bars
C16: DIY products | D16: Hand tools and their accessories | E16: excavation bars
C17: DIY products | D17: Hand tools and their accessories | E17: crosscut chisels
C18: DIY products | D18: Hand tools and their accessories | E18: mitre boxes and saws
C19: DIY products | D19: Hand tools and their accessories | E19: cold chisels
C20: DIY products | D20: Hand tools and their accessories | E20: sanding blocks
C21: DIY products | D21: Hand tools and their accessories | E21: wooden pegs
C22: DIY products | D22: =$C$8 -> Hand tools and their accessories | E22: chisels
C23: DIY products | D23: =$C$8 -> Hand tools and their accessories | E23: wood chisels
C24: DIY products | D24: Hand tools and their accessories | E24: brick chisels
C25: DIY products | D25: Hand tools and their accessories | E25: adjustable wrenches
C26: =$B$6 -> DIY products | D26: =$C$8 -> Hand tools and their accessories | E26: pipe wrenches
C27: DIY products | D27: Hand tools and their accessories | E27: various wrenches
C28: DIY products | D28: Hand tools and their accessories | E28: torque wrenches
C29: DIY products | D29: Hand tools and their accessories | E29: combination wrenches
C30: DIY products | D30: Hand tools and their accessories | E30: stillson spanners
C31: DIY products | D31: Hand tools and their accessories | E31: ratchets
C32: DIY products | D32: Hand tools and their accessories | E32: tube cutters
C33: DIY products | D33: Hand tools and their accessories | E33: knives
C34: DIY products | D34: Hand tools and their accessories | E34: asphalt cutters
C35: DIY products | D35: Hand tools and their accessories | E35: putty knives
C36: DIY products | D36: Hand tools and their accessories | E36: DIY knives / pocket knives
C37: DIY products | D37: Hand tools and their accessories | E37: Stanley knives
C38: DIY products | D38: Hand tools and their accessories | E38: lamp sockets
C39: DIY products | D39: Hand tools and their accessories | E39: screwdriver bits
C40: DIY products | D40: Hand tools and their accessories | E40: punches
C41: DIY products | D41: Hand tools and their accessories | E41: abrasive sponges
C42: DIY products | D42: =$C$8 -> Hand tools and their accessories | E42: DIY sponges
C43: DIY products | D43: =$C$8 -> Hand tools and their accessories | E43: set squares
C44: DIY products | D44: =$C$8 -> Hand tools and their accessories | E44: struts
C45: DIY products | D45: =$C$8 -> Hand tools and their accessories | E45: waterproof seals
C46: DIY products | D46: Hand tools and their accessories | E46: extractors and seal smoothing tools
C47: DIY products | D47: =$C$8 -> Hand tools and their accessories | E47: plumb lines
C48: DIY products | D48: =$C$8 -> Hand tools and their accessories | E48: scrapers
C49: DIY products | D49: =$C$8 -> Hand tools and their accessories | E49: concrete scrapers
C50: DIY products | D50: =$C$8 -> Hand tools and their accessories | E50: bending bars
C51: DIY products | D51: Hand tools and their accessories | E51: zinc scribers
C52: DIY products | D52: Hand tools and their accessories | E52: blades
C53: DIY products | D53: Hand tools and their accessories | E53: saw blades
C54: DIY products | D54: Hand tools and their accessories | E54: files and precision files
C55: DIY products | D55: Hand tools and their accessories | E55: seal smoothing tools
C56: DIY products | D56: Hand tools and their accessories | E56: crimping pliers
C57: DIY products | D57: Hand tools and their accessories | E57: mallets
C58: DIY products | D58: Hand tools and their accessories | E58: paving mallets
C59: DIY products | D59: Hand tools and their accessories | E59: hammers
C60: DIY products | D60: Hand tools and their accessories | E60: paving hammers
C61: DIY products | D61: Hand tools and their accessories | E61: sledgehammers
C62: DIY products | D62: =$C$8 -> Hand tools and their accessories | E62: two-handed hammer
C63: DIY products | D63: Hand tools and their accessories | E63: precision measuring tools
C64: DIY products | D64: Hand tools and their accessories | E64: measuring tapes
C65: DIY products | D65: Hand tools and their accessories | E65: metrology tools
C66: DIY products | D66: Hand tools and their accessories | E66: spirit levels
C67: DIY products | D67: Hand tools and their accessories | E67: levels
C68: DIY products | D68: Hand tools and their accessories | E68: water supply tools
C69: DIY products | D69: Hand tools and their accessories | E69: fountain tools
C70: DIY products | D70: Hand tools and their accessories | E70: electrician tools
C71: DIY products | D71: Hand tools and their accessories | E71: roofer tools
C72: DIY products | D72: Hand tools and their accessories | E72: mason tools
C73: DIY products | D73: Hand tools and their accessories | E73: woodworking tools
C74: DIY products | D74: Hand tools and their accessories | E74: special plasterer/drywaller tools
C75: DIY products | D75: Hand tools and their accessories | E75: measuring and tracing tools
C76: DIY products | D76: Hand tools and their accessories | E76: plumber tools
C77: DIY products | D77: Hand tools and their accessories | E77: tiler tools and accessories
C78: DIY products | D78: Hand tools and their accessories | E78: sealing tools
C79: DIY products | D79: Hand tools and their accessories | E79: pry bars
C80: DIY products | D80: Hand tools and their accessories | E80: crowbars
C81: DIY products | D81: Hand tools and their accessories | E81: pliers
C82: DIY products | D82: Hand tools and their accessories | E82: needle nose pliers
C83: DIY products | D83: Hand tools and their accessories | E83: hook bars
C84: DIY products | D84: Hand tools and their accessories | E84: crimping pliers
C85: DIY products | D85: Hand tools and their accessories | E85: bolt cutters
C86: DIY products | D86: Hand tools and their accessories | E86: tile pincers
C87: DIY products | D87: Hand tools and their accessories | E87: bolt croppers
C88: =$B$6 -> DIY products | D88: Hand tools and their accessories | E88: riveters
C89: DIY products | D89: Hand tools and their accessories | E89: pickaxes / excavation picks
C90: DIY products | D90: Hand tools and their accessories | E90: excavation picks
C91: DIY products | D91: =$C$8 -> Hand tools and their accessories | E91: cartridge guns
C92: DIY products | D92: Hand tools and their accessories | E92: glue guns
C93: DIY products | D93: Hand tools and their accessories | E93: caulking guns
C94: DIY products | D94: Hand tools and their accessories | E94: scribers
C95: DIY products | D95: Hand tools and their accessories | E95: centre punches
C96: DIY products | D96: Hand tools and their accessories | E96: stone chisels
C97: DIY products | D97: Hand tools and their accessories | E97: tacks
C98: DIY products | D98: Hand tools and their accessories | E98: presses
C99: DIY products | D99: Hand tools and their accessories | E99: planes
C100: DIY products | D100: Hand tools and their accessories | E100: rasps
C101: DIY products | D101: Hand tools and their accessories | E101: DIY rules
C102: DIY products | D102: Hand tools and their accessories | E102: aluminium rules
C103: DIY products | D103: Hand tools and their accessories | E103: paring chisels
C104: DIY products | D104: Hand tools and their accessories | E104: wood saws
C105: DIY products | D105: Hand tools and their accessories | E105: hacksaws
C106: =$B$6 -> DIY products | D106: =$C$8 -> Hand tools and their accessories | E106: clamps
C107: =$B$6 -> DIY products | D107: =$C$8 -> Hand tools and their accessories | E107: compressed air-blowers
C108: DIY products | D108: Hand tools and their accessories | E108: floats
C109: =$B$6 -> DIY products | D109: =$C$8 -> Hand tools and their accessories | E109: sifters
C110: =$B$6 -> DIY products | D110: =$C$8 -> Hand tools and their accessories | E110: pincers
C111: =$B$6 -> DIY products | D111: =$C$8 -> Hand tools and their accessories | E111: screwdrivers
C112: DIY products | D112: Hand tools and their accessories | E112: tracing and topography tools
C113: =$B$6 -> DIY products | D113: =$C$8 -> Hand tools and their accessories | E113: sawhorses
C114: DIY products | D114: Hand tools and their accessories | E114: Trowel
C115: DIY products | D115: Hand tools and their accessories | E115: marking gauges
B118: 101 | C118: Large non-electric, non-combustion items and machines, and their accessories
C120: Department | D120: Category | E120: Examples of products (non-exhaustive)
C121: =$B$6 -> DIY products | D121: =$C$118 -> Large non-electric, non-combustion items and machines, and their accessories | E121: flush-mounted boxes for equipment and accessories
C122: DIY products | D122: Large non-electric, non-combustion items and machines, and their accessories | E122: handling trolleys
C123: DIY products | D123: Large non-electric, non-combustion items and machines, and their accessories | E123: tile cutters
C124: DIY products | D124: Large non-electric, non-combustion items and machines, and their accessories | E124: manual tile cutters
C125: DIY products | D125: Large non-electric, non-combustion items and machines, and their accessories | E125: anvils
C126: =$B$6 -> DIY products | D126: =$C$118 -> Large non-electric, non-combustion items and machines, and their accessories | E126: vices
C127: =$B$6 -> DIY products | D127: =$C$118 -> Large non-electric, non-combustion items and machines, and their accessories | E127: extractors
C128: DIY products | D128: Large non-electric, non-combustion items and machines, and their accessories | E128: pry levers
C129: DIY products | D129: Large non-electric, non-combustion items and machines, and their accessories | E129: concrete smoothers
C130: DIY products | D130: Large non-electric, non-combustion items and machines, and their accessories | E130: chipping hammers
C131: DIY products | D131: Large non-electric, non-combustion items and machines, and their accessories | E131: long measuring tools
C132: DIY products | D132: Large non-electric, non-combustion items and machines, and their accessories | E132: levelling rods
C133: DIY products | D133: Large non-electric, non-combustion items and machines, and their accessories | E133: levels for levelling rods
C134: DIY products | D134: Large non-electric, non-combustion items and machines, and their accessories | E134: clamping and cutting tools
C135: DIY products | D135: Large non-electric, non-combustion items and machines, and their accessories | E135: heavy tiler tools
C136: DIY products | D136: Large non-electric, non-combustion items and machines, and their accessories | E136: piping tools
C137: DIY products | D137: Large non-electric, non-combustion items and machines, and their accessories | E137: excavation tools
C138: DIY products | D138: Large non-electric, non-combustion items and machines, and their accessories | E138: pneumatic tools
C139: DIY products | D139: Large non-electric, non-combustion items and machines, and their accessories | E139: nail guns (excl. EEE)
C140: =$B$6 -> DIY products | D140: =$C$118 -> Large non-electric, non-combustion items and machines, and their accessories | E140: HDPE pipe scrapers
C141: DIY products | D141: Large non-electric, non-combustion items and machines, and their accessories | E141: level rulers
B144: 102 | C144: Tools and supports for working at height
C146: Department | D146: Category | E146: Examples of products (non-exhaustive)
C147: =$B$6 -> DIY products | D147: =$C$144 -> Tools and supports for working at height | E147: lifting accessories
C148: DIY products | D148: Tools and supports for working at height | E148: handling accessories
C149: DIY products | D149: Tools and supports for working at height | E149: lifting rings
C150: DIY products | D150: Tools and supports for working at height | E150: lifting hooks
C151: DIY products | D151: Tools and supports for working at height | E151: scaffolding and tubular structures
C152: DIY products | D152: Tools and supports for working at height | E152: mobile scaffolding
C153: =$B$6 -> DIY products | D153: =$C$144 -> Tools and supports for working at height | E153: ladders
C154: =$B$6 -> DIY products | D154: =$C$144 -> Tools and supports for working at height | E154: sliding ladders
C155: =$B$6 -> DIY products | D155: =$C$144 -> Tools and supports for working at height | E155: single ladders
C156: DIY products | D156: Tools and supports for working at height | E156: multi-purpose ladders
C157: DIY products | D157: Tools and supports for working at height | E157: collapsible ladders
C158: DIY products | D158: Tools and supports for working at height | E158: ladders for construction sites
C159: DIY products | D159: Tools and supports for working at height | E159: stepladders
C160: DIY products | D160: Tools and supports for working at height | E160: steps
C161: DIY products | D161: Tools and supports for working at height | E161: steps
C162: DIY products | D162: Tools and supports for working at height | E162: lift tables
C163: DIY products | D163: Tools and supports for working at height | E163: winches
B166: 103 | C166: Personal protection equipment and accessories for DIY
C168: Department | D168: Category | E168: Examples of products (non-exhaustive)
C169: =$B$6 -> DIY products | D169: =$C$166 -> Personal protection equipment and accessories for DIY | E169: earplugs
C170: DIY products | D170: =$C$166 -> Personal protection equipment and accessories for DIY | E170: respirator cartridges
C171: DIY products | D171: Personal protection equipment and accessories for DIY | E171: welding helmets
C172: DIY products | D172: Personal protection equipment and accessories for DIY | E172: hard hats
C173: =$B$6 -> DIY products | D173: =$C$166 -> Personal protection equipment and accessories for DIY | E173: protective helmets
C174: DIY products | D174: Personal protection equipment and accessories for DIY | E174: protective footwear (ISO 20346 and 20345: SB, SBP, S1, S1P, S2, S3)
C175: DIY products | D175: Personal protection equipment and accessories for DIY | E175: body equipment (visor, knee pads, shin guards, etc.)
C176: DIY products | D176: Personal protection equipment and accessories for DIY | E176: protective gloves for DIY
C177: DIY products | D177: Personal protection equipment and accessories for DIY | E177: protective goggles
C178: DIY products | D178: Personal protection equipment and accessories for DIY | E178: masks
C179: DIY products | D179: Personal protection equipment and accessories for DIY | E179: hearing protection
C180: DIY products | D180: Personal protection equipment and accessories for DIY | E180: eye protection
C181: DIY products | D181: Personal protection equipment and accessories for DIY | E181: respiratory protection
B183: 104 | C183: Tarpaulins, covers, nets, and films for DIY
C185: Department | D185: Category | E185: Examples of products (non-exhaustive)
C186: =B6 -> DIY products | D186: =$C$183 -> Tarpaulins, covers, nets, and films for DIY | E186: tarpaulins for DIY
H188: =TRIM((LOWER(E188))) -> 
H189: =TRIM((LOWER(E189))) -> 
H190: =TRIM((LOWER(E190))) -> 
B191: Garden upkeep and landscaping | H191: =TRIM((LOWER(E191))) -> 
H192: =TRIM((LOWER(E192))) -> 
B193: 150 | C193: Garden upkeep hand tools and small accessories
C195: Department | D195: Category | E195: Examples of products (non-exhaustive)
C196: =$B$191 -> Garden upkeep and landscaping | D196: =$C$193 -> Garden upkeep hand tools and small accessories | E196: growing accessories
C197: Garden upkeep and landscaping | D197: Garden upkeep hand tools and small accessories | E197: drip irrigation
C198: Garden upkeep and landscaping | D198: Garden upkeep hand tools and small accessories | E198: sprinklers
C199: Garden upkeep and landscaping | D199: Garden upkeep hand tools and small accessories | E199: watering cans
C200: Garden upkeep and landscaping | D200: Garden upkeep hand tools and small accessories | E200: other large gardening tools
C201: Garden upkeep and landscaping | D201: Garden upkeep hand tools and small accessories | E201: lawn rakes
C202: Garden upkeep and landscaping | D202: Garden upkeep hand tools and small accessories | E202: garden rakes
C203: Garden upkeep and landscaping | D203: Garden upkeep hand tools and small accessories | E203: garden forks
C204: Garden upkeep and landscaping | D204: Garden upkeep hand tools and small accessories | E204: mortise axes
C205: Garden upkeep and landscaping | D205: Garden upkeep hand tools and small accessories | E205: spits
C206: =$B$191 -> Garden upkeep and landscaping | D206: =$C$193 -> Garden upkeep hand tools and small accessories | E206: lumbering tools
C207: Garden upkeep and landscaping | D207: Garden upkeep hand tools and small accessories | E207: nozzles
C208: Garden upkeep and landscaping | D208: Garden upkeep hand tools and small accessories | E208: shears
C209: Garden upkeep and landscaping | D209: Garden upkeep hand tools and small accessories | E209: choppers
C210: Garden upkeep and landscaping | D210: Garden upkeep hand tools and small accessories | E210: splitting wedges
C211: Garden upkeep and landscaping | D211: Garden upkeep hand tools and small accessories | E211: lopping shears
C212: Garden upkeep and landscaping | D212: Garden upkeep hand tools and small accessories | E212: edge trimmers
C213: Garden upkeep and landscaping | D213: Garden upkeep hand tools and small accessories | E213: fruit pickers
C214: Garden upkeep and landscaping | D214: Garden upkeep hand tools and small accessories | E214: reel dispensers / reels
C215: Garden upkeep and landscaping | D215: Garden upkeep hand tools and small accessories | E215: various watering and spraying tools
C216: Garden upkeep and landscaping | D216: Garden upkeep hand tools and small accessories | E216: hosepipe reels
C217: Garden upkeep and landscaping | D217: Garden upkeep hand tools and small accessories | E217: scoop nets
C218: Garden upkeep and landscaping | D218: Garden upkeep hand tools and small accessories | E218: garden upkeep equipment
... 158 more rows

Sheet Understanding codification
B1: Ecomaison codification system
B4: ► A tool is available for creating tables of correspondence between your catalogue and the Ecomaison product catalogue.
B5: ► Furniture waste codes are not shown below.
B8: General code structure
B20: Department code: XX 000 00 000 0
B22: EPR | C22: _ | D22: Department | E22: _2 | F22: Department code
B24: DIY and Gardening Products | D24: DIY products | F24: 21
B25: DIY and Gardening Products | D25: Garden upkeep and landscaping | F25: 22
B27: Product category code: 00 XXX 00 000 0
B29: EPR | C29: _ | D29: Department | E29: Category | F29: Product code
B31: DIY and gardening products | D31: =$D$24 -> DIY products | E31: Hand tools and their accessories | F31: 100
B32: DIY and gardening products | D32: =$D$24 -> DIY products | E32: Large non-electric, non-combustion items and machines, and their accessories | F32: =F31+1 -> 101
B33: DIY and gardening products | D33: DIY products | E33: Tools and supports for working at height | F33: =F32+1 -> 102
B34: DIY and gardening products | D34: DIY products | E34: Personal protection equipment and accessories for DIY | F34: 103
B35: DIY and gardening products | D35: DIY products | E35: Tarpaulins, covers, nets, and films for DIY | F35: 104
B36: DIY and gardening products | D36: DIY products | E36: Buckets, troughs, and containers | F36: =IF(D36=D35,F35+1,ROUNDUP((F35+1)*2,-1)/2) -> 105
B37: DIY and gardening products | D37: =$D$25 -> Garden upkeep and landscaping | E37: Garden upkeep hand tools and small accessories | F37: 150
B38: DIY and gardening products | D38: =$D$25 -> Garden upkeep and landscaping | E38: Personal protection equipment and accessories for gardening | F38: =F37+1 -> 151
B39: DIY and gardening products | D39: =$D$25 -> Garden upkeep and landscaping | E39: Flower pots and containers | F39: =F38+1 -> 152
B40: DIY and gardening products | D40: Garden upkeep and landscaping | E40: Tarpaulins, covers, nets, and films for gardening | F40: 153
B41: DIY and gardening products | D41: Garden upkeep and landscaping | E41: Outdoor equipment and accessories (excl. tarpaulins, nets, and covers) | F41: 154
B42: DIY and gardening products | D42: Garden upkeep and landscaping | E42: Non-masonry outdoor structures | F42: 155
B44: Material code: 00 000 XX 000 0
B46: Material type | C46: _ | D46: Materials | E46: Examples of materials | F46: Material code | G46: Column1
B48: 1 - Metal | D48: Metal >90% | E48: Ferrous metals (steel, stainless steel, wrought iron, cast iron, carbon steel, zinc-plated steel, sheet steel, alloys, etc.) and non-ferrous metals (aluminium, lead, zinc, tin, chrome, copper, bronze, silver, zamac, nickel, titanium, brass, etc.) | F48: 28
B49: 1 - Metal | D49: Assembly of metal >50% and other materials | E49: Assembly of metal/wood, metal/plastic, metal/inert substance, etc. | F49: 02
B51: 2 - Wood and wood derivatives | D51: Solid wood and related products certified >90% | E51: All species (Douglas fir, fir, oak, beech, maritime pine, Scots pine, African pearwood, larch, teak, spruce, etc.), including engineered wood, plywood, laminated timber, and veneer | F51: 52
B52: 2 - Wood and wood derivatives | D52: Solid wood and related products certified >75% | E52: All species (Douglas fir, fir, oak, beech, maritime pine, Scots pine, African pearwood, larch, teak, spruce, etc.), including engineered wood, plywood, laminated timber, and veneer | F52: 20
B53: 2 - Wood and wood derivatives | D53: Solid wood and related products >90% | E53: All species (Douglas fir, fir, oak, beech, maritime pine, Scots pine, African pearwood, larch, teak, spruce, etc.), including engineered wood, plywood, laminated timber, and veneer | F53: 53
B54: 2 - Wood and wood derivatives | D54: Solid wood and related products >75% | E54: All species (Douglas fir, fir, oak, beech, maritime pine, Scots pine, African pearwood, larch, teak, spruce, etc.), including engineered wood, plywood, laminated timber, and veneer | F54: 21
B55: 2 - Wood and wood derivatives | D55: Certified chipboard or OSB >90% | E55: Chipboard and OSB | F55: 59
B56: 2 - Wood and wood derivatives | D56: Certified chipboard or OSB >75% | E56: Chipboard and OSB | F56: 60
B57: 2 - Wood and wood derivatives | D57: Chipboard or OSB >90% | E57: Chipboard and OSB | F57: 61
B58: 2 - Wood and wood derivatives | D58: Chipboard or OSB >75% | E58: Chipboard and OSB | F58: 25
B59: 2 - Wood and wood derivatives | D59: Wood derivatives >90% | E59: Composite wood, MDF, HDF, alveolar, laminate, HPL, etc. | F59: 62
B60: 2 - Wood and wood derivatives | D60: Non-certified wood derivatives >90% | E60: Composite wood, MDF, HDF, alveolar, laminate, HPL, etc. | F60: 54
B61: 2 - Wood and wood derivatives | D61: Assembly of wood and/or wood derivatives >50% and other materials or composite wood (excl. glass) | E61: Assembly of wood/metal, wood/plastic, etc. | F61: 01
B62: 2 - Wood and wood derivatives | D62: Assembly of non-certified wood and/or wood derivatives >50% and other materials or composite wood (excl. glass) | E62: Assembly of wood/metal, wood/plastic, etc. | F62: 51
B64: 3 - Cardboard | D64: Cardboard >50% and other materials (excl. glass) | E64: Paper, cardboard, compact paper, Kraft paper | F64: 19
B66: 4 - Materials and fibres of plant or animal origin excl. wood, paper, and cardboard | D66: Biosourced materials or non-synthetic textiles >90% | E66: Plant stalks (bamboo, rattan, wicker, jute, straw, cork), natural textiles of unmixed plant origin (cotton, linen, hemp, silk, ramie, coconut fibre, raffia, etc.) | F66: 55
B67: 4 - Materials and fibres of plant or animal origin excl. wood, paper, and cardboard | D67: Biosourced materials or non-synthetic textiles >50% | E67: Assembly of biosourced materials and plastic, metal, etc. | F67: 04
B68: 4 - Materials and fibres of plant or animal origin excl. wood, paper, and cardboard | D68: Natural rubber >90% | E68: Rubber and latex | F68: 63
B69: 4 - Materials and fibres of plant or animal origin excl. wood, paper, and cardboard | D69: Natural rubber >50% | E69: Rubber and latex | F69: 64
B70: 4 - Materials and fibres of plant or animal origin excl. wood, paper, and cardboard | D70: Materials of animal origin >50% | E70: Textile materials or padding of animal origin (wool, felt, mohair, feathers, down, hair, leather, etc.) | F70: 06
B72: 5 - Plastic, synthetic fibres and materials | D72: Plastic (single-resin) >90% | E72: Plastic and other synthetic materials: acrylic, PP, PE, PS, XPS, EPS, PEX, nylon, polyamide, PU, PVC, vinyl, epoxy, synthetic fibres, PL, composite materials, carbon, etc. | F72: 41
B73: 5 - Plastic, synthetic fibres and materials | D73: PE or PP or PP/PE mix >90% | E73: Polyethylene (PE), Polypropylene (PP), PP/PE mix | F73: 45
B74: 5 - Plastic, synthetic fibres and materials | D74: PVC >90% | F74: 48
B75: 5 - Plastic, synthetic fibres and materials | D75: Polyethylene terephthalate (PET) >90% | F75: 42
B76: 5 - Plastic, synthetic fibres and materials | D76: ABS >90% | F76: 46
B77: 5 - Plastic, synthetic fibres and materials | D77: Polystyrene >90% | F77: 47
B78: 5 - Plastic, synthetic fibres and materials | D78: Plastics or other synthetic materials >50% | E78: Assembly of synthetic textiles and materials | F78: 05
B79: 5 - Plastic, synthetic fibres and materials | D79: Synthetic rubber >90% | E79: Rubber | F79: 49
B80: 5 - Plastic, synthetic fibres and materials | D80: Elements containing latex | E80: Latex | F80: 10
B81: 5 - Plastic, synthetic fibres and materials | D81: Assembly of synthetic rubber or latex >50% and other materials | E81: Rubber, latex with other synthetic materials, wood, metal, etc. | F81: 40
B82: 5 - Plastic, synthetic fibres and materials | D82: Synthetic fibres or materials >90% | E82: Polyamides, nylon, polyester (PES) and polyethylene terephthalate (PET), viscose, elastane, foam, etc. | F82: 65
B83: 5 - Plastic, synthetic fibres and materials | D83: Textile and polyester padding >90% | E83: Polyester | F83: 66
B84: 5 - Plastic, synthetic fibres and materials | D84: Elements containing foam | F84: 09
B85: 5 - Plastic, synthetic fibres and materials | D85: Textile elements containing springs | F85: 11
B86: 5 - Plastic, synthetic fibres and materials | D86: Assembly of synthetic fibres and/or materials >50% and other materials | E86: Assembly of synthetic textiles and/or materials and metal, wood, etc. | F86: 67
B88: 6 - Glass and glass partitions | D88: Glass >90% | E88: Flat glass, glass bricks, etc. | F88: 68
B89: 6 - Glass and glass partitions | D89: Assembly of glass >50% and metal | E89: Assembly of glass and metals | F89: 70
B90: 6 - Glass and glass partitions | D90: Assembly of glass >50% and inert substances | E90: Assembly of glass and inert substances | F90: 71
B91: 6 - Glass and glass partitions | D91: Assembly of glass >50% and wood or wood derivatives | E91: Assembly of glass and wood or biosourced materials | F91: 72
B92: 6 - Glass and glass partitions | D92: Assembly of glass >50% and plastic | E92: Assembly of glass and plastic | F92: 73
B93: 6 - Glass and glass partitions | D93: Mirror >90% | E93: Mirror | F93: 69
B95: 7 - Plaster | D95: Plaster >90% | E95: Plaster material, plasterboard, and gypsum fibreboard | F95: 75
B96: 7 - Plaster | D96: Plaster >50% | E96: Elements composed mainly of plaster and associated with other materials | F96: 76
B98: 8 - Glass wool and rockwool | D98: Rockwool >90% | E98: Insulating materials made from natural materials resulting from volcanic activity | F98: 77
B99: 8 - Glass wool and rockwool | D99: Glass wool >90% | E99: Materials composed of glass fibres, used as a filter or insulator | F99: 78
B100: 8 - Glass wool and rockwool | D100: Assembly of glass wool or rockwool >50% and other materials | E100: Elements mainly composed of mineral wool | F100: 79
B102: 9 - Bitumen membranes | D102: Bitumen membranes >90% | E102: Synthetic sealing membrane | F102: 80
B104: 10 - Other mixes of materials or unclassified or unspecified materials | D104: Assembly of wood, wood derivatives, and metal with a combination representing >90% | F104: 81
B105: 10 - Other mixes of materials or unclassified or unspecified materials | D105: Assembly of 3 or more materials, with no material representing >50% | E105: Elements composed of parts made from various materials, often but not exclusively with a plastic or synthetic textile part | F105: 82
B106: 10 - Other mixes of materials or unclassified or unspecified materials | D106: Unknown or unspecified by the company | E106: Unknown or unspecified by the company | F106: 00
B108: 11 - Mortars, coatings, paints, varnishes, resins, and preparation products | D108: Liquid products, incl. hazardous products >90% | E108: Undercoats, floor preparations and sealing elements, exterior paints, treatments for floors and roofs, interior paints, glues and adhesives, PU and expansive resins (aerosols), PU sealants, seals and foams, additives, treatments for wood, treatment for materials (aerosols), treatments for non-wood materials, varnishes and sealers and derivatives, varnishes and sealers and derivatives (aerosols), powder coatings, paste coatings | F108: 83
B110: 12 - Inert materials | D110: Assembly of materials with inert substances >50% | F110: 08
B111: 12 - Inert materials | D111: Composites and other reconstituted mineral materials >50% | F111: 15
B112: 12 - Inert materials | D112: Slate >90% | E112: Slate | F112: 84
B113: 12 - Inert materials | D113: Non-stone aggregate >90% | E113: Small mineral materials (aggregate, gravel, sand, grit, chippings, rubble, etc.), excl. stone | F113: 85
B114: 12 - Inert materials | D114: Limestone >90% | E114: Large mineral materials, excl. aggregate, gravel, sand, and specific stones such as slate | F114: 86
B115: 12 - Inert materials | D115: Lava stone >90% | F115: 87
B116: 12 - Inert materials | D116: Bituminous mix >90% | E116: Bitumen-based liquid materials | F116: 88
B117: 12 - Inert materials | D117: Raw earth or terracotta >90% | E117: Terracotta materials | F117: 89
B118: 12 - Inert materials | D118: Concrete >90% | E118: Assembly of aggregates (gravel, grit, sand, etc.), a binder (cement, bitumen, clay), additives, and water | F118: 74
B119: 12 - Inert materials | D119: Cellular concrete >90% | F119: 96
B120: 12 - Inert materials | D120: Cement >90% | F120: 90
B121: 12 - Inert materials | D121: Granite >90% | F121: 91
B122: 12 - Inert materials | D122: Ceramic >90% | E122: Earthenware or sandstone-based materials | F122: 97
B123: 12 - Inert materials | D123: Mortar >90% | F123: 92
B124: 12 - Inert materials | D124: Additives >90% | F124: 93
B125: 12 - Inert materials | D125: Sandstone >90% | F125: 94
B126: 12 - Inert materials | D126: Lime >90% | F126: 95
B127: 12 - Inert materials | D127: Artificial stone >90% | E127: Materials obtained by moulding various aggregates, fillers, and binders (concrete, reconstituted stone) or through chemical synthesis | F127: 98
B130: Measurement code: 00 000 00 XXX 0
B132: Measurement type | C132: Concat. | D132: Calculation method | E132: Applied product scopes | F132: Measurement code
C133: =Tbl_Code_Mesure[[#This Row],[Calculation method]]&Tbl_Code_Mesure[[#This Row],[Applied product scopes]] -> 
B134: General | C134: =Tbl_Code_Mesure[[#This Row],[Calculation method]]&Tbl_Code_Mesure[[#This Row],[Applied product scopes]] -> € / tonElements of all sizes and weights | D134: € / ton | E134: Elements of all sizes and weights | F134: 000
B135: General | C135: =Tbl_Code_Mesure[[#This Row],[Calculation method]]&Tbl_Code_Mesure[[#This Row],[Applied product scopes]] -> € / unitStrictly <0.5 kg | D135: € / unit | E135: Strictly <0.5 kg | F135: 020
B136: General | C136: =Tbl_Code_Mesure[[#This Row],[Calculation method]]&Tbl_Code_Mesure[[#This Row],[Applied product scopes]] -> € / unit≥0.5 kg and <1 kg | D136: € / unit | E136: ≥0.5 kg and <1 kg | F136: 021
B137: General | C137: =Tbl_Code_Mesure[[#This Row],[Calculation method]]&Tbl_Code_Mesure[[#This Row],[Applied product scopes]] -> € / unit≥1 kg and <2 kg | D137: € / unit | E137: ≥1 kg and <2 kg | F137: 022
B138: General | C138: =Tbl_Code_Mesure[[#This Row],[Calculation method]]&Tbl_Code_Mesure[[#This Row],[Applied product scopes]] -> € / unit≥2 kg and <3 kg | D138: € / unit | E138: ≥2 kg and <3 kg | F138: 052
B139: General | C139: =Tbl_Code_Mesure[[#This Row],[Calculation method]]&Tbl_Code_Mesure[[#This Row],[Applied product scopes]] -> € / unit≥3 kg and <5 kg | D139: € / unit | E139: ≥3 kg and <5 kg | F139: 053
B140: General | C140: =Tbl_Code_Mesure[[#This Row],[Calculation method]]&Tbl_Code_Mesure[[#This Row],[Applied product scopes]] -> € / unit≥5 kg and <7 kg | D140: € / unit | E140: ≥5 kg and <7 kg | F140: 054
B141: General | C141: =Tbl_Code_Mesure[[#This Row],[Calculation method]]&Tbl_Code_Mesure[[#This Row],[Applied product scopes]] -> € / unit≥7 kg and <10 kg | D141: € / unit | E141: ≥7 kg and <10 kg | F141: 055
B142: General | C142: =Tbl_Code_Mesure[[#This Row],[Calculation method]]&Tbl_Code_Mesure[[#This Row],[Applied product scopes]] -> € / unit≥10 kg and <15 kg | D142: € / unit | E142: ≥10 kg and <15 kg | F142: 056
B143: General | C143: =Tbl_Code_Mesure[[#This Row],[Calculation method]]&Tbl_Code_Mesure[[#This Row],[Applied product scopes]] -> € / unit≥15 kg and <20 kg | D143: € / unit | E143: ≥15 kg and <20 kg | F143: 057
B144: General | C144: =Tbl_Code_Mesure[[#This Row],[Calculation method]]&Tbl_Code_Mesure[[#This Row],[Applied product scopes]] -> € / unit≥20 kg and <25 kg | D144: € / unit | E144: ≥20 kg and <25 kg | F144: 058
B145: General | C145: =Tbl_Code_Mesure[[#This Row],[Calculation method]]&Tbl_Code_Mesure[[#This Row],[Applied product scopes]] -> € / unit≥25 kg and <30 kg | D145: € / unit | E145: ≥25 kg and <30 kg | F145: 059
B146: General | C146: =Tbl_Code_Mesure[[#This Row],[Calculation method]]&Tbl_Code_Mesure[[#This Row],[Applied product scopes]] -> € / unit≥30 kg and <40 kg | D146: € / unit | E146: ≥30 kg and <40 kg | F146: 027
B147: General | C147: =Tbl_Code_Mesure[[#This Row],[Calculation method]]&Tbl_Code_Mesure[[#This Row],[Applied product scopes]] -> € / unit≥40 kg and <50 kg | D147: € / unit | E147: ≥40 kg and <50 kg | F147: 060
B148: General | C148: =Tbl_Code_Mesure[[#This Row],[Calculation method]]&Tbl_Code_Mesure[[#This Row],[Applied product scopes]] -> € / unitSmall producer codes | D148: € / unit | E148: Small producer codes | F148: 089
B151: Eco-modulation code: 00 000 00 000 X
B153: Type | C153: Concat. | D153: Calculation method | E153: Scope | F153: Eco-modulation code
C154: =Tbl_Code_Mesure2[[#This Row],[Calculation method]]&Tbl_Code_Mesure2[[#This Row],[Scope]] -> 
B155: Without eco-modulation | D155: - | E155: All products | F155: 0
B156: With eco-modulation due to the availability of spare parts | D156: Premium equivalent to 10% of the product contribution | E156: All products | F156: 1

Sheet Code Generator
A1: Product code generator – DIY and Gardening Products Pricing scale applicable as of 1 January 2025 | H1: MASQUER | I1: MASQUER | K1: =Infos!$A$7 -> Version 2.2 - 01 June 2025
A2: Select items within the green boxes Remember to press the "RESET" button before generating a new code. The eco-fee amount incl. VAT is given as an indication only ; the applicable pricing scale is the scale excl. VAT.
G4: Code: | I4: A
A6: 1 - Select a Department: | G6: =IF(D6="","",VLOOKUP(D6,'Param masqué'!$D$3:$E$4,2,FALSE)) ->  | H6: =LEFT(A6,1)+0 -> 1 | I6: =I4&"_"&G6 -> A_
A8: =H6+1&" - Select a product category: " -> 2 - Select a product category: | E8: _ | G8: =IF(D8="","",VLOOKUP(D8,'Param masqué'!$J$3:$K$15,2,FALSE)) ->  | H8: =LEFT(A8,1)+0 -> 2 | I8: =I4&"_"&G8 -> A_
D10: =IF($G$8=155,"Please note that this product may be covered by another EPR. Be sure to check that it belongs to the DIY and Gardening Products EPR.","") -> 
A12: =H8+1&" - Select a material type:" -> 3 - Select a material type: | H12: =LEFT(A12,1)+0 -> 3 | I12: =IFERROR(VLOOKUP($D$12,'Param masqué'!$AT$2:$AU$13,2,FALSE),0) -> 0
I13: =IF(D12="Prix en fonction d'une autre unité fonctionelle",I8&"F","") -> 
A14: =H12+1&" - Select a material: " -> 4 - Select a material: | G14: =IF(D14="","",VLOOKUP(D14,'Param masqué'!$R$3:$T$81,3,FALSE)) ->  | H14: =LEFT(A14,1)+0 -> 4 | I14: =IF($D$12="Prix en fonction d'une autre unité fonctionelle",VLOOKUP(I13,'Param masqué'!AG:AJ,4,FALSE),VLOOKUP(I8,'Param masqué'!AG:AJ,4,FALSE)) -> 
A16: =H14+1&" - Select the characteristic (or unitary quantity) according to product type: " -> 5 - Select the characteristic (or unitary quantity) according to product type: | G16: =IF(D16="","",VLOOKUP(D16,'Param masqué'!$AD$1:$AE$16,2,FALSE)) ->  | H16: =LEFT(A16,1)+0 -> 5
A19: =H16+1&" - Does the product benefit from eco-modulation due to the availability of spare parts? " -> 6 - Does the product benefit from eco-modulation due to the availability of spare parts? | G19: =IF(D19="","",IF(D19="Yes",1,0)) -> 
D20: =IF($G$19=1,"Be sure to check that this product is eligible for eco-modulations.","") -> 
A22: Hence the product code: | D22: =IF(OR(D19="",D16="",D14="",D8="",D6=""),"",CONCATENATE(G6,G8,G14,G16,G19)) -> 
D23: =IF(D22="","",D6&" - "&D8&" in "&D14&" "&D16) -> 
A24: The eco-fee amount is :
G25: and its eco-fee code:
A26: You can set the VAT rate | C26: Excl. VAT: | D26: =IFERROR(VLOOKUP('Code Generator'!$D$22,Codes!$C:$J,8,FALSE),"") ->  | F26: =IFERROR(VLOOKUP('Code Generator'!$D$22,Codes!$C:$J,7,FALSE),"") ->  | G26: =IFERROR(VLOOKUP(D22,Codes!$C:$L,10,FALSE),"") -> 
B27: 0.2 | C27: Incl. VAT: | D27: =IF(D26="","",D26*(1+$B$27)) ->  | F27: =IFERROR(VLOOKUP('Code Generator'!$D$22,Codes!$C:$J,7,FALSE),"") -> 
A31: =IF(F26="€ / Tonne","Indiquez ici le poids de votre produit en kg :","") -> 
C33: =IF(F26="€ / Tonne","soit une éco-participation unitaire de :","") ->  | D33: =IFERROR(IF(D31="","",IF(F26="€ / Tonne",IF(D31*D26/1000<0.01,"<0,01€",D31*D26/1000),D31*D26)),"") ->  | F33: =IF(F26="€ / Tonne","HT hors éco-modulation si applicable","") -> 

Sheet Param masqué (hidden)
B1: REP | C1: _ | D1: Rayon | E1: Code Rayon | G1: REP | H1: _ | I1: Rayon | J1: Catégorie | K1: Code Produit | Q1: Type de matériaux | R1: Matériaux | S1: Exemples de matériaux | T1: Code matériaux | W1: A_100 | AB1: Type de mesure | AC1: Mode de calcul | AD1: Périmètres produits d'application | AE1: Code Mesure | AG1: code produit | AH1: Tranches de dimensions | AI1: unité | AJ1: meta cat | AN1: Typo | AO1: Tranches de dimensions | AP1: Code | AY1: Cat1 | BF1: Taux de TVA
W2: 1 - Metal | X2: =VLOOKUP(W2,$AT$2:$AU$13,2,FALSE) -> Cat_1 | AF2: 100 | AG2: A_100 | AH2: Elements of all sizes and weights | AI2: € / ton | AJ2: Dim_2 | AN2: Dim_1 | AO2: Elements of all sizes and weights | AP2: 000 | AT2: 1 - Metal | AU2: Cat_1 | AV2: 1 | AX2: 28 | AY2: Metal >90% | AZ2: =VLOOKUP(AY2,'Understanding codification'!$D$48:$F$127,3,FALSE) -> 28 | BB2: Prix au poids | BD2: Yes | BF2: 0.085
A3: =E3 -> 21 | B3: DIY and Gardening Products | C3: A | D3: DIY products | E3: =VLOOKUP(D3,'Understanding codification'!$D$20:$F$25,3,FALSE) -> 21 | G3: ABJ | H3: ="A_"&VLOOKUP(I3,$D$3:$E$4,2,FALSE) -> A_21 | I3: DIY products | J3: Hand tools and their accessories | K3: =VLOOKUP(J3,'Understanding codification'!$E$27:$F$42,2,FALSE) -> 100 | M3: 1 - Metal | N3: MAT_1 | O3: 1 | P3: MAT_1 | Q3: 1 - Metal | R3: Metal >90% | S3: Ferrous metals (steel, stainless steel, wrought iron, cast iron, carbon steel, zinc-plated steel, sheet steel, alloys, etc.) and non-ferrous metals (aluminium, lead, zinc, tin, chrome, copper, bronze, silver, zamac, nickel, titanium, brass, etc.) | T3: =VLOOKUP(R3,'Understanding codification'!$D$44:$F$127,3,FALSE) -> 28 | W3: 2 - Wood and wood derivatives | X3: =VLOOKUP(W3,$AT$2:$AU$13,2,FALSE) -> Cat_2 | AB3: Général | AC3: € / ton | AD3: Elements of all sizes and weights | AE3: 000 | AF3: 101 | AG3: A_101 | AH3: Elements of all sizes and weights | AI3: € / ton | AJ3: Dim_1 | AN3: Dim_1 | AO3: Strictly <0.5 kg | AP3: 020 | AT3: 2 - Wood and wood derivatives | AU3: Cat_2 | AV3: 2 | AX3: 02 | AY3: Assembly of metal >50% and other materials | AZ3: =VLOOKUP(AY3,'Understanding codification'!$D$48:$F$127,3,FALSE) -> 02 | BB3: Prix en fonction d'une autre unité fonctionelle | BD3: No | BF3: 0.1
A4: =E4 -> 22 | B4: DIY and Gardening Products | C4: A | D4: Garden upkeep and landscaping | E4: =VLOOKUP(D4,'Understanding codification'!$D$20:$F$25,3,FALSE) -> 22 | G4: ABJ | H4: A_21 | I4: DIY products | J4: Large non-electric, non-combustion items and machines, and their accessories | K4: =VLOOKUP(J4,'Understanding codification'!$E$27:$F$42,2,FALSE) -> 101 | M4: 2 - Wood and wood derivatives | N4: MAT_2 | O4: 2 | P4: MAT_1 | Q4: 1 - Metal | R4: Assembly of metal >50% and other materials | S4: Assembly of metal/wood, metal/plastic, metal/inert substance, etc. | T4: =VLOOKUP(R4,'Understanding codification'!$D$44:$F$127,3,FALSE) -> 02 | W4: 3 - Cardboard | X4: Cat_3 | AD4: Strictly <0.5 kg | AE4: 020 | AF4: 102 | AG4: A_102 | AH4: Elements of all sizes and weights | AI4: € / ton | AJ4: Dim_1 | AN4: Dim_1 | AO4: ≥0.5 kg and <1 kg | AP4: 021 | AT4: 3 - Cardboard | AU4: Cat_3 | AV4: 3 | AY4: Cat2 | BF4: 0.2
G5: ABJ | H5: A_21 | I5: DIY products | J5: Tools and supports for working at height | K5: =VLOOKUP(J5,'Understanding codification'!$E$27:$F$42,2,FALSE) -> 102 | M5: 3 - Cardboard | N5: MAT_3 | O5: 3 | W5: 4 - Materials and fibres of plant or animal origin excl. wood, paper, and cardboard | X5: Cat_4 | AD5: ≥0.5 kg and <1 kg | AE5: 021 | AF5: 103 | AG5: A_103 | AH5: Elements of all sizes and weights | AI5: € / ton | AJ5: Dim_2 | AN5: Dim_1 | AO5: ≥1 kg and <2 kg | AP5: 022 | AT5: 4 - Materials and fibres of plant or animal origin excl. wood, paper, and cardboard | AU5: Cat_4 | AV5: 4 | AX5: 52 | AY5: Solid wood and related products certified >90% | AZ5: =VLOOKUP(AY5,'Understanding codification'!$D$48:$F$127,3,FALSE) -> 52
G6: ABJ | H6: A_21 | I6: DIY products | J6: Personal protection equipment and accessories for DIY | K6: =VLOOKUP(J6,'Understanding codification'!$E$27:$F$42,2,FALSE) -> 103 | M6: 4 - Materials and fibres of plant or animal origin excl. wood, paper, and cardboard | N6: MAT_4 | O6: 4 | P6: MAT_2 | Q6: 2 - Wood and wood derivatives | R6: Solid wood and related products certified >90% | S6: All species (Douglas fir, fir, oak, beech, maritime pine, Scots pine, African pearwood, larch, teak, spruce, etc.), including engineered wood, plywood, laminated timber, and veneer | T6: =VLOOKUP(R6,'Understanding codification'!$D$44:$F$127,3,FALSE) -> 52 | W6: 5 - Plastic, synthetic fibres and materials | X6: Cat_5 | AD6: ≥1 kg and <2 kg | AE6: 022 | AF6: 104 | AG6: A_104 | AH6: Elements of all sizes and weights | AI6: € / ton | AJ6: Dim_2 | AN6: Dim_1 | AO6: ≥2 kg and <3 kg | AP6: 052 | AT6: 5 - Plastic, synthetic fibres and materials | AU6: Cat_5 | AV6: 5 | AX6: 20 | AY6: Solid wood and related products certified >75% | AZ6: =VLOOKUP(AY6,'Understanding codification'!$D$48:$F$127,3,FALSE) -> 20
G7: ABJ | H7: A_21 | I7: DIY products | J7: Tarpaulins, covers, nets, and films for DIY | K7: =VLOOKUP(J7,'Understanding codification'!$E$27:$F$42,2,FALSE) -> 104 | M7: 5 - Plastic, synthetic fibres and materials | N7: MAT_5 | O7: 5 | P7: MAT_2 | Q7: 2 - Wood and wood derivatives | R7: Solid wood and related products certified >75% | S7: All species (Douglas fir, fir, oak, beech, maritime pine, Scots pine, African pearwood, larch, teak, spruce, etc.), including engineered wood, plywood, laminated timber, and veneer | T7: =VLOOKUP(R7,'Understanding codification'!$D$44:$F$127,3,FALSE) -> 20 | W7: 6 - Glass and glass partitions | X7: Cat_6 | AD7: ≥2 kg and <3 kg | AE7: 052 | AF7: 105 | AG7: A_105 | AH7: Elements of all sizes and weights | AI7: € / ton | AJ7: Dim_2 | AN7: Dim_1 | AO7: ≥3 kg and <5 kg | AP7: 053 | AT7: 6 - Glass and glass partitions | AU7: Cat_6 | AV7: 6 | AX7: 53 | AY7: Solid wood and related products >90% | AZ7: =VLOOKUP(AY7,'Understanding codification'!$D$48:$F$127,3,FALSE) -> 53
G8: ABJ | H8: ="A_"&VLOOKUP(I8,$D$3:$E$4,2,FALSE) -> A_21 | I8: DIY products | J8: Buckets, troughs, and containers | K8: =VLOOKUP(J8,'Understanding codification'!$E$27:$F$42,2,FALSE) -> 105 | M8: 6 - Glass and glass partitions | N8: MAT_6 | O8: 6 | P8: MAT_2 | Q8: 2 - Wood and wood derivatives | R8: Solid wood and related products >90% | S8: All species (Douglas fir, fir, oak, beech, maritime pine, Scots pine, African pearwood, larch, teak, spruce, etc.), including engineered wood, plywood, laminated timber, and veneer | T8: =VLOOKUP(R8,'Understanding codification'!$D$44:$F$127,3,FALSE) -> 53 | W8: 10 - Other mixes of materials or unclassified or unspecified materials | X8: Cat_10 | AD8: ≥3 kg and <5 kg | AE8: 053 | AF8: 150 | AG8: A_150 | AH8: Elements of all sizes and weights | AI8: € / ton | AJ8: Dim_2 | AN8: Dim_1 | AO8: ≥5 kg and <7 kg | AP8: 054 | AT8: 7 - Plâtre (Cat. e du décret) | AU8: Cat_7 | AV8: 7 | AX8: 21 | AY8: Solid wood and related products >75% | AZ8: =VLOOKUP(AY8,'Understanding codification'!$D$48:$F$127,3,FALSE) -> 21
G9: ABJ | H9: A_22 | I9: Garden upkeep and landscaping | J9: Garden upkeep hand tools and small accessories | K9: =VLOOKUP(J9,'Understanding codification'!$E$27:$F$42,2,FALSE) -> 150 | M9: 7 - Plaster | N9: MAT_7 | O9: 7 | P9: MAT_2 | Q9: 2 - Wood and wood derivatives | R9: Solid wood and related products >75% | S9: All species (Douglas fir, fir, oak, beech, maritime pine, Scots pine, African pearwood, larch, teak, spruce, etc.), including engineered wood, plywood, laminated timber, and veneer | T9: =VLOOKUP(R9,'Understanding codification'!$D$44:$F$127,3,FALSE) -> 21 | W9: A_101 | AD9: ≥5 kg and <7 kg | AE9: 054 | AF9: 151 | AG9: A_151 | AH9: Elements of all sizes and weights | AI9: € / ton | AJ9: Dim_2 | AN9: Dim_1 | AO9: ≥7 kg and <10 kg | AP9: 055 | AT9: 8- Laines de verre et laines de roches (Cat. h et i du décret) | AU9: Cat_8 | AV9: 8 | AX9: 59 | AY9: Certified chipboard or OSB >90% | AZ9: =VLOOKUP(AY9,'Understanding codification'!$D$48:$F$127,3,FALSE) -> 59
G10: ABJ | H10: A_22 | I10: Garden upkeep and landscaping | J10: Personal protection equipment and accessories for gardening | K10: =VLOOKUP(J10,'Understanding codification'!$E$27:$F$42,2,FALSE) -> 151 | M10: 8 - Glass wool and rockwool | N10: MAT_8 | O10: 8 | P10: MAT_2 | Q10: 2 - Wood and wood derivatives | R10: Certified chipboard or OSB >90% | S10: Chipboard and OSB | T10: =VLOOKUP(R10,'Understanding codification'!$D$44:$F$127,3,FALSE) -> 59 | W10: 1 - Metal | X10: =VLOOKUP(W10,$AT$2:$AU$13,2,FALSE) -> Cat_1 | AD10: ≥7 kg and <10 kg | AE10: 055 | AF10: 152 | AG10: A_152 | AH10: Elements of all sizes and weights | AI10: € / ton | AJ10: Dim_3 | AN10: Dim_1 | AO10: ≥10 kg and <15 kg | AP10: 056 | AT10: 9 - Membranes bitumineuses (Cat. g du décret) | AU10: Cat_9 | AV10: 9 | AX10: 60 | AY10: Certified chipboard or OSB >75% | AZ10: =VLOOKUP(AY10,'Understanding codification'!$D$48:$F$127,3,FALSE) -> 60
G11: ABJ | H11: A_22 | I11: Garden upkeep and landscaping | J11: Flower pots and containers | K11: =VLOOKUP(J11,'Understanding codification'!$E$27:$F$42,2,FALSE) -> 152 | M11: 9 - Bitumen membranes | N11: MAT_9 | O11: 9 | P11: MAT_2 | Q11: 2 - Wood and wood derivatives | R11: Certified chipboard or OSB >75% | S11: Chipboard and OSB | T11: =VLOOKUP(R11,'Understanding codification'!$D$44:$F$127,3,FALSE) -> 60 | W11: 2 - Wood and wood derivatives | X11: Cat_2 | AD11: ≥10 kg and <15 kg | AE11: 056 | AF11: 153 | AG11: A_153 | AH11: Elements of all sizes and weights | AI11: € / ton | AJ11: Dim_2 | AN11: Dim_1 | AO11: ≥15 kg and <20 kg | AP11: 057 | AT11: 10 - Other mixes of materials or unclassified or unspecified materials | AU11: Cat_10 | AV11: 10 | AX11: 61 | AY11: Chipboard or OSB >90% | AZ11: =VLOOKUP(AY11,'Understanding codification'!$D$48:$F$127,3,FALSE) -> 61
G12: ABJ | H12: A_22 | I12: Garden upkeep and landscaping | J12: Tarpaulins, covers, nets, and films for gardening | K12: =VLOOKUP(J12,'Understanding codification'!$E$27:$F$42,2,FALSE) -> 153 | M12: 10 - Other mixes of materials or unclassified or unspecified materials | N12: MAT_10 | O12: 10 | P12: MAT_2 | Q12: 2 - Wood and wood derivatives | R12: Chipboard or OSB >90% | S12: Chipboard and OSB | T12: =VLOOKUP(R12,'Understanding codification'!$D$44:$F$127,3,FALSE) -> 61 | W12: 3 - Cardboard | X12: Cat_3 | AD12: ≥15 kg and <20 kg | AE12: 057 | AF12: 154 | AG12: A_154 | AH12: Elements of all sizes and weights | AI12: € / ton | AJ12: Dim_1 | AN12: Dim_1 | AO12: ≥20 kg and <25 kg | AP12: 058 | AT12: 11 - Mortiers, enduits, peintures, vernis, résines, produits de préparation (Cat. c du décret) | AU12: Cat_11 | AV12: 11 | AX12: 25 | AY12: Chipboard or OSB >75% | AZ12: =VLOOKUP(AY12,'Understanding codification'!$D$48:$F$127,3,FALSE) -> 25
G13: ABJ | H13: A_22 | I13: Garden upkeep and landscaping | J13: Outdoor equipment and accessories (excl. tarpaulins, nets, and covers) | K13: =VLOOKUP(J13,'Understanding codification'!$E$27:$F$42,2,FALSE) -> 154 | M13: 11 - Mortars, coatings, paints, varnishes, resins, and preparation products | N13: MAT_11 | O13: 11 | P13: MAT_2 | Q13: 2 - Wood and wood derivatives | R13: Chipboard or OSB >75% | S13: Chipboard and OSB | T13: =VLOOKUP(R13,'Understanding codification'!$D$44:$F$127,3,FALSE) -> 25 | W13: 4 - Materials and fibres of plant or animal origin excl. wood, paper, and cardboard | X13: Cat_4 | AD13: ≥20 kg and <25 kg | AE13: 058 | AF13: 155 | AG13: A_155 | AH13: Elements of all sizes and weights | AI13: € / ton | AJ13: Dim_1 | AN13: Dim_1 | AO13: ≥25 kg and <30 kg | AP13: 059 | AT13: 12 - Inert materials | AU13: Cat_12 | AV13: 12 | AX13: 62 | AY13: Wood derivatives >90% | AZ13: =VLOOKUP(AY13,'Understanding codification'!$D$48:$F$127,3,FALSE) -> 62
G14: ABJ | H14: A_22 | I14: Garden upkeep and landscaping | J14: Non-masonry outdoor structures | K14: =VLOOKUP(J14,'Understanding codification'!$E$27:$F$42,2,FALSE) -> 155 | M14: 12 - Inert materials | N14: MAT_12 | O14: 12 | P14: MAT_2 | Q14: 2 - Wood and wood derivatives | R14: Wood derivatives >90% | S14: Composite wood, MDF, HDF, alveolar, laminate, HPL, etc. | T14: 62 | W14: 5 - Plastic, synthetic fibres and materials | X14: Cat_5 | AD14: ≥25 kg and <30 kg | AE14: 059 | AN14: Dim_1 | AO14: ≥30 kg and <40 kg | AP14: 027 | AX14: 54 | AY14: Non-certified wood derivatives >90% | AZ14: =VLOOKUP(AY14,'Understanding codification'!$D$48:$F$127,3,FALSE) -> 54
P15: MAT_2 | Q15: 2 - Wood and wood derivatives | R15: Non-certified wood derivatives >90% | S15: Composite wood, MDF, HDF, alveolar, laminate, HPL, etc. | T15: 54 | W15: 6 - Glass and glass partitions | X15: Cat_6 | AD15: ≥30 kg and <40 kg | AE15: 027 | AN15: Dim_1 | AO15: ≥40 kg and <50 kg | AP15: 060 | AX15: 01 | AY15: Assembly of wood and/or wood derivatives >50% and other materials or composite wood (excl. glass) | AZ15: =VLOOKUP(AY15,'Understanding codification'!$D$48:$F$127,3,FALSE) -> 01
P16: MAT_2 | Q16: 2 - Wood and wood derivatives | R16: Assembly of wood and/or wood derivatives >50% and other materials or composite wood (excl. glass) | S16: Assembly of wood/metal, wood/plastic, etc. | T16: 01 | W16: 10 - Other mixes of materials or unclassified or unspecified materials | X16: Cat_10 | AD16: ≥40 kg and <50 kg | AE16: 060 | AN16: Dim_2 | AO16: Elements of all sizes and weights | AP16: 000 | AX16: 51 | AY16: Assembly of non-certified wood and/or wood derivatives >50% and other materials or composite wood (excl. glass) | AZ16: =VLOOKUP(AY16,'Understanding codification'!$D$48:$F$127,3,FALSE) -> 51
P17: MAT_2 | Q17: 2 - Wood and wood derivatives | R17: Assembly of non-certified wood and/or wood derivatives >50% and other materials or composite wood (excl. glass) | S17: Assembly of wood/metal, wood/plastic, etc. | T17: 51 | W17: 12 - Inert materials | X17: Cat_12 | AN17: Dim_2 | AO17: Strictly <0.5 kg | AP17: 020 | AY17: Cat3
W18: A_103 | AN18: Dim_2 | AO18: ≥0.5 kg and <1 kg | AP18: 021 | AX18: 19 | AY18: Cardboard >50% and other materials (excl. glass) | AZ18: =VLOOKUP(AY18,'Understanding codification'!$D$48:$F$127,3,FALSE) -> 19
P19: MAT_3 | Q19: 3 - Cardboard | R19: Cardboard >50% and other materials (excl. glass) | S19: Paper, cardboard, compact paper, Kraft paper | T19: =VLOOKUP(R19,'Understanding codification'!$D$44:$F$127,3,FALSE) -> 19 | W19: 1 - Metal | X19: =VLOOKUP(W19,$AT$2:$AU$13,2,FALSE) -> Cat_1 | AN19: Dim_2 | AO19: ≥1 kg and <2 kg | AP19: 022 | AY19: Cat4
W20: 2 - Wood and wood derivatives | X20: Cat_2 | AN20: Dim_2 | AO20: ≥2 kg and <3 kg | AP20: 052 | AX20: 64 | AY20: Natural rubber >50% | AZ20: =VLOOKUP(AY20,'Understanding codification'!$D$48:$F$127,3,FALSE) -> 64
P21: MAT_4 | Q21: 4 - Materials and fibres of plant or animal origin excl. wood, paper, and cardboard | R21: Biosourced materials or non-synthetic textiles >90% | S21: Plant stalks (bamboo, rattan, wicker, jute, straw, cork), natural textiles of unmixed plant origin (cotton, linen, hemp, silk, ramie, coconut fibre, raffia, etc.) | T21: =VLOOKUP(R21,'Understanding codification'!$D$44:$F$127,3,FALSE) -> 55 | W21: 3 - Cardboard | X21: Cat_3 | AN21: Dim_2 | AO21: ≥3 kg and <5 kg | AP21: 053 | AX21: 63 | AY21: Natural rubber >90% | AZ21: =VLOOKUP(AY21,'Understanding codification'!$D$48:$F$127,3,FALSE) -> 63
P22: MAT_4 | Q22: 4 - Materials and fibres of plant or animal origin excl. wood, paper, and cardboard | R22: Biosourced materials or non-synthetic textiles >50% | S22: Assembly of biosourced materials and plastic, metal, etc. | T22: =VLOOKUP(R22,'Understanding codification'!$D$44:$F$127,3,FALSE) -> 04 | W22: 4 - Materials and fibres of plant or animal origin excl. wood, paper, and cardboard | X22: Cat_4 | AN22: Dim_2 | AO22: ≥5 kg and <7 kg | AP22: 054 | AX22: 04 | AY22: Biosourced materials or non-synthetic textiles >50% | AZ22: =VLOOKUP(AY22,'Understanding codification'!$D$48:$F$127,3,FALSE) -> 04
P23: MAT_4 | Q23: 4 - Materials and fibres of plant or animal origin excl. wood, paper, and cardboard | R23: Natural rubber >90% | S23: Rubber and latex | T23: =VLOOKUP(R23,'Understanding codification'!$D$44:$F$127,3,FALSE) -> 63 | W23: 5 - Plastic, synthetic fibres and materials | X23: Cat_5 | AN23: Dim_3 | AO23: Elements of all sizes and weights | AP23: 000 | AX23: 55 | AY23: Biosourced materials or non-synthetic textiles >90% | AZ23: =VLOOKUP(AY23,'Understanding codification'!$D$48:$F$127,3,FALSE) -> 55
P24: MAT_4 | Q24: 4 - Materials and fibres of plant or animal origin excl. wood, paper, and cardboard | R24: Natural rubber >50% | S24: Rubber and latex | T24: =VLOOKUP(R24,'Understanding codification'!$D$44:$F$127,3,FALSE) -> 64 | W24: 6 - Glass and glass partitions | X24: Cat_6 | AN24: Dim_3 | AO24: Strictly <0.5 kg | AP24: 020 | AX24: 06 | AY24: Materials of animal origin >50% | AZ24: =VLOOKUP(AY24,'Understanding codification'!$D$48:$F$127,3,FALSE) -> 06
P25: MAT_4 | Q25: 4 - Materials and fibres of plant or animal origin excl. wood, paper, and cardboard | R25: Materials of animal origin >50% | S25: Textile materials or padding of animal origin (wool, felt, mohair, feathers, down, hair, leather, etc.) | T25: =VLOOKUP(R25,'Understanding codification'!$D$44:$F$127,3,FALSE) -> 06 | W25: 10 - Other mixes of materials or unclassified or unspecified materials | X25: Cat_10 | AN25: Dim_3 | AO25: ≥0.5 kg and <1 kg | AP25: 021 | AY25: Cat5
W26: A_104 | AN26: Dim_3 | AO26: ≥1 kg and <2 kg | AP26: 022 | AX26: 41 | AY26: Plastic (single-resin) >90% | AZ26: =VLOOKUP(AY26,'Understanding codification'!$D$48:$F$127,3,FALSE) -> 41
P27: MAT_5 | Q27: 5 - Plastic, synthetic fibres and materials | R27: Plastic (single-resin) >90% | S27: Plastic and other synthetic materials: acrylic, PP, PE, PS, XPS, EPS, PEX, nylon, polyamide, PU, PVC, vinyl, epoxy, synthetic fibres, PL, composite materials, carbon, etc. | T27: =VLOOKUP(R27,'Understanding codification'!$D$44:$F$127,3,FALSE) -> 41 | W27: 3 - Cardboard | X27: =VLOOKUP(W27,$AT$2:$AU$13,2,FALSE) -> Cat_3 | AN27: Dim_3 | AO27: ≥2 kg and <3 kg | AP27: 052 | AX27: 45 | AY27: PE or PP or PP/PE mix >90% | AZ27: =VLOOKUP(AY27,'Understanding codification'!$D$48:$F$127,3,FALSE) -> 45
P28: MAT_5 | Q28: 5 - Plastic, synthetic fibres and materials | R28: PE or PP or PP/PE mix >90% | S28: Polyethylene (PE), Polypropylene (PP), PP/PE mix | T28: =VLOOKUP(R28,'Understanding codification'!$D$44:$F$127,3,FALSE) -> 45 | W28: 4 - Materials and fibres of plant or animal origin excl. wood, paper, and cardboard | X28: Cat_4 | AN28: Dim_3 | AO28: ≥3 kg and <5 kg | AP28: 053 | AX28: 46 | AY28: ABS >90% | AZ28: =VLOOKUP(AY28,'Understanding codification'!$D$48:$F$127,3,FALSE) -> 46
P29: MAT_5 | Q29: 5 - Plastic, synthetic fibres and materials | R29: PVC >90% | T29: =VLOOKUP(R29,'Understanding codification'!$D$44:$F$127,3,FALSE) -> 48 | W29: 5 - Plastic, synthetic fibres and materials | X29: Cat_5 | AN29: Dim_3 | AO29: ≥5 kg and <7 kg | AP29: 054 | AX29: 48 | AY29: PVC >90% | AZ29: =VLOOKUP(AY29,'Understanding codification'!$D$48:$F$127,3,FALSE) -> 48
P30: MAT_5 | Q30: 5 - Plastic, synthetic fibres and materials | R30: Polyethylene terephthalate (PET) >90% | T30: =VLOOKUP(R30,'Understanding codification'!$D$44:$F$127,3,FALSE) -> 42 | W30: 10 - Other mixes of materials or unclassified or unspecified materials | X30: Cat_10 | AN30: Dim_3 | AO30: ≥7 kg and <10 kg | AP30: 055 | AX30: 47 | AY30: Polystyrene >90% | AZ30: =VLOOKUP(AY30,'Understanding codification'!$D$48:$F$127,3,FALSE) -> 47
P31: MAT_5 | Q31: 5 - Plastic, synthetic fibres and materials | R31: ABS >90% | T31: =VLOOKUP(R31,'Understanding codification'!$D$44:$F$127,3,FALSE) -> 46 | W31: A_102 | AN31: Dim_3 | AO31: ≥10 kg and <15 kg | AP31: 056 | AX31: 42 | AY31: Polyethylene terephthalate (PET) >90% | AZ31: =VLOOKUP(AY31,'Understanding codification'!$D$48:$F$127,3,FALSE) -> 42
P32: MAT_5 | Q32: 5 - Plastic, synthetic fibres and materials | R32: Polystyrene >90% | T32: =VLOOKUP(R32,'Understanding codification'!$D$44:$F$127,3,FALSE) -> 47 | W32: 1 - Metal | X32: =VLOOKUP(W32,$AT$2:$AU$13,2,FALSE) -> Cat_1 | AN32: Dim_3 | AO32: ≥15 kg and <20 kg | AP32: 057 | AX32: 49 | AY32: Synthetic rubber >90% | AZ32: =VLOOKUP(AY32,'Understanding codification'!$D$48:$F$127,3,FALSE) -> 49
P33: MAT_5 | Q33: 5 - Plastic, synthetic fibres and materials | R33: Plastics or other synthetic materials >50% | S33: Assembly of synthetic textiles and materials | T33: =VLOOKUP(R33,'Understanding codification'!$D$44:$F$127,3,FALSE) -> 05 | W33: 2 - Wood and wood derivatives | X33: Cat_2 | AX33: 65 | AY33: Synthetic fibres or materials >90% | AZ33: =VLOOKUP(AY33,'Understanding codification'!$D$48:$F$127,3,FALSE) -> 65
P34: MAT_5 | Q34: 5 - Plastic, synthetic fibres and materials | R34: Synthetic rubber >90% | S34: Rubber | T34: =VLOOKUP(R34,'Understanding codification'!$D$44:$F$127,3,FALSE) -> 49 | W34: 3 - Cardboard | X34: Cat_3 | AX34: 05 | AY34: Plastics or other synthetic materials >50% | AZ34: =VLOOKUP(AY34,'Understanding codification'!$D$48:$F$127,3,FALSE) -> 05
P35: MAT_5 | Q35: 5 - Plastic, synthetic fibres and materials | R35: Elements containing latex | S35: Latex | T35: =VLOOKUP(R35,'Understanding codification'!$D$44:$F$127,3,FALSE) -> 10 | W35: 4 - Materials and fibres of plant or animal origin excl. wood, paper, and cardboard | X35: Cat_4 | AX35: 40 | AY35: Assembly of synthetic rubber or latex >50% and other materials | AZ35: =VLOOKUP(AY35,'Understanding codification'!$D$48:$F$127,3,FALSE) -> 40
P36: MAT_5 | Q36: 5 - Plastic, synthetic fibres and materials | R36: Assembly of synthetic rubber or latex >50% and other materials | S36: Rubber, latex with other synthetic materials, wood, metal, etc. | T36: =VLOOKUP(R36,'Understanding codification'!$D$44:$F$127,3,FALSE) -> 40 | W36: 5 - Plastic, synthetic fibres and materials | X36: Cat_5 | AX36: 67 | AY36: Assembly of synthetic fibres and/or materials >50% and other materials | AZ36: =VLOOKUP(AY36,'Understanding codification'!$D$48:$F$127,3,FALSE) -> 67
P37: MAT_5 | Q37: 5 - Plastic, synthetic fibres and materials | R37: Synthetic fibres or materials >90% | S37: Polyamides, nylon, polyester (PES) and polyethylene terephthalate (PET), viscose, elastane, foam, etc. | T37: =VLOOKUP(R37,'Understanding codification'!$D$44:$F$127,3,FALSE) -> 65 | W37: 6 - Glass and glass partitions | X37: Cat_6 | AY37: Cat6
P38: MAT_5 | Q38: 5 - Plastic, synthetic fibres and materials | R38: Textile and polyester padding >90% | S38: Polyester | T38: =VLOOKUP(R38,'Understanding codification'!$D$44:$F$127,3,FALSE) -> 66 | W38: 10 - Other mixes of materials or unclassified or unspecified materials | X38: Cat_10 | AX38: 72 | AY38: Assembly of glass >50% and wood or wood derivatives | AZ38: =VLOOKUP(AY38,'Understanding codification'!$D$48:$F$127,3,FALSE) -> 72
P39: MAT_5 | Q39: 5 - Plastic, synthetic fibres and materials | R39: Elements containing foam | T39: =VLOOKUP(R39,'Understanding codification'!$D$44:$F$127,3,FALSE) -> 09 | W39: 12 - Inert materials | X39: Cat_12 | AX39: 71 | AY39: Assembly of glass >50% and inert substances | AZ39: =VLOOKUP(AY39,'Understanding codification'!$D$48:$F$127,3,FALSE) -> 71
P40: MAT_5 | Q40: 5 - Plastic, synthetic fibres and materials | R40: Textile elements containing springs | T40: =VLOOKUP(R40,'Understanding codification'!$D$44:$F$127,3,FALSE) -> 11 | W40: A_153 | AX40: 70 | AY40: Assembly of glass >50% and metal | AZ40: =VLOOKUP(AY40,'Understanding codification'!$D$48:$F$127,3,FALSE) -> 70
P41: MAT_5 | Q41: 5 - Plastic, synthetic fibres and materials | R41: Assembly of synthetic fibres and/or materials >50% and other materials | S41: Assembly of synthetic textiles and/or materials and metal, wood, etc. | T41: =VLOOKUP(R41,'Understanding codification'!$D$44:$F$127,3,FALSE) -> 67 | W41: 3 - Cardboard | X41: =VLOOKUP(W41,$AT$2:$AU$13,2,FALSE) -> Cat_3 | AX41: 73 | AY41: Assembly of glass >50% and plastic | AZ41: =VLOOKUP(AY41,'Understanding codification'!$D$48:$F$127,3,FALSE) -> 73
W42: 4 - Materials and fibres of plant or animal origin excl. wood, paper, and cardboard | X42: Cat_4 | AX42: 68 | AY42: Glass >90% | AZ42: =VLOOKUP(AY42,'Understanding codification'!$D$48:$F$127,3,FALSE) -> 68
P43: MAT_6 | Q43: 6 - Glass and glass partitions | R43: Glass >90% | S43: Flat glass, glass bricks, etc. | T43: =VLOOKUP(R43,'Understanding codification'!$D$44:$F$127,3,FALSE) -> 68 | W43: 5 - Plastic, synthetic fibres and materials | X43: Cat_5 | AY43: Cat7
P44: MAT_6 | Q44: 6 - Glass and glass partitions | R44: Assembly of glass >50% and metal | S44: Assembly of glass and metals | T44: =VLOOKUP(R44,'Understanding codification'!$D$44:$F$127,3,FALSE) -> 70 | W44: 10 - Other mixes of materials or unclassified or unspecified materials | X44: Cat_10 | AX44: 75 | AY44: Plaster >90% | AZ44: =VLOOKUP(AY44,'Understanding codification'!$D$48:$F$127,3,FALSE) -> 75
P45: MAT_6 | Q45: 6 - Glass and glass partitions | R45: Assembly of glass >50% and inert substances | S45: Assembly of glass and inert substances | T45: =VLOOKUP(R45,'Understanding codification'!$D$44:$F$127,3,FALSE) -> 71 | W45: A_151 | AX45: 76 | AY45: Plaster >50% | AZ45: =VLOOKUP(AY45,'Understanding codification'!$D$48:$F$127,3,FALSE) -> 76
P46: MAT_6 | Q46: 6 - Glass and glass partitions | R46: Assembly of glass >50% and wood or wood derivatives | S46: Assembly of glass and wood or biosourced materials | T46: =VLOOKUP(R46,'Understanding codification'!$D$44:$F$127,3,FALSE) -> 72 | W46: 1 - Metal | X46: =VLOOKUP(W46,$AT$2:$AU$13,2,FALSE) -> Cat_1 | AY46: Cat8
P47: MAT_6 | Q47: 6 - Glass and glass partitions | R47: Assembly of glass >50% and plastic | S47: Assembly of glass and plastic | T47: =VLOOKUP(R47,'Understanding codification'!$D$44:$F$127,3,FALSE) -> 73 | W47: 2 - Wood and wood derivatives | X47: Cat_2 | AX47: 77 | AY47: Rockwool >90% | AZ47: =VLOOKUP(AY47,'Understanding codification'!$D$48:$F$127,3,FALSE) -> 77
P48: MAT_6 | Q48: 6 - Glass and glass partitions | R48: Mirror >90% | S48: Mirror | T48: =VLOOKUP(R48,'Understanding codification'!$D$44:$F$127,3,FALSE) -> 69 | W48: 3 - Cardboard | X48: Cat_3 | AX48: 78 | AY48: Glass wool >90% | AZ48: =VLOOKUP(AY48,'Understanding codification'!$D$48:$F$127,3,FALSE) -> 78
W49: 4 - Materials and fibres of plant or animal origin excl. wood, paper, and cardboard | X49: Cat_4 | AX49: 79 | AY49: Assembly of glass wool or rockwool >50% and other materials | AZ49: =VLOOKUP(AY49,'Understanding codification'!$D$48:$F$127,3,FALSE) -> 79
P50: MAT_7 | Q50: 7 - Plaster | R50: Plaster >90% | S50: Plaster material, plasterboard, and gypsum fibreboard | T50: =VLOOKUP(R50,'Understanding codification'!$D$44:$F$127,3,FALSE) -> 75 | W50: 5 - Plastic, synthetic fibres and materials | X50: Cat_5 | AY50: Cat9
P51: MAT_7 | Q51: 7 - Plaster | R51: Plaster >50% | S51: Elements composed mainly of plaster and associated with other materials | T51: =VLOOKUP(R51,'Understanding codification'!$D$44:$F$127,3,FALSE) -> 76 | W51: 6 - Glass and glass partitions | X51: Cat_6 | AX51: 80 | AY51: Bitumen membranes >90% | AZ51: =VLOOKUP(AY51,'Understanding codification'!$D$48:$F$127,3,FALSE) -> 80
W52: 10 - Other mixes of materials or unclassified or unspecified materials | X52: Cat_10 | AY52: Cat10
P53: MAT_8 | Q53: 8 - Glass wool and rockwool | R53: Rockwool >90% | S53: Insulating materials made from natural materials resulting from volcanic activity | T53: =VLOOKUP(R53,'Understanding codification'!$D$44:$F$127,3,FALSE) -> 77 | W53: A_154 | AX53: 82 | AY53: Assembly of 3 or more materials, with no material representing >50% | AZ53: =VLOOKUP(AY53,'Understanding codification'!$D$48:$F$127,3,FALSE) -> 82
P54: MAT_8 | Q54: 8 - Glass wool and rockwool | R54: Glass wool >90% | S54: Materials composed of glass fibres, used as a filter or insulator | T54: =VLOOKUP(R54,'Understanding codification'!$D$44:$F$127,3,FALSE) -> 78 | W54: 1 - Metal | X54: =VLOOKUP(W54,$AT$2:$AU$13,2,FALSE) -> Cat_1 | AX54: 00 | AY54: Unknown or unspecified by the company | AZ54: =VLOOKUP(AY54,'Understanding codification'!$D$48:$F$127,3,FALSE) -> 00
P55: MAT_8 | Q55: 8 - Glass wool and rockwool | R55: Assembly of glass wool or rockwool >50% and other materials | S55: Elements mainly composed of mineral wool | T55: =VLOOKUP(R55,'Understanding codification'!$D$44:$F$127,3,FALSE) -> 79 | W55: 2 - Wood and wood derivatives | X55: Cat_2 | AY55: Cat12
W56: 3 - Cardboard | X56: Cat_3 | AX56: 84 | AY56: Slate >90% | AZ56: =VLOOKUP(AY56,'Understanding codification'!$D$48:$F$127,3,FALSE) -> 84
P57: MAT_9 | Q57: 9 - Bitumen membranes | R57: Bitumen membranes >90% | S57: Synthetic sealing membrane | T57: =VLOOKUP(R57,'Understanding codification'!$D$44:$F$127,3,FALSE) -> 80 | W57: 4 - Materials and fibres of plant or animal origin excl. wood, paper, and cardboard | X57: Cat_4 | AX57: 08 | AY57: Assembly of materials with inert substances >50% | AZ57: =VLOOKUP(AY57,'Understanding codification'!$D$48:$F$127,3,FALSE) -> 08
W58: 5 - Plastic, synthetic fibres and materials | X58: Cat_5 | AX58: 74 | AY58: Concrete >90% | AZ58: =VLOOKUP(AY58,'Understanding codification'!$D$48:$F$127,3,FALSE) -> 74
P59: MAT_10 | Q59: 10 - Other mixes of materials or unclassified or unspecified materials | R59: Assembly of wood, wood derivatives, and metal with a combination representing >90% | T59: =VLOOKUP(R59,'Understanding codification'!$D$44:$F$127,3,FALSE) -> 81 | W59: 6 - Glass and glass partitions | X59: Cat_6 | AX59: 97 | AY59: Ceramic >90% | AZ59: =VLOOKUP(AY59,'Understanding codification'!$D$48:$F$127,3,FALSE) -> 97
P60: MAT_10 | Q60: 10 - Other mixes of materials or unclassified or unspecified materials | R60: Assembly of 3 or more materials, with no material representing >50% | S60: Elements composed of parts made from various materials, often but not exclusively with a plastic or synthetic textile part | T60: =VLOOKUP(R60,'Understanding codification'!$D$44:$F$127,3,FALSE) -> 82 | W60: 10 - Other mixes of materials or unclassified or unspecified materials | X60: Cat_10 | AX60: 90 | AY60: Cement >90% | AZ60: =VLOOKUP(AY60,'Understanding codification'!$D$48:$F$127,3,FALSE) -> 90
P61: MAT_10 | Q61: 10 - Other mixes of materials or unclassified or unspecified materials | R61: Unknown or unspecified by the company | S61: Unknown or unspecified by the company | T61: =VLOOKUP(R61,'Understanding codification'!$D$44:$F$127,3,FALSE) -> 00 | W61: 12 - Inert materials | X61: Cat_12 | AX61: 15 | AY61: Composites and other reconstituted mineral materials >50% | AZ61: =VLOOKUP(AY61,'Understanding codification'!$D$48:$F$127,3,FALSE) -> 15
W62: A_150 | AX62: 91 | AY62: Granite >90% | AZ62: =VLOOKUP(AY62,'Understanding codification'!$D$48:$F$127,3,FALSE) -> 91
P63: MAT_11 | Q63: 11 - Mortars, coatings, paints, varnishes, resins, and preparation products | R63: Liquid products, incl. hazardous products >90% | S63: Undercoats, floor preparations and sealing elements, exterior paints, treatments for floors and roofs, interior paints, glues and adhesives, PU and expansive resins (aerosols), PU sealants, seals and foams, additives, treatments for wood, treatment for materials (aerosols), treatments for non-wood materials, varnishes and sealers and derivatives, varnishes and sealers and derivatives (aerosols), powder coatings, paste coatings | T63: =VLOOKUP(R63,'Understanding codification'!$D$44:$F$127,3,FALSE) -> 83 | W63: 1 - Metal | X63: =VLOOKUP(W63,$AT$2:$AU$13,2,FALSE) -> Cat_1 | AX63: 94 | AY63: Sandstone >90% | AZ63: =VLOOKUP(AY63,'Understanding codification'!$D$48:$F$127,3,FALSE) -> 94
W64: 2 - Wood and wood derivatives | X64: Cat_2 | AX64: 87 | AY64: Lava stone >90% | AZ64: =VLOOKUP(AY64,'Understanding codification'!$D$48:$F$127,3,FALSE) -> 87
P65: MAT_12 | Q65: 12 - Inert materials | R65: Assembly of materials with inert substances >50% | T65: =VLOOKUP(R65,'Understanding codification'!$D$44:$F$127,3,FALSE) -> 08 | W65: 3 - Cardboard | X65: Cat_3 | AX65: 98 | AY65: Artificial stone >90% | AZ65: =VLOOKUP(AY65,'Understanding codification'!$D$48:$F$127,3,FALSE) -> 98
P66: MAT_12 | Q66: 12 - Inert materials | R66: Composites and other reconstituted mineral materials >50% | T66: =VLOOKUP(R66,'Understanding codification'!$D$44:$F$127,3,FALSE) -> 15 | W66: 4 - Materials and fibres of plant or animal origin excl. wood, paper, and cardboard | X66: Cat_4 | AX66: 86 | AY66: Limestone >90% | AZ66: =VLOOKUP(AY66,'Understanding codification'!$D$48:$F$127,3,FALSE) -> 86
P67: MAT_12 | Q67: 12 - Inert materials | R67: Slate >90% | S67: Slate | T67: =VLOOKUP(R67,'Understanding codification'!$D$44:$F$127,3,FALSE) -> 84 | W67: 5 - Plastic, synthetic fibres and materials | X67: Cat_5 | AX67: 89 | AY67: Raw earth or terracotta >90% | AZ67: =VLOOKUP(AY67,'Understanding codification'!$D$48:$F$127,3,FALSE) -> 89
P68: MAT_12 | Q68: 12 - Inert materials | R68: Non-stone aggregate >90% | S68: Small mineral materials (aggregate, gravel, sand, grit, chippings, rubble, etc.), excl. stone | T68: =VLOOKUP(R68,'Understanding codification'!$D$44:$F$127,3,FALSE) -> 85 | W68: 6 - Glass and glass partitions | X68: Cat_6
P69: MAT_12 | Q69: 12 - Inert materials | R69: Limestone >90% | S69: Large mineral materials, excl. aggregate, gravel, sand, and specific stones such as slate | T69: =VLOOKUP(R69,'Understanding codification'!$D$44:$F$127,3,FALSE) -> 86 | W69: 10 - Other mixes of materials or unclassified or unspecified materials | X69: Cat_10
P70: MAT_12 | Q70: 12 - Inert materials | R70: Lava stone >90% | T70: =VLOOKUP(R70,'Understanding codification'!$D$44:$F$127,3,FALSE) -> 87 | W70: A_152
P71: MAT_12 | Q71: 12 - Inert materials | R71: Bituminous mix >90% | S71: Bitumen-based liquid materials | T71: =VLOOKUP(R71,'Understanding codification'!$D$44:$F$127,3,FALSE) -> 88 | W71: 1 - Metal | X71: =VLOOKUP(W71,$AT$2:$AU$13,2,FALSE) -> Cat_1
P72: MAT_12 | Q72: 12 - Inert materials | R72: Raw earth or terracotta >90% | S72: Terracotta materials | T72: =VLOOKUP(R72,'Understanding codification'!$D$44:$F$127,3,FALSE) -> 89 | W72: 2 - Wood and wood derivatives | X72: Cat_2
P73: MAT_12 | Q73: 12 - Inert materials | R73: Concrete >90% | S73: Assembly of aggregates (gravel, grit, sand, etc.), a binder (cement, bitumen, clay), additives, and water | T73: =VLOOKUP(R73,'Understanding codification'!$D$44:$F$127,3,FALSE) -> 74 | W73: 3 - Cardboard | X73: Cat_3
P74: MAT_12 | Q74: 12 - Inert materials | R74: Cellular concrete >90% | T74: =VLOOKUP(R74,'Understanding codification'!$D$44:$F$127,3,FALSE) -> 96 | W74: 4 - Materials and fibres of plant or animal origin excl. wood, paper, and cardboard | X74: Cat_4
P75: MAT_12 | Q75: 12 - Inert materials | R75: Cement >90% | T75: =VLOOKUP(R75,'Understanding codification'!$D$44:$F$127,3,FALSE) -> 90 | W75: 5 - Plastic, synthetic fibres and materials | X75: Cat_5
P76: MAT_12 | Q76: 12 - Inert materials | R76: Granite >90% | T76: =VLOOKUP(R76,'Understanding codification'!$D$44:$F$127,3,FALSE) -> 91 | W76: 6 - Glass and glass partitions | X76: Cat_6
P77: MAT_12 | Q77: 12 - Inert materials | R77: Ceramic >90% | S77: Earthenware or sandstone-based materials | T77: =VLOOKUP(R77,'Understanding codification'!$D$44:$F$127,3,FALSE) -> 97 | W77: 10 - Other mixes of materials or unclassified or unspecified materials | X77: Cat_10
P78: MAT_12 | Q78: 12 - Inert materials | R78: Mortar >90% | T78: =VLOOKUP(R78,'Understanding codification'!$D$44:$F$127,3,FALSE) -> 92 | W78: 12 - Inert materials | X78: Cat_12
P79: MAT_12 | Q79: 12 - Inert materials | R79: Additives >90% | T79: =VLOOKUP(R79,'Understanding codification'!$D$44:$F$127,3,FALSE) -> 93 | W79: A_155
P80: MAT_12 | Q80: 12 - Inert materials | R80: Sandstone >90% | T80: =VLOOKUP(R80,'Understanding codification'!$D$44:$F$127,3,FALSE) -> 94 | W80: 1 - Metal | X80: =VLOOKUP(W80,$AT$2:$AU$13,2,FALSE) -> Cat_1
P81: MAT_12 | Q81: 12 - Inert materials | R81: Lime >90% | T81: =VLOOKUP(R81,'Understanding codification'!$D$44:$F$127,3,FALSE) -> 95 | W81: 2 - Wood and wood derivatives | X81: Cat_2
P82: MAT_12 | Q82: 12 - Inert materials | R82: Artificial stone >90% | S82: Materials obtained by moulding various aggregates, fillers, and binders (concrete, reconstituted stone) or through chemical synthesis | T82: =VLOOKUP(R82,'Understanding codification'!$D$44:$F$127,3,FALSE) -> 98 | W82: 3 - Cardboard | X82: Cat_3
W83: 4 - Materials and fibres of plant or animal origin excl. wood, paper, and cardboard | X83: Cat_4
W84: 5 - Plastic, synthetic fibres and materials | X84: Cat_5
W85: 6 - Glass and glass partitions | X85: Cat_6
W86: 10 - Other mixes of materials or unclassified or unspecified materials | X86: Cat_10
W87: 12 - Inert materials | X87: Cat_12
W89: A_105
W90: 1 - Metal | X90: =VLOOKUP(W90,$AT$2:$AU$13,2,FALSE) -> Cat_1
W91: 2 - Wood and wood derivatives | X91: Cat_2
W92: 3 - Cardboard | X92: Cat_3
W93: 4 - Materials and fibres of plant or animal origin excl. wood, paper, and cardboard | X93: Cat_4
W94: 5 - Plastic, synthetic fibres and materials | X94: Cat_5
W95: 6 - Glass and glass partitions | X95: Cat_6
W96: 10 - Other mixes of materials or unclassified or unspecified materials | X96: Cat_10
W97: 12 - Inert materials | X97: Cat_12
D174: Textile et rembourrage en polyester >90%
B175: Code Mesure : 00 000 00 XXX 0

Sheet Codes éco-part (hidden)
B1: Eco-fee code | F1: 0
B2: La table ci-dessous contient les codes éco-participations et les montants correspondants pour 2024 et 2025
B5: Code éco-participation | C5: Montant € HT / article | D5: Montant € TTC / article (TVA à 20%)
B6: 618 | C6: 1.58 | D6: =C6*1.2 -> 1.896 | E6: =B6 -> 618
B7: 619 | C7: 0.77 | D7: =C7*1.2 -> 0.924 | E7: =B7 -> 619
B8: 002 | C8: 0.04 | D8: 0.05 | E8: 002
B9: 003 | C9: 0.08 | D9: 0.1 | E9: 003
B10: 004 | C10: 0.13 | D10: 0.16 | E10: 004
B11: 005 | C11: 0.17 | D11: 0.2 | E11: 005
B12: 006 | C12: 0.33 | D12: 0.4 | E12: 006
B13: 008 | C13: 0.83 | D13: 1 | E13: 008
B14: 009 | C14: 1.25 | D14: 1.5 | E14: 009
B15: 010 | C15: 1.67 | D15: 2 | E15: 010
B16: 011 | C16: 2.08 | D16: 2.5 | E16: 011
B17: 012 | C17: 2.5 | D17: 3 | E17: 012
B18: 013 | C18: 2.92 | D18: 3.5 | E18: 013
B19: 014 | C19: 3.33 | D19: 4 | E19: 014
B20: 015 | C20: 3.75 | D20: 4.5 | E20: 015
B21: 016 | C21: 4.17 | D21: 5 | E21: 016
B22: 017 | C22: 5.42 | D22: 6.5 | E22: 017
B23: 018 | C23: 5.83 | D23: 7 | E23: 018
B24: 019 | C24: 6.67 | D24: 8 | E24: 019
B25: 020 | C25: 7.5 | D25: 9 | E25: 020
B26: 021 | C26: 8.33 | D26: 10 | E26: 021
B27: 022 | C27: 10.83 | D27: 13 | E27: 022
B28: 023 | C28: 15 | D28: 18 | E28: 023
B29: 024 | C29: 19.17 | D29: 23 | E29: 024
B30: 026 | C30: 27.5 | D30: 33 | E30: 026
B31: 027 | C31: 31.67 | D31: 38 | E31: 027
B32: 029 | C32: 40 | D32: 48 | E32: 029
B33: 032 | C33: 52.5 | D33: 63 | E33: 032
B34: 036 | C34: 69.17 | D34: 83 | E34: 036
B35: 042 | C35: 5 | D35: 6 | E35: 042
B36: 043 | C36: 0.34 | D36: 0.41 | E36: 043
B37: 044 | C37: 0.68 | D37: 0.82 | E37: 044
B38: 047 | C38: 0.02 | D38: 0.02 | E38: 047
B39: 048 | C39: 0.05 | D39: 0.06 | E39: 048
B40: 049 | C40: 0.09 | D40: 0.11 | E40: 049
B41: 050 | C41: 0.15 | D41: 0.18 | E41: 050
B42: 051 | C42: 0.21 | D42: 0.25 | E42: 051
B43: 053 | C43: 0.5 | D43: 0.6 | E43: 053
B44: 054 | C44: 0.92 | D44: 1.1 | E44: 054
B45: 055 | C45: 0.96 | D45: 1.15 | E45: 055
B46: 056 | C46: 1 | D46: 1.2 | E46: 056
B47: 057 | C47: 1.42 | D47: 1.7 | E47: 057
B48: 058 | C48: 1.46 | D48: 1.75 | E48: 058
B49: 059 | C49: 1.5 | D49: 1.8 | E49: 059
B50: 060 | C50: 1.92 | D50: 2.3 | E50: 060
B51: 061 | C51: 2 | D51: 2.4 | E51: 061
B52: 062 | C52: 2.33 | D52: 2.8 | E52: 062
B53: 065 | C53: 4.58 | D53: 5.5 | E53: 065
B54: 067 | C54: 7.08 | D54: 8.5 | E54: 067
B55: 068 | C55: 7.92 | D55: 9.5 | E55: 068
B56: 069 | C56: 8.75 | D56: 10.5 | E56: 069
B57: 070 | C57: 9.17 | D57: 11 | E57: 070
B58: 072 | C58: 12.5 | D58: 15 | E58: 072
B59: 073 | C59: 17.5 | D59: 21 | E59: 073
B60: 074 | C60: 21.67 | D60: 26 | E60: 074
B61: 075 | C61: 26.67 | D61: 32 | E61: 075
B62: 079 | C62: 51.67 | D62: 62 | E62: 079
B63: 080 | C63: 61.67 | D63: 74 | E63: 080
B64: 083 | C64: 76.67 | D64: 92 | E64: 083
B65: 084 | C65: 86.67 | D65: 104 | E65: 084
B66: 088 | C66: 106.67 | D66: 128 | E66: 088
B67: 092 | C67: 0.03 | D67: 0.04 | E67: 092
B68: 094 | C68: 0.1 | D68: 0.12 | E68: 094
B69: 095 | C69: 0.25 | D69: 0.3 | E69: 095
B70: 096 | C70: 0.06 | D70: 0.07 | E70: 096
B71: 097 | C71: 0.12 | D71: 0.14 | E71: =B71 -> 097
B72: 098 | C72: 0.14 | D72: 0.17 | E72: 098
B73: 099 | C73: 0.16 | D73: 0.19 | E73: 099
B74: 100 | C74: 0.18 | D74: 0.22 | E74: 100
B75: 101 | C75: 0.2 | D75: 0.24 | E75: 101
B76: 103 | C76: 0.27 | D76: 0.32 | E76: 103
B77: 104 | C77: 0.31 | D77: 0.37 | E77: 104
B78: 105 | C78: 0.4 | D78: 0.48 | E78: 105
B79: 106 | C79: 0.46 | D79: 0.55 | E79: 106
B80: 107 | C80: 0.47 | D80: 0.56 | E80: 107
B81: 108 | C81: 0.49 | D81: 0.59 | E81: 108
B82: 109 | C82: 0.51 | D82: 0.61 | E82: 109
B83: 110 | C83: 0.67 | D83: 0.8 | E83: 110
B84: 111 | C84: 0.69 | D84: 0.83 | E84: 111
B85: 112 | C85: 0.81 | D85: 0.97 | E85: 112
B86: 113 | C86: 1.08 | D86: 1.3 | E86: 113
B87: 114 | C87: 1.21 | D87: 1.45 | E87: 114
B88: 115 | C88: 1.33 | D88: 1.6 | E88: 115
B89: 116 | C89: 1.71 | D89: 2.05 | E89: 116
B90: 117 | C90: 1.83 | D90: 2.2 | E90: 117
B91: 118 | C91: 2.25 | D91: 2.7 | E91: 118
B92: 119 | C92: 2.67 | D92: 3.2 | E92: 119
B93: 120 | C93: 2.75 | D93: 3.3 | E93: 120
B94: 121 | C94: 3.08 | D94: 3.7 | E94: 121
B95: 122 | C95: 3.25 | D95: 3.9 | E95: 122
B96: 123 | C96: 3.58 | D96: 4.3 | E96: 123
B97: 124 | C97: 3.67 | D97: 4.4 | E97: 124
B98: 125 | C98: 3.92 | D98: 4.7 | E98: 125
B99: 126 | C99: 4.42 | D99: 5.3 | E99: 126
B100: 127 | C100: 4.5 | D100: 5.4 | E100: 127
B101: 128 | C101: 4.67 | D101: 5.6 | E101: 128
B102: 129 | C102: 4.75 | D102: 5.7 | E102: 129
B103: 130 | C103: 4.83 | D103: 5.8 | E103: 130
B104: 131 | C104: 5.17 | D104: 6.2 | E104: 131
B105: 132 | C105: 5.33 | D105: 6.4 | E105: 132
B106: 133 | C106: 5.58 | D106: 6.7 | E106: 133
B107: 134 | C107: 6.08 | D107: 7.3 | E107: 134
B108: 135 | C108: 6.25 | D108: 7.5 | E108: 135
B109: 136 | C109: 6.92 | D109: 8.3 | E109: 136
B110: 137 | C110: 8.83 | D110: 10.6 | E110: 137
B111: 138 | C111: 10 | D111: 12 | E111: 138
B112: 139 | C112: 10.42 | D112: 12.5 | E112: 139
B113: 140 | C113: 11.25 | D113: 13.5 | E113: 140
B114: 141 | C114: 11.67 | D114: 14 | E114: 141
B115: 142 | C115: 13.33 | D115: 16 | E115: 142
B116: 143 | C116: 14.17 | D116: 17 | E116: 143
B117: 144 | C117: 15.42 | D117: 18.5 | E117: 144
B118: 145 | C118: 16.25 | D118: 19.5 | E118: 145
B119: 146 | C119: 17.08 | D119: 20.5 | E119: 146
B120: 147 | C120: 18.33 | D120: 22 | E120: 147
B121: 148 | C121: 20 | D121: 24 | E121: 148
B122: 149 | C122: 20.83 | D122: 25 | E122: 149
B123: 150 | C123: 22.5 | D123: 27 | E123: 150
B124: 151 | C124: 25 | D124: 30 | E124: 151
B125: 152 | C125: 26.92 | D125: 32.3 | E125: 152
B126: 153 | C126: 30 | D126: 36 | E126: 153
B127: 154 | C127: 30.83 | D127: 37 | E127: 154
B128: 155 | C128: 31.25 | D128: 37.5 | E128: 155
B129: 156 | C129: 32.17 | D129: 38.6 | E129: 156
B130: 157 | C130: 32.5 | D130: 39 | E130: 157
B131: 158 | C131: 34.17 | D131: 41 | E131: 158
B132: 159 | C132: 35 | D132: 42 | E132: 159
B133: 160 | C133: 35.42 | D133: 42.5 | E133: 160
B134: 161 | C134: 37.42 | D134: 44.9 | E134: 161
B135: 162 | C135: 37.5 | D135: 45 | E135: =B135 -> 162
B136: 163 | C136: 39.17 | D136: 47 | E136: 163
B137: 164 | C137: 42.5 | D137: 51 | E137: 164
B138: 165 | C138: 42.67 | D138: 51.2 | E138: 165
B139: 166 | C139: 42.92 | D139: 51.5 | E139: 166
B140: 167 | C140: 43.33 | D140: 52 | E140: 167
B141: 168 | C141: 43.75 | D141: 52.5 | E141: 168
B142: 169 | C142: 45 | D142: 54 | E142: 169
B143: 170 | C143: 45.42 | D143: 54.5 | E143: 170
B144: 171 | C144: 47.5 | D144: 57 | E144: 171
B145: 172 | C145: 47.92 | D145: 57.5 | E145: 172
B146: 173 | C146: 50 | D146: 60 | E146: 173
B147: 174 | C147: 50.42 | D147: 60.5 | E147: 174
B148: 175 | C148: 53.17 | D148: 63.8 | E148: 175
B149: 176 | C149: 55.42 | D149: 66.5 | E149: 176
B150: 177 | C150: 55.83 | D150: 67 | E150: 177
B151: 178 | C151: 56.25 | D151: 67.5 | E151: 178
B152: 179 | C152: 58.42 | D152: 70.1 | E152: 179
B153: 180 | C153: 60 | D153: 72 | E153: 180
B154: 181 | C154: 60.42 | D154: 72.5 | E154: 181
B155: 182 | C155: 62.5 | D155: 75 | E155: 182
B156: 183 | C156: 63.67 | D156: 76.4 | E156: 183
B157: 184 | C157: 64.17 | D157: 77 | E157: 184
B158: 185 | C158: 65.42 | D158: 78.5 | E158: 185
B159: 186 | C159: 68.33 | D159: 82 | E159: 186
B160: 187 | C160: 68.75 | D160: 82.5 | E160: 187
B161: 188 | C161: 68.92 | D161: 82.7 | E161: 188
B162: 189 | C162: 72.5 | D162: 87 | E162: 189
B163: 190 | C163: 72.92 | D163: 87.5 | E163: 190
B164: 191 | C164: 74.17 | D164: 89 | E164: 191
B165: 192 | C165: 75 | D165: 90 | E165: 192
B166: 193 | C166: 75.42 | D166: 90.5 | E166: 193
B167: 194 | C167: 77.92 | D167: 93.5 | E167: 194
B168: 195 | C168: 79.42 | D168: 95.3 | E168: 195
B169: 196 | C169: 80.83 | D169: 97 | E169: 196
B170: 197 | C170: 81.25 | D170: 97.5 | E170: 197
B171: 198 | C171: 84.17 | D171: 101 | E171: 198
B172: 199 | C172: 84.67 | D172: 101.6 | E172: 199
B173: 200 | C173: 85 | D173: 102 | E173: 200
B174: 201 | C174: 85.42 | D174: 102.5 | E174: 201
B175: 202 | C175: 87.5 | D175: 105 | E175: 202
B176: 203 | C176: 89.92 | D176: 107.9 | E176: 203
B177: 204 | C177: 93.75 | D177: 112.5 | E177: 204
B178: 205 | C178: 95.17 | D178: 114.2 | E178: 205
B179: 206 | C179: 95.42 | D179: 114.5 | E179: 206
B180: 207 | C180: 100 | D180: 120 | E180: 207
B181: 208 | C181: 100.42 | D181: 120.5 | E181: 208
B182: 209 | C182: 104.17 | D182: 125 | E182: 209
B183: 210 | C183: 105.42 | D183: 126.5 | E183: 210
B184: 211 | C184: 105.67 | D184: 126.8 | E184: 211
B185: 212 | C185: 106.25 | D185: 127.5 | E185: 212
B186: 213 | C186: 110.92 | D186: 133.1 | E186: 213
B187: 214 | C187: 112.5 | D187: 135 | E187: 214
B188: 215 | C188: 112.92 | D188: 135.5 | E188: 215
B189: 216 | C189: 115.42 | D189: 138.5 | E189: 216
B190: 217 | C190: 117.92 | D190: 141.5 | E190: 217
B191: 218 | C191: 118.75 | D191: 142.5 | E191: 218
B192: 219 | C192: 121.67 | D192: 146 | E192: 219
B193: 220 | C193: 125 | D193: 150 | E193: 220
B194: 221 | C194: 125.42 | D194: 150.5 | E194: 221
B195: 222 | C195: 129.17 | D195: 155 | E195: 222
B196: 223 | C196: 130.42 | D196: 156.5 | E196: 223
B197: 224 | C197: 131.25 | D197: 157.5 | E197: 224
B198: 225 | C198: 135.42 | D198: 162.5 | E198: 225
B199: 226 | C199: 139.17 | D199: 167 | E199: =B199 -> 226
B200: 227 | C200: 140.42 | D200: 168.5 | E200: 227
B201: 228 | C201: 145.42 | D201: 174.5 | E201: 228
B202: 229 | C202: 147.92 | D202: 177.5 | E202: 229
... 721 more rows

Sheet Codes
A1: EPR | B1: Cat. EPR | C1: Ecomaison code | D1: Eco-modulated code | E1: Department | F1: Product category | G1: Materials | H1: Size brackets | I1: Measurement | J1: Price | K1: Eco-fee 2025 | L1: Eco-fee code | M1: Rate incl. 20% VAT
A2: DIY and gardening products EPR | B2: 3 | C2: 21100000000 | E2: DIY products | F2: Hand tools and their accessories | G2: Unknown or unspecified by the company | H2: Elements of all sizes and weights | I2: € / ton | J2: 322 | K2: 322 | L2: =_xlfn.XLOOKUP(K2,'Codes éco-part'!$C$6:$C$923,'Codes éco-part'!$B$6:$B$923) -> 607 | M2: =ROUND(K2*1.2,2) -> 386.4
A3: DIY and gardening products EPR | B3: 3 | C3: 21100000001 | D3: Modulated | E3: DIY products | F3: Hand tools and their accessories | G3: Unknown or unspecified by the company | H3: Elements of all sizes and weights | I3: € / ton | J3: 289.8 | K3: 289.8 | L3: =_xlfn.XLOOKUP(K3,'Codes éco-part'!$C$6:$C$923,'Codes éco-part'!$B$6:$B$923) -> 936 | M3: 347.76
A4: DIY and gardening products EPR | B4: 3 | C4: 21100000200 | E4: DIY products | F4: Hand tools and their accessories | G4: Unknown or unspecified by the company | H4: Strictly <0.5 kg | I4: € / unit | J4: 0.08 | K4: 0.08 | L4: =_xlfn.XLOOKUP(K4,'Codes éco-part'!$C$6:$C$923,'Codes éco-part'!$B$6:$B$923) -> 003 | M4: 0.1
A5: DIY and gardening products EPR | B5: 3 | C5: 21100000201 | D5: Modulated | E5: DIY products | F5: Hand tools and their accessories | G5: Unknown or unspecified by the company | H5: Strictly <0.5 kg | I5: € / unit | J5: 0.07 | K5: 0.07 | L5: =_xlfn.XLOOKUP(K5,'Codes éco-part'!$C$6:$C$923,'Codes éco-part'!$B$6:$B$923) -> 247 | M5: 0.08
A6: DIY and gardening products EPR | B6: 3 | C6: 21100000210 | E6: DIY products | F6: Hand tools and their accessories | G6: Unknown or unspecified by the company | H6: ≥0.5 kg and <1 kg | I6: € / unit | J6: 0.24 | K6: 0.24 | L6: =_xlfn.XLOOKUP(K6,'Codes éco-part'!$C$6:$C$923,'Codes éco-part'!$B$6:$B$923) -> 248 | M6: 0.29
A7: DIY and gardening products EPR | B7: 3 | C7: 21100000211 | D7: Modulated | E7: DIY products | F7: Hand tools and their accessories | G7: Unknown or unspecified by the company | H7: ≥0.5 kg and <1 kg | I7: € / unit | J7: 0.22 | K7: 0.22 | L7: =_xlfn.XLOOKUP(K7,'Codes éco-part'!$C$6:$C$923,'Codes éco-part'!$B$6:$B$923) -> 263 | M7: 0.26
A8: DIY and gardening products EPR | B8: 3 | C8: 21100000220 | E8: DIY products | F8: Hand tools and their accessories | G8: Unknown or unspecified by the company | H8: ≥1 kg and <2 kg | I8: € / unit | J8: 0.48 | K8: 0.48 | L8: =_xlfn.XLOOKUP(K8,'Codes éco-part'!$C$6:$C$923,'Codes éco-part'!$B$6:$B$923) -> 606 | M8: 0.58
A9: DIY and gardening products EPR | B9: 3 | C9: 21100000221 | D9: Modulated | E9: DIY products | F9: Hand tools and their accessories | G9: Unknown or unspecified by the company | H9: ≥1 kg and <2 kg | I9: € / unit | J9: 0.43 | K9: 0.43 | L9: =_xlfn.XLOOKUP(K9,'Codes éco-part'!$C$6:$C$923,'Codes éco-part'!$B$6:$B$923) -> 506 | M9: 0.52
A10: DIY and gardening products EPR | B10: 3 | C10: 21100000520 | E10: DIY products | F10: Hand tools and their accessories | G10: Unknown or unspecified by the company | H10: ≥2 kg and <3 kg | I10: € / unit | J10: 0.81 | K10: 0.81 | L10: =_xlfn.XLOOKUP(K10,'Codes éco-part'!$C$6:$C$923,'Codes éco-part'!$B$6:$B$923) -> 112 | M10: 0.97
A11: DIY and gardening products EPR | B11: 3 | C11: 21100000521 | D11: Modulated | E11: DIY products | F11: Hand tools and their accessories | G11: Unknown or unspecified by the company | H11: ≥2 kg and <3 kg | I11: € / unit | J11: 0.73 | K11: 0.73 | L11: =_xlfn.XLOOKUP(K11,'Codes éco-part'!$C$6:$C$923,'Codes éco-part'!$B$6:$B$923) -> 255 | M11: 0.88
A12: DIY and gardening products EPR | B12: 3 | C12: 21100000530 | E12: DIY products | F12: Hand tools and their accessories | G12: Unknown or unspecified by the company | H12: ≥3 kg and <5 kg | I12: € / unit | J12: 1.29 | K12: 1.29 | L12: =_xlfn.XLOOKUP(K12,'Codes éco-part'!$C$6:$C$923,'Codes éco-part'!$B$6:$B$923) -> 608 | M12: 1.55
A13: DIY and gardening products EPR | B13: 3 | C13: 21100000531 | D13: Modulated | E13: DIY products | F13: Hand tools and their accessories | G13: Unknown or unspecified by the company | H13: ≥3 kg and <5 kg | I13: € / unit | J13: 1.16 | K13: 1.16 | L13: =_xlfn.XLOOKUP(K13,'Codes éco-part'!$C$6:$C$923,'Codes éco-part'!$B$6:$B$923) -> 504 | M13: 1.39
A14: DIY and gardening products EPR | B14: 3 | C14: 21100000540 | E14: DIY products | F14: Hand tools and their accessories | G14: Unknown or unspecified by the company | H14: ≥5 kg and <7 kg | I14: € / unit | J14: 2.25 | K14: 2.25 | L14: =_xlfn.XLOOKUP(K14,'Codes éco-part'!$C$6:$C$923,'Codes éco-part'!$B$6:$B$923) -> 118 | M14: 2.7
A15: DIY and gardening products EPR | B15: 3 | C15: 21100000541 | D15: Modulated | E15: DIY products | F15: Hand tools and their accessories | G15: Unknown or unspecified by the company | H15: ≥5 kg and <7 kg | I15: € / unit | J15: 2.03 | K15: 2.03 | L15: =_xlfn.XLOOKUP(K15,'Codes éco-part'!$C$6:$C$923,'Codes éco-part'!$B$6:$B$923) -> 937 | M15: 2.44
A16: DIY and gardening products EPR | B16: 3 | C16: 21100010000 | E16: DIY products | F16: Hand tools and their accessories | G16: Assembly of wood and/or wood derivatives >50% and other materials or composite wood (excl. glass) | H16: Elements of all sizes and weights | I16: € / ton | J16: 55 | K16: 55 | L16: =_xlfn.XLOOKUP(K16,'Codes éco-part'!$C$6:$C$923,'Codes éco-part'!$B$6:$B$923) -> 490 | M16: 66
A17: DIY and gardening products EPR | B17: 3 | C17: 21100010001 | D17: Modulated | E17: DIY products | F17: Hand tools and their accessories | G17: Assembly of wood and/or wood derivatives >50% and other materials or composite wood (excl. glass) | H17: Elements of all sizes and weights | I17: € / ton | J17: 49.5 | K17: 49.5 | L17: =_xlfn.XLOOKUP(K17,'Codes éco-part'!$C$6:$C$923,'Codes éco-part'!$B$6:$B$923) -> 938 | M17: 59.4
A18: DIY and gardening products EPR | B18: 3 | C18: 21100010200 | E18: DIY products | F18: Hand tools and their accessories | G18: Assembly of wood and/or wood derivatives >50% and other materials or composite wood (excl. glass) | H18: Strictly <0.5 kg | I18: € / unit | J18: 0.01 | K18: 0.01 | L18: =_xlfn.XLOOKUP(K18,'Codes éco-part'!$C$6:$C$923,'Codes éco-part'!$B$6:$B$923) -> 260 | M18: 0.01
A19: DIY and gardening products EPR | B19: 3 | C19: 21100010201 | D19: Modulated | E19: DIY products | F19: Hand tools and their accessories | G19: Assembly of wood and/or wood derivatives >50% and other materials or composite wood (excl. glass) | H19: Strictly <0.5 kg | I19: € / unit | J19: 0.01 | K19: 0.01 | L19: =_xlfn.XLOOKUP(K19,'Codes éco-part'!$C$6:$C$923,'Codes éco-part'!$B$6:$B$923) -> 260 | M19: 0.01
A20: DIY and gardening products EPR | B20: 3 | C20: 21100010210 | E20: DIY products | F20: Hand tools and their accessories | G20: Assembly of wood and/or wood derivatives >50% and other materials or composite wood (excl. glass) | H20: ≥0.5 kg and <1 kg | I20: € / unit | J20: 0.04 | K20: 0.04 | L20: =_xlfn.XLOOKUP(K20,'Codes éco-part'!$C$6:$C$923,'Codes éco-part'!$B$6:$B$923) -> 002 | M20: 0.05
A21: DIY and gardening products EPR | B21: 3 | C21: 21100010211 | D21: Modulated | E21: DIY products | F21: Hand tools and their accessories | G21: Assembly of wood and/or wood derivatives >50% and other materials or composite wood (excl. glass) | H21: ≥0.5 kg and <1 kg | I21: € / unit | J21: 0.04 | K21: 0.04 | L21: =_xlfn.XLOOKUP(K21,'Codes éco-part'!$C$6:$C$923,'Codes éco-part'!$B$6:$B$923) -> 002 | M21: 0.05
A22: DIY and gardening products EPR | B22: 3 | C22: 21100010220 | E22: DIY products | F22: Hand tools and their accessories | G22: Assembly of wood and/or wood derivatives >50% and other materials or composite wood (excl. glass) | H22: ≥1 kg and <2 kg | I22: € / unit | J22: 0.08 | K22: 0.08 | L22: =_xlfn.XLOOKUP(K22,'Codes éco-part'!$C$6:$C$923,'Codes éco-part'!$B$6:$B$923) -> 003 | M22: 0.1
A23: DIY and gardening products EPR | B23: 3 | C23: 21100010221 | D23: Modulated | E23: DIY products | F23: Hand tools and their accessories | G23: Assembly of wood and/or wood derivatives >50% and other materials or composite wood (excl. glass) | H23: ≥1 kg and <2 kg | I23: € / unit | J23: 0.07 | K23: 0.07 | L23: =_xlfn.XLOOKUP(K23,'Codes éco-part'!$C$6:$C$923,'Codes éco-part'!$B$6:$B$923) -> 247 | M23: 0.08
A24: DIY and gardening products EPR | B24: 3 | C24: 21100010520 | E24: DIY products | F24: Hand tools and their accessories | G24: Assembly of wood and/or wood derivatives >50% and other materials or composite wood (excl. glass) | H24: ≥2 kg and <3 kg | I24: € / unit | J24: 0.14 | K24: 0.14 | L24: =_xlfn.XLOOKUP(K24,'Codes éco-part'!$C$6:$C$923,'Codes éco-part'!$B$6:$B$923) -> 098 | M24: 0.17
A25: DIY and gardening products EPR | B25: 3 | C25: 21100010521 | D25: Modulated | E25: DIY products | F25: Hand tools and their accessories | G25: Assembly of wood and/or wood derivatives >50% and other materials or composite wood (excl. glass) | H25: ≥2 kg and <3 kg | I25: € / unit | J25: 0.13 | K25: 0.13 | L25: =_xlfn.XLOOKUP(K25,'Codes éco-part'!$C$6:$C$923,'Codes éco-part'!$B$6:$B$923) -> 004 | M25: 0.16
A26: DIY and gardening products EPR | B26: 3 | C26: 21100010530 | E26: DIY products | F26: Hand tools and their accessories | G26: Assembly of wood and/or wood derivatives >50% and other materials or composite wood (excl. glass) | H26: ≥3 kg and <5 kg | I26: € / unit | J26: 0.22 | K26: 0.22 | L26: =_xlfn.XLOOKUP(K26,'Codes éco-part'!$C$6:$C$923,'Codes éco-part'!$B$6:$B$923) -> 263 | M26: 0.26
A27: DIY and gardening products EPR | B27: 3 | C27: 21100010531 | D27: Modulated | E27: DIY products | F27: Hand tools and their accessories | G27: Assembly of wood and/or wood derivatives >50% and other materials or composite wood (excl. glass) | H27: ≥3 kg and <5 kg | I27: € / unit | J27: 0.2 | K27: 0.2 | L27: =_xlfn.XLOOKUP(K27,'Codes éco-part'!$C$6:$C$923,'Codes éco-part'!$B$6:$B$923) -> 101 | M27: 0.24
A28: DIY and gardening products EPR | B28: 3 | C28: 21100010540 | E28: DIY products | F28: Hand tools and their accessories | G28: Assembly of wood and/or wood derivatives >50% and other materials or composite wood (excl. glass) | H28: ≥5 kg and <7 kg | I28: € / unit | J28: 0.39 | K28: 0.39 | L28: =_xlfn.XLOOKUP(K28,'Codes éco-part'!$C$6:$C$923,'Codes éco-part'!$B$6:$B$923) -> 253 | M28: 0.47
A29: DIY and gardening products EPR | B29: 3 | C29: 21100010541 | D29: Modulated | E29: DIY products | F29: Hand tools and their accessories | G29: Assembly of wood and/or wood derivatives >50% and other materials or composite wood (excl. glass) | H29: ≥5 kg and <7 kg | I29: € / unit | J29: 0.35 | K29: 0.35 | L29: =_xlfn.XLOOKUP(K29,'Codes éco-part'!$C$6:$C$923,'Codes éco-part'!$B$6:$B$923) -> 448 | M29: 0.42
A30: DIY and gardening products EPR | B30: 3 | C30: 21100020000 | E30: DIY products | F30: Hand tools and their accessories | G30: Assembly of metal >50% and other materials | H30: Elements of all sizes and weights | I30: € / ton | J30: 14 | K30: 14 | L30: =_xlfn.XLOOKUP(K30,'Codes éco-part'!$C$6:$C$923,'Codes éco-part'!$B$6:$B$923) -> 532 | M30: 16.8
A31: DIY and gardening products EPR | B31: 3 | C31: 21100020001 | D31: Modulated | E31: DIY products | F31: Hand tools and their accessories | G31: Assembly of metal >50% and other materials | H31: Elements of all sizes and weights | I31: € / ton | J31: 12.6 | K31: 12.6 | L31: =_xlfn.XLOOKUP(K31,'Codes éco-part'!$C$6:$C$923,'Codes éco-part'!$B$6:$B$923) -> 939 | M31: 15.12
A32: DIY and gardening products EPR | B32: 3 | C32: 21100020200 | E32: DIY products | F32: Hand tools and their accessories | G32: Assembly of metal >50% and other materials | H32: Strictly <0.5 kg | I32: € / unit | J32: 0.01 | K32: 0.01 | L32: =_xlfn.XLOOKUP(K32,'Codes éco-part'!$C$6:$C$923,'Codes éco-part'!$B$6:$B$923) -> 260 | M32: 0.01
A33: DIY and gardening products EPR | B33: 3 | C33: 21100020201 | D33: Modulated | E33: DIY products | F33: Hand tools and their accessories | G33: Assembly of metal >50% and other materials | H33: Strictly <0.5 kg | I33: € / unit | J33: 0.01 | K33: 0.01 | L33: =_xlfn.XLOOKUP(K33,'Codes éco-part'!$C$6:$C$923,'Codes éco-part'!$B$6:$B$923) -> 260 | M33: 0.01
A34: DIY and gardening products EPR | B34: 3 | C34: 21100020210 | E34: DIY products | F34: Hand tools and their accessories | G34: Assembly of metal >50% and other materials | H34: ≥0.5 kg and <1 kg | I34: € / unit | J34: 0.01 | K34: 0.01 | L34: =_xlfn.XLOOKUP(K34,'Codes éco-part'!$C$6:$C$923,'Codes éco-part'!$B$6:$B$923) -> 260 | M34: 0.01
A35: DIY and gardening products EPR | B35: 3 | C35: 21100020211 | D35: Modulated | E35: DIY products | F35: Hand tools and their accessories | G35: Assembly of metal >50% and other materials | H35: ≥0.5 kg and <1 kg | I35: € / unit | J35: 0.01 | K35: 0.01 | L35: =_xlfn.XLOOKUP(K35,'Codes éco-part'!$C$6:$C$923,'Codes éco-part'!$B$6:$B$923) -> 260 | M35: 0.01
A36: DIY and gardening products EPR | B36: 3 | C36: 21100020220 | E36: DIY products | F36: Hand tools and their accessories | G36: Assembly of metal >50% and other materials | H36: ≥1 kg and <2 kg | I36: € / unit | J36: 0.02 | K36: 0.02 | L36: =_xlfn.XLOOKUP(K36,'Codes éco-part'!$C$6:$C$923,'Codes éco-part'!$B$6:$B$923) -> 047 | M36: 0.02
A37: DIY and gardening products EPR | B37: 3 | C37: 21100020221 | D37: Modulated | E37: DIY products | F37: Hand tools and their accessories | G37: Assembly of metal >50% and other materials | H37: ≥1 kg and <2 kg | I37: € / unit | J37: 0.02 | K37: 0.02 | L37: =_xlfn.XLOOKUP(K37,'Codes éco-part'!$C$6:$C$923,'Codes éco-part'!$B$6:$B$923) -> 047 | M37: 0.02
A38: DIY and gardening products EPR | B38: 3 | C38: 21100020520 | E38: DIY products | F38: Hand tools and their accessories | G38: Assembly of metal >50% and other materials | H38: ≥2 kg and <3 kg | I38: € / unit | J38: 0.04 | K38: 0.04 | L38: =_xlfn.XLOOKUP(K38,'Codes éco-part'!$C$6:$C$923,'Codes éco-part'!$B$6:$B$923) -> 002 | M38: 0.05
A39: DIY and gardening products EPR | B39: 3 | C39: 21100020521 | D39: Modulated | E39: DIY products | F39: Hand tools and their accessories | G39: Assembly of metal >50% and other materials | H39: ≥2 kg and <3 kg | I39: € / unit | J39: 0.04 | K39: 0.04 | L39: =_xlfn.XLOOKUP(K39,'Codes éco-part'!$C$6:$C$923,'Codes éco-part'!$B$6:$B$923) -> 002 | M39: 0.05
A40: DIY and gardening products EPR | B40: 3 | C40: 21100020530 | E40: DIY products | F40: Hand tools and their accessories | G40: Assembly of metal >50% and other materials | H40: ≥3 kg and <5 kg | I40: € / unit | J40: 0.06 | K40: 0.06 | L40: =_xlfn.XLOOKUP(K40,'Codes éco-part'!$C$6:$C$923,'Codes éco-part'!$B$6:$B$923) -> 096 | M40: 0.07
A41: DIY and gardening products EPR | B41: 3 | C41: 21100020531 | D41: Modulated | E41: DIY products | F41: Hand tools and their accessories | G41: Assembly of metal >50% and other materials | H41: ≥3 kg and <5 kg | I41: € / unit | J41: 0.05 | K41: 0.05 | L41: =_xlfn.XLOOKUP(K41,'Codes éco-part'!$C$6:$C$923,'Codes éco-part'!$B$6:$B$923) -> 048 | M41: 0.06
A42: DIY and gardening products EPR | B42: 3 | C42: 21100020540 | E42: DIY products | F42: Hand tools and their accessories | G42: Assembly of metal >50% and other materials | H42: ≥5 kg and <7 kg | I42: € / unit | J42: 0.1 | K42: 0.1 | L42: =_xlfn.XLOOKUP(K42,'Codes éco-part'!$C$6:$C$923,'Codes éco-part'!$B$6:$B$923) -> 094 | M42: 0.12
A43: DIY and gardening products EPR | B43: 3 | C43: 21100020541 | D43: Modulated | E43: DIY products | F43: Hand tools and their accessories | G43: Assembly of metal >50% and other materials | H43: ≥5 kg and <7 kg | I43: € / unit | J43: 0.09 | K43: 0.09 | L43: =_xlfn.XLOOKUP(K43,'Codes éco-part'!$C$6:$C$923,'Codes éco-part'!$B$6:$B$923) -> 049 | M43: 0.11
A44: DIY and gardening products EPR | B44: 3 | C44: 21100040000 | E44: DIY products | F44: Hand tools and their accessories | G44: Biosourced materials or non-synthetic textiles >50% | H44: Elements of all sizes and weights | I44: € / ton | J44: 322 | K44: 322 | L44: =_xlfn.XLOOKUP(K44,'Codes éco-part'!$C$6:$C$923,'Codes éco-part'!$B$6:$B$923) -> 607 | M44: 386.4
A45: DIY and gardening products EPR | B45: 3 | C45: 21100040001 | D45: Modulated | E45: DIY products | F45: Hand tools and their accessories | G45: Biosourced materials or non-synthetic textiles >50% | H45: Elements of all sizes and weights | I45: € / ton | J45: 289.8 | K45: 289.8 | L45: =_xlfn.XLOOKUP(K45,'Codes éco-part'!$C$6:$C$923,'Codes éco-part'!$B$6:$B$923) -> 936 | M45: 347.76
A46: DIY and gardening products EPR | B46: 3 | C46: 21100040200 | E46: DIY products | F46: Hand tools and their accessories | G46: Biosourced materials or non-synthetic textiles >50% | H46: Strictly <0.5 kg | I46: € / unit | J46: 0.08 | K46: 0.08 | L46: =_xlfn.XLOOKUP(K46,'Codes éco-part'!$C$6:$C$923,'Codes éco-part'!$B$6:$B$923) -> 003 | M46: 0.1
A47: DIY and gardening products EPR | B47: 3 | C47: 21100040201 | D47: Modulated | E47: DIY products | F47: Hand tools and their accessories | G47: Biosourced materials or non-synthetic textiles >50% | H47: Strictly <0.5 kg | I47: € / unit | J47: 0.07 | K47: 0.07 | L47: =_xlfn.XLOOKUP(K47,'Codes éco-part'!$C$6:$C$923,'Codes éco-part'!$B$6:$B$923) -> 247 | M47: 0.08
A48: DIY and gardening products EPR | B48: 3 | C48: 21100040210 | E48: DIY products | F48: Hand tools and their accessories | G48: Biosourced materials or non-synthetic textiles >50% | H48: ≥0.5 kg and <1 kg | I48: € / unit | J48: 0.24 | K48: 0.24 | L48: =_xlfn.XLOOKUP(K48,'Codes éco-part'!$C$6:$C$923,'Codes éco-part'!$B$6:$B$923) -> 248 | M48: 0.29
A49: DIY and gardening products EPR | B49: 3 | C49: 21100040211 | D49: Modulated | E49: DIY products | F49: Hand tools and their accessories | G49: Biosourced materials or non-synthetic textiles >50% | H49: ≥0.5 kg and <1 kg | I49: € / unit | J49: 0.22 | K49: 0.22 | L49: =_xlfn.XLOOKUP(K49,'Codes éco-part'!$C$6:$C$923,'Codes éco-part'!$B$6:$B$923) -> 263 | M49: 0.26
A50: DIY and gardening products EPR | B50: 3 | C50: 21100040220 | E50: DIY products | F50: Hand tools and their accessories | G50: Biosourced materials or non-synthetic textiles >50% | H50: ≥1 kg and <2 kg | I50: € / unit | J50: 0.48 | K50: 0.48 | L50: =_xlfn.XLOOKUP(K50,'Codes éco-part'!$C$6:$C$923,'Codes éco-part'!$B$6:$B$923) -> 606 | M50: 0.58
A51: DIY and gardening products EPR | B51: 3 | C51: 21100040221 | D51: Modulated | E51: DIY products | F51: Hand tools and their accessories | G51: Biosourced materials or non-synthetic textiles >50% | H51: ≥1 kg and <2 kg | I51: € / unit | J51: 0.43 | K51: 0.43 | L51: =_xlfn.XLOOKUP(K51,'Codes éco-part'!$C$6:$C$923,'Codes éco-part'!$B$6:$B$923) -> 506 | M51: 0.52
A52: DIY and gardening products EPR | B52: 3 | C52: 21100040520 | E52: DIY products | F52: Hand tools and their accessories | G52: Biosourced materials or non-synthetic textiles >50% | H52: ≥2 kg and <3 kg | I52: € / unit | J52: 0.81 | K52: 0.81 | L52: =_xlfn.XLOOKUP(K52,'Codes éco-part'!$C$6:$C$923,'Codes éco-part'!$B$6:$B$923) -> 112 | M52: 0.97
A53: DIY and gardening products EPR | B53: 3 | C53: 21100040521 | D53: Modulated | E53: DIY products | F53: Hand tools and their accessories | G53: Biosourced materials or non-synthetic textiles >50% | H53: ≥2 kg and <3 kg | I53: € / unit | J53: 0.73 | K53: 0.73 | L53: =_xlfn.XLOOKUP(K53,'Codes éco-part'!$C$6:$C$923,'Codes éco-part'!$B$6:$B$923) -> 255 | M53: 0.88
A54: DIY and gardening products EPR | B54: 3 | C54: 21100040530 | E54: DIY products | F54: Hand tools and their accessories | G54: Biosourced materials or non-synthetic textiles >50% | H54: ≥3 kg and <5 kg | I54: € / unit | J54: 1.29 | K54: 1.29 | L54: =_xlfn.XLOOKUP(K54,'Codes éco-part'!$C$6:$C$923,'Codes éco-part'!$B$6:$B$923) -> 608 | M54: 1.55
A55: DIY and gardening products EPR | B55: 3 | C55: 21100040531 | D55: Modulated | E55: DIY products | F55: Hand tools and their accessories | G55: Biosourced materials or non-synthetic textiles >50% | H55: ≥3 kg and <5 kg | I55: € / unit | J55: 1.16 | K55: 1.16 | L55: =_xlfn.XLOOKUP(K55,'Codes éco-part'!$C$6:$C$923,'Codes éco-part'!$B$6:$B$923) -> 504 | M55: 1.39
A56: DIY and gardening products EPR | B56: 3 | C56: 21100040540 | E56: DIY products | F56: Hand tools and their accessories | G56: Biosourced materials or non-synthetic textiles >50% | H56: ≥5 kg and <7 kg | I56: € / unit | J56: 2.25 | K56: 2.25 | L56: =_xlfn.XLOOKUP(K56,'Codes éco-part'!$C$6:$C$923,'Codes éco-part'!$B$6:$B$923) -> 118 | M56: 2.7
A57: DIY and gardening products EPR | B57: 3 | C57: 21100040541 | D57: Modulated | E57: DIY products | F57: Hand tools and their accessories | G57: Biosourced materials or non-synthetic textiles >50% | H57: ≥5 kg and <7 kg | I57: € / unit | J57: 2.03 | K57: 2.03 | L57: =_xlfn.XLOOKUP(K57,'Codes éco-part'!$C$6:$C$923,'Codes éco-part'!$B$6:$B$923) -> 937 | M57: 2.44
A58: DIY and gardening products EPR | B58: 3 | C58: 21100050000 | E58: DIY products | F58: Hand tools and their accessories | G58: Plastics or other synthetic materials >50% | H58: Elements of all sizes and weights | I58: € / ton | J58: 322 | K58: 322 | L58: =_xlfn.XLOOKUP(K58,'Codes éco-part'!$C$6:$C$923,'Codes éco-part'!$B$6:$B$923) -> 607 | M58: 386.4
A59: DIY and gardening products EPR | B59: 3 | C59: 21100050001 | D59: Modulated | E59: DIY products | F59: Hand tools and their accessories | G59: Plastics or other synthetic materials >50% | H59: Elements of all sizes and weights | I59: € / ton | J59: 289.8 | K59: 289.8 | L59: =_xlfn.XLOOKUP(K59,'Codes éco-part'!$C$6:$C$923,'Codes éco-part'!$B$6:$B$923) -> 936 | M59: 347.76
A60: DIY and gardening products EPR | B60: 3 | C60: 21100050200 | E60: DIY products | F60: Hand tools and their accessories | G60: Plastics or other synthetic materials >50% | H60: Strictly <0.5 kg | I60: € / unit | J60: 0.08 | K60: 0.08 | L60: =_xlfn.XLOOKUP(K60,'Codes éco-part'!$C$6:$C$923,'Codes éco-part'!$B$6:$B$923) -> 003 | M60: 0.1
A61: DIY and gardening products EPR | B61: 3 | C61: 21100050201 | D61: Modulated | E61: DIY products | F61: Hand tools and their accessories | G61: Plastics or other synthetic materials >50% | H61: Strictly <0.5 kg | I61: € / unit | J61: 0.07 | K61: 0.07 | L61: =_xlfn.XLOOKUP(K61,'Codes éco-part'!$C$6:$C$923,'Codes éco-part'!$B$6:$B$923) -> 247 | M61: 0.08
A62: DIY and gardening products EPR | B62: 3 | C62: 21100050210 | E62: DIY products | F62: Hand tools and their accessories | G62: Plastics or other synthetic materials >50% | H62: ≥0.5 kg and <1 kg | I62: € / unit | J62: 0.24 | K62: 0.24 | L62: =_xlfn.XLOOKUP(K62,'Codes éco-part'!$C$6:$C$923,'Codes éco-part'!$B$6:$B$923) -> 248 | M62: 0.29
A63: DIY and gardening products EPR | B63: 3 | C63: 21100050211 | D63: Modulated | E63: DIY products | F63: Hand tools and their accessories | G63: Plastics or other synthetic materials >50% | H63: ≥0.5 kg and <1 kg | I63: € / unit | J63: 0.22 | K63: 0.22 | L63: =_xlfn.XLOOKUP(K63,'Codes éco-part'!$C$6:$C$923,'Codes éco-part'!$B$6:$B$923) -> 263 | M63: 0.26
A64: DIY and gardening products EPR | B64: 3 | C64: 21100050220 | E64: DIY products | F64: Hand tools and their accessories | G64: Plastics or other synthetic materials >50% | H64: ≥1 kg and <2 kg | I64: € / unit | J64: 0.48 | K64: 0.48 | L64: =_xlfn.XLOOKUP(K64,'Codes éco-part'!$C$6:$C$923,'Codes éco-part'!$B$6:$B$923) -> 606 | M64: 0.58
A65: DIY and gardening products EPR | B65: 3 | C65: 21100050221 | D65: Modulated | E65: DIY products | F65: Hand tools and their accessories | G65: Plastics or other synthetic materials >50% | H65: ≥1 kg and <2 kg | I65: € / unit | J65: 0.43 | K65: 0.43 | L65: =_xlfn.XLOOKUP(K65,'Codes éco-part'!$C$6:$C$923,'Codes éco-part'!$B$6:$B$923) -> 506 | M65: 0.52
A66: DIY and gardening products EPR | B66: 3 | C66: 21100050520 | E66: DIY products | F66: Hand tools and their accessories | G66: Plastics or other synthetic materials >50% | H66: ≥2 kg and <3 kg | I66: € / unit | J66: 0.81 | K66: 0.81 | L66: =_xlfn.XLOOKUP(K66,'Codes éco-part'!$C$6:$C$923,'Codes éco-part'!$B$6:$B$923) -> 112 | M66: =ROUND(K66*1.2,2) -> 0.97
A67: DIY and gardening products EPR | B67: 3 | C67: 21100050521 | D67: Modulated | E67: DIY products | F67: Hand tools and their accessories | G67: Plastics or other synthetic materials >50% | H67: ≥2 kg and <3 kg | I67: € / unit | J67: 0.73 | K67: 0.73 | L67: =_xlfn.XLOOKUP(K67,'Codes éco-part'!$C$6:$C$923,'Codes éco-part'!$B$6:$B$923) -> 255 | M67: 0.88
A68: DIY and gardening products EPR | B68: 3 | C68: 21100050530 | E68: DIY products | F68: Hand tools and their accessories | G68: Plastics or other synthetic materials >50% | H68: ≥3 kg and <5 kg | I68: € / unit | J68: 1.29 | K68: 1.29 | L68: =_xlfn.XLOOKUP(K68,'Codes éco-part'!$C$6:$C$923,'Codes éco-part'!$B$6:$B$923) -> 608 | M68: 1.55
A69: DIY and gardening products EPR | B69: 3 | C69: 21100050531 | D69: Modulated | E69: DIY products | F69: Hand tools and their accessories | G69: Plastics or other synthetic materials >50% | H69: ≥3 kg and <5 kg | I69: € / unit | J69: 1.16 | K69: 1.16 | L69: =_xlfn.XLOOKUP(K69,'Codes éco-part'!$C$6:$C$923,'Codes éco-part'!$B$6:$B$923) -> 504 | M69: 1.39
A70: DIY and gardening products EPR | B70: 3 | C70: 21100050540 | E70: DIY products | F70: Hand tools and their accessories | G70: Plastics or other synthetic materials >50% | H70: ≥5 kg and <7 kg | I70: € / unit | J70: 2.25 | K70: 2.25 | L70: =_xlfn.XLOOKUP(K70,'Codes éco-part'!$C$6:$C$923,'Codes éco-part'!$B$6:$B$923) -> 118 | M70: 2.7
A71: DIY and gardening products EPR | B71: 3 | C71: 21100050541 | D71: Modulated | E71: DIY products | F71: Hand tools and their accessories | G71: Plastics or other synthetic materials >50% | H71: ≥5 kg and <7 kg | I71: € / unit | J71: 2.03 | K71: 2.03 | L71: =_xlfn.XLOOKUP(K71,'Codes éco-part'!$C$6:$C$923,'Codes éco-part'!$B$6:$B$923) -> 937 | M71: 2.44
A72: DIY and gardening products EPR | B72: 3 | C72: 21100060000 | E72: DIY products | F72: Hand tools and their accessories | G72: Materials of animal origin >50% | H72: Elements of all sizes and weights | I72: € / ton | J72: 322 | K72: 322 | L72: =_xlfn.XLOOKUP(K72,'Codes éco-part'!$C$6:$C$923,'Codes éco-part'!$B$6:$B$923) -> 607 | M72: 386.4
A73: DIY and gardening products EPR | B73: 3 | C73: 21100060001 | D73: Modulated | E73: DIY products | F73: Hand tools and their accessories | G73: Materials of animal origin >50% | H73: Elements of all sizes and weights | I73: € / ton | J73: 289.8 | K73: 289.8 | L73: =_xlfn.XLOOKUP(K73,'Codes éco-part'!$C$6:$C$923,'Codes éco-part'!$B$6:$B$923) -> 936 | M73: 347.76
A74: DIY and gardening products EPR | B74: 3 | C74: 21100060200 | E74: DIY products | F74: Hand tools and their accessories | G74: Materials of animal origin >50% | H74: Strictly <0.5 kg | I74: € / unit | J74: 0.08 | K74: 0.08 | L74: =_xlfn.XLOOKUP(K74,'Codes éco-part'!$C$6:$C$923,'Codes éco-part'!$B$6:$B$923) -> 003 | M74: 0.1
A75: DIY and gardening products EPR | B75: 3 | C75: 21100060201 | D75: Modulated | E75: DIY products | F75: Hand tools and their accessories | G75: Materials of animal origin >50% | H75: Strictly <0.5 kg | I75: € / unit | J75: 0.07 | K75: 0.07 | L75: =_xlfn.XLOOKUP(K75,'Codes éco-part'!$C$6:$C$923,'Codes éco-part'!$B$6:$B$923) -> 247 | M75: 0.08
A76: DIY and gardening products EPR | B76: 3 | C76: 21100060210 | E76: DIY products | F76: Hand tools and their accessories | G76: Materials of animal origin >50% | H76: ≥0.5 kg and <1 kg | I76: € / unit | J76: 0.24 | K76: 0.24 | L76: =_xlfn.XLOOKUP(K76,'Codes éco-part'!$C$6:$C$923,'Codes éco-part'!$B$6:$B$923) -> 248 | M76: 0.29
A77: DIY and gardening products EPR | B77: 3 | C77: 21100060211 | D77: Modulated | E77: DIY products | F77: Hand tools and their accessories | G77: Materials of animal origin >50% | H77: ≥0.5 kg and <1 kg | I77: € / unit | J77: 0.22 | K77: 0.22 | L77: =_xlfn.XLOOKUP(K77,'Codes éco-part'!$C$6:$C$923,'Codes éco-part'!$B$6:$B$923) -> 263 | M77: 0.26
A78: DIY and gardening products EPR | B78: 3 | C78: 21100060220 | E78: DIY products | F78: Hand tools and their accessories | G78: Materials of animal origin >50% | H78: ≥1 kg and <2 kg | I78: € / unit | J78: 0.48 | K78: 0.48 | L78: =_xlfn.XLOOKUP(K78,'Codes éco-part'!$C$6:$C$923,'Codes éco-part'!$B$6:$B$923) -> 606 | M78: 0.58
A79: DIY and gardening products EPR | B79: 3 | C79: 21100060221 | D79: Modulated | E79: DIY products | F79: Hand tools and their accessories | G79: Materials of animal origin >50% | H79: ≥1 kg and <2 kg | I79: € / unit | J79: 0.43 | K79: 0.43 | L79: =_xlfn.XLOOKUP(K79,'Codes éco-part'!$C$6:$C$923,'Codes éco-part'!$B$6:$B$923) -> 506 | M79: 0.52
A80: DIY and gardening products EPR | B80: 3 | C80: 21100060520 | E80: DIY products | F80: Hand tools and their accessories | G80: Materials of animal origin >50% | H80: ≥2 kg and <3 kg | I80: € / unit | J80: 0.81 | K80: 0.81 | L80: =_xlfn.XLOOKUP(K80,'Codes éco-part'!$C$6:$C$923,'Codes éco-part'!$B$6:$B$923) -> 112 | M80: 0.97
A81: DIY and gardening products EPR | B81: 3 | C81: 21100060521 | D81: Modulated | E81: DIY products | F81: Hand tools and their accessories | G81: Materials of animal origin >50% | H81: ≥2 kg and <3 kg | I81: € / unit | J81: 0.73 | K81: 0.73 | L81: =_xlfn.XLOOKUP(K81,'Codes éco-part'!$C$6:$C$923,'Codes éco-part'!$B$6:$B$923) -> 255 | M81: 0.88
A82: DIY and gardening products EPR | B82: 3 | C82: 21100060530 | E82: DIY products | F82: Hand tools and their accessories | G82: Materials of animal origin >50% | H82: ≥3 kg and <5 kg | I82: € / unit | J82: 1.29 | K82: 1.29 | L82: =_xlfn.XLOOKUP(K82,'Codes éco-part'!$C$6:$C$923,'Codes éco-part'!$B$6:$B$923) -> 608 | M82: 1.55
A83: DIY and gardening products EPR | B83: 3 | C83: 21100060531 | D83: Modulated | E83: DIY products | F83: Hand tools and their accessories | G83: Materials of animal origin >50% | H83: ≥3 kg and <5 kg | I83: € / unit | J83: 1.16 | K83: 1.16 | L83: =_xlfn.XLOOKUP(K83,'Codes éco-part'!$C$6:$C$923,'Codes éco-part'!$B$6:$B$923) -> 504 | M83: 1.39
A84: DIY and gardening products EPR | B84: 3 | C84: 21100060540 | E84: DIY products | F84: Hand tools and their accessories | G84: Materials of animal origin >50% | H84: ≥5 kg and <7 kg | I84: € / unit | J84: 2.25 | K84: 2.25 | L84: =_xlfn.XLOOKUP(K84,'Codes éco-part'!$C$6:$C$923,'Codes éco-part'!$B$6:$B$923) -> 118 | M84: 2.7
A85: DIY and gardening products EPR | B85: 3 | C85: 21100060541 | D85: Modulated | E85: DIY products | F85: Hand tools and their accessories | G85: Materials of animal origin >50% | H85: ≥5 kg and <7 kg | I85: € / unit | J85: 2.03 | K85: 2.03 | L85: =_xlfn.XLOOKUP(K85,'Codes éco-part'!$C$6:$C$923,'Codes éco-part'!$B$6:$B$923) -> 937 | M85: 2.44
A86: DIY and gardening products EPR | B86: 3 | C86: 21100190000 | E86: DIY products | F86: Hand tools and their accessories | G86: Cardboard >50% and other materials (excl. glass) | H86: Elements of all sizes and weights | I86: € / ton | J86: 322 | K86: 322 | L86: =_xlfn.XLOOKUP(K86,'Codes éco-part'!$C$6:$C$923,'Codes éco-part'!$B$6:$B$923) -> 607 | M86: 386.4
A87: DIY and gardening products EPR | B87: 3 | C87: 21100190001 | D87: Modulated | E87: DIY products | F87: Hand tools and their accessories | G87: Cardboard >50% and other materials (excl. glass) | H87: Elements of all sizes and weights | I87: € / ton | J87: 289.8 | K87: 289.8 | L87: =_xlfn.XLOOKUP(K87,'Codes éco-part'!$C$6:$C$923,'Codes éco-part'!$B$6:$B$923) -> 936 | M87: 347.76
A88: DIY and gardening products EPR | B88: 3 | C88: 21100190200 | E88: DIY products | F88: Hand tools and their accessories | G88: Cardboard >50% and other materials (excl. glass) | H88: Strictly <0.5 kg | I88: € / unit | J88: 0.08 | K88: 0.08 | L88: =_xlfn.XLOOKUP(K88,'Codes éco-part'!$C$6:$C$923,'Codes éco-part'!$B$6:$B$923) -> 003 | M88: 0.1
A89: DIY and gardening products EPR | B89: 3 | C89: 21100190201 | D89: Modulated | E89: DIY products | F89: Hand tools and their accessories | G89: Cardboard >50% and other materials (excl. glass) | H89: Strictly <0.5 kg | I89: € / unit | J89: 0.07 | K89: 0.07 | L89: =_xlfn.XLOOKUP(K89,'Codes éco-part'!$C$6:$C$923,'Codes éco-part'!$B$6:$B$923) -> 247 | M89: 0.08
A90: DIY and gardening products EPR | B90: 3 | C90: 21100190210 | E90: DIY products | F90: Hand tools and their accessories | G90: Cardboard >50% and other materials (excl. glass) | H90: ≥0.5 kg and <1 kg | I90: € / unit | J90: 0.24 | K90: 0.24 | L90: =_xlfn.XLOOKUP(K90,'Codes éco-part'!$C$6:$C$923,'Codes éco-part'!$B$6:$B$923) -> 248 | M90: 0.29
A91: DIY and gardening products EPR | B91: 3 | C91: 21100190211 | D91: Modulated | E91: DIY products | F91: Hand tools and their accessories | G91: Cardboard >50% and other materials (excl. glass) | H91: ≥0.5 kg and <1 kg | I91: € / unit | J91: 0.22 | K91: 0.22 | L91: =_xlfn.XLOOKUP(K91,'Codes éco-part'!$C$6:$C$923,'Codes éco-part'!$B$6:$B$923) -> 263 | M91: 0.26
A92: DIY and gardening products EPR | B92: 3 | C92: 21100190220 | E92: DIY products | F92: Hand tools and their accessories | G92: Cardboard >50% and other materials (excl. glass) | H92: ≥1 kg and <2 kg | I92: € / unit | J92: 0.48 | K92: 0.48 | L92: =_xlfn.XLOOKUP(K92,'Codes éco-part'!$C$6:$C$923,'Codes éco-part'!$B$6:$B$923) -> 606 | M92: 0.58
A93: DIY and gardening products EPR | B93: 3 | C93: 21100190221 | D93: Modulated | E93: DIY products | F93: Hand tools and their accessories | G93: Cardboard >50% and other materials (excl. glass) | H93: ≥1 kg and <2 kg | I93: € / unit | J93: 0.43 | K93: 0.43 | L93: =_xlfn.XLOOKUP(K93,'Codes éco-part'!$C$6:$C$923,'Codes éco-part'!$B$6:$B$923) -> 506 | M93: 0.52
A94: DIY and gardening products EPR | B94: 3 | C94: 21100190520 | E94: DIY products | F94: Hand tools and their accessories | G94: Cardboard >50% and other materials (excl. glass) | H94: ≥2 kg and <3 kg | I94: € / unit | J94: 0.81 | K94: 0.81 | L94: =_xlfn.XLOOKUP(K94,'Codes éco-part'!$C$6:$C$923,'Codes éco-part'!$B$6:$B$923) -> 112 | M94: 0.97
A95: DIY and gardening products EPR | B95: 3 | C95: 21100190521 | D95: Modulated | E95: DIY products | F95: Hand tools and their accessories | G95: Cardboard >50% and other materials (excl. glass) | H95: ≥2 kg and <3 kg | I95: € / unit | J95: 0.73 | K95: 0.73 | L95: =_xlfn.XLOOKUP(K95,'Codes éco-part'!$C$6:$C$923,'Codes éco-part'!$B$6:$B$923) -> 255 | M95: 0.88
A96: DIY and gardening products EPR | B96: 3 | C96: 21100190530 | E96: DIY products | F96: Hand tools and their accessories | G96: Cardboard >50% and other materials (excl. glass) | H96: ≥3 kg and <5 kg | I96: € / unit | J96: 1.29 | K96: 1.29 | L96: =_xlfn.XLOOKUP(K96,'Codes éco-part'!$C$6:$C$923,'Codes éco-part'!$B$6:$B$923) -> 608 | M96: 1.55
A97: DIY and gardening products EPR | B97: 3 | C97: 21100190531 | D97: Modulated | E97: DIY products | F97: Hand tools and their accessories | G97: Cardboard >50% and other materials (excl. glass) | H97: ≥3 kg and <5 kg | I97: € / unit | J97: 1.16 | K97: 1.16 | L97: =_xlfn.XLOOKUP(K97,'Codes éco-part'!$C$6:$C$923,'Codes éco-part'!$B$6:$B$923) -> 504 | M97: 1.39
A98: DIY and gardening products EPR | B98: 3 | C98: 21100190540 | E98: DIY products | F98: Hand tools and their accessories | G98: Cardboard >50% and other materials (excl. glass) | H98: ≥5 kg and <7 kg | I98: € / unit | J98: 2.25 | K98: 2.25 | L98: =_xlfn.XLOOKUP(K98,'Codes éco-part'!$C$6:$C$923,'Codes éco-part'!$B$6:$B$923) -> 118 | M98: 2.7
A99: DIY and gardening products EPR | B99: 3 | C99: 21100190541 | D99: Modulated | E99: DIY products | F99: Hand tools and their accessories | G99: Cardboard >50% and other materials (excl. glass) | H99: ≥5 kg and <7 kg | I99: € / unit | J99: 2.03 | K99: 2.03 | L99: =_xlfn.XLOOKUP(K99,'Codes éco-part'!$C$6:$C$923,'Codes éco-part'!$B$6:$B$923) -> 937 | M99: 2.44
A100: DIY and gardening products EPR | B100: 3 | C100: 21100200000 | E100: DIY products | F100: Hand tools and their accessories | G100: Solid wood and related products certified >75% | H100: Elements of all sizes and weights | I100: € / ton | J100: 55 | K100: 55 | L100: =_xlfn.XLOOKUP(K100,'Codes éco-part'!$C$6:$C$923,'Codes éco-part'!$B$6:$B$923) -> 490 | M100: 66
A101: DIY and gardening products EPR | B101: 3 | C101: 21100200001 | D101: Modulated | E101: DIY products | F101: Hand tools and their accessories | G101: Solid wood and related products certified >75% | H101: Elements of all sizes and weights | I101: € / ton | J101: 49.5 | K101: 49.5 | L101: =_xlfn.XLOOKUP(K101,'Codes éco-part'!$C$6:$C$923,'Codes éco-part'!$B$6:$B$923) -> 938 | M101: 59.4
A102: DIY and gardening products EPR | B102: 3 | C102: 21100200200 | E102: DIY products | F102: Hand tools and their accessories | G102: Solid wood and related products certified >75% | H102: Strictly <0.5 kg | I102: € / unit | J102: 0.01 | K102: 0.01 | L102: =_xlfn.XLOOKUP(K102,'Codes éco-part'!$C$6:$C$923,'Codes éco-part'!$B$6:$B$923) -> 260 | M102: 0.01
A103: DIY and gardening products EPR | B103: 3 | C103: 21100200201 | D103: Modulated | E103: DIY products | F103: Hand tools and their accessories | G103: Solid wood and related products certified >75% | H103: Strictly <0.5 kg | I103: € / unit | J103: 0.01 | K103: 0.01 | L103: =_xlfn.XLOOKUP(K103,'Codes éco-part'!$C$6:$C$923,'Codes éco-part'!$B$6:$B$923) -> 260 | M103: 0.01
A104: DIY and gardening products EPR | B104: 3 | C104: 21100200210 | E104: DIY products | F104: Hand tools and their accessories | G104: Solid wood and related products certified >75% | H104: ≥0.5 kg and <1 kg | I104: € / unit | J104: 0.04 | K104: 0.04 | L104: =_xlfn.XLOOKUP(K104,'Codes éco-part'!$C$6:$C$923,'Codes éco-part'!$B$6:$B$923) -> 002 | M104: 0.05
A105: DIY and gardening products EPR | B105: 3 | C105: 21100200211 | D105: Modulated | E105: DIY products | F105: Hand tools and their accessories | G105: Solid wood and related products certified >75% | H105: ≥0.5 kg and <1 kg | I105: € / unit | J105: 0.04 | K105: 0.04 | L105: =_xlfn.XLOOKUP(K105,'Codes éco-part'!$C$6:$C$923,'Codes éco-part'!$B$6:$B$923) -> 002 | M105: 0.05
A106: DIY and gardening products EPR | B106: 3 | C106: 21100200220 | E106: DIY products | F106: Hand tools and their accessories | G106: Solid wood and related products certified >75% | H106: ≥1 kg and <2 kg | I106: € / unit | J106: 0.08 | K106: 0.08 | L106: =_xlfn.XLOOKUP(K106,'Codes éco-part'!$C$6:$C$923,'Codes éco-part'!$B$6:$B$923) -> 003 | M106: 0.1
A107: DIY and gardening products EPR | B107: 3 | C107: 21100200221 | D107: Modulated | E107: DIY products | F107: Hand tools and their accessories | G107: Solid wood and related products certified >75% | H107: ≥1 kg and <2 kg | I107: € / unit | J107: 0.07 | K107: 0.07 | L107: =_xlfn.XLOOKUP(K107,'Codes éco-part'!$C$6:$C$923,'Codes éco-part'!$B$6:$B$923) -> 247 | M107: 0.08
A108: DIY and gardening products EPR | B108: 3 | C108: 21100200520 | E108: DIY products | F108: Hand tools and their accessories | G108: Solid wood and related products certified >75% | H108: ≥2 kg and <3 kg | I108: € / unit | J108: 0.14 | K108: 0.14 | L108: =_xlfn.XLOOKUP(K108,'Codes éco-part'!$C$6:$C$923,'Codes éco-part'!$B$6:$B$923) -> 098 | M108: 0.17
A109: DIY and gardening products EPR | B109: 3 | C109: 21100200521 | D109: Modulated | E109: DIY products | F109: Hand tools and their accessories | G109: Solid wood and related products certified >75% | H109: ≥2 kg and <3 kg | I109: € / unit | J109: 0.13 | K109: 0.13 | L109: =_xlfn.XLOOKUP(K109,'Codes éco-part'!$C$6:$C$923,'Codes éco-part'!$B$6:$B$923) -> 004 | M109: 0.16
A110: DIY and gardening products EPR | B110: 3 | C110: 21100200530 | E110: DIY products | F110: Hand tools and their accessories | G110: Solid wood and related products certified >75% | H110: ≥3 kg and <5 kg | I110: € / unit | J110: 0.22 | K110: 0.22 | L110: =_xlfn.XLOOKUP(K110,'Codes éco-part'!$C$6:$C$923,'Codes éco-part'!$B$6:$B$923) -> 263 | M110: 0.26
A111: DIY and gardening products EPR | B111: 3 | C111: 21100200531 | D111: Modulated | E111: DIY products | F111: Hand tools and their accessories | G111: Solid wood and related products certified >75% | H111: ≥3 kg and <5 kg | I111: € / unit | J111: 0.2 | K111: 0.2 | L111: =_xlfn.XLOOKUP(K111,'Codes éco-part'!$C$6:$C$923,'Codes éco-part'!$B$6:$B$923) -> 101 | M111: 0.24
A112: DIY and gardening products EPR | B112: 3 | C112: 21100200540 | E112: DIY products | F112: Hand tools and their accessories | G112: Solid wood and related products certified >75% | H112: ≥5 kg and <7 kg | I112: € / unit | J112: 0.39 | K112: 0.39 | L112: =_xlfn.XLOOKUP(K112,'Codes éco-part'!$C$6:$C$923,'Codes éco-part'!$B$6:$B$923) -> 253 | M112: 0.47
A113: DIY and gardening products EPR | B113: 3 | C113: 21100200541 | D113: Modulated | E113: DIY products | F113: Hand tools and their accessories | G113: Solid wood and related products certified >75% | H113: ≥5 kg and <7 kg | I113: € / unit | J113: 0.35 | K113: 0.35 | L113: =_xlfn.XLOOKUP(K113,'Codes éco-part'!$C$6:$C$923,'Codes éco-part'!$B$6:$B$923) -> 448 | M113: 0.42
A114: DIY and gardening products EPR | B114: 3 | C114: 21100210000 | E114: DIY products | F114: Hand tools and their accessories | G114: Solid wood and related products >75% | H114: Elements of all sizes and weights | I114: € / ton | J114: 110 | K114: 110 | L114: =_xlfn.XLOOKUP(K114,'Codes éco-part'!$C$6:$C$923,'Codes éco-part'!$B$6:$B$923) -> 615 | M114: 132
A115: DIY and gardening products EPR | B115: 3 | C115: 21100210001 | D115: Modulated | E115: DIY products | F115: Hand tools and their accessories | G115: Solid wood and related products >75% | H115: Elements of all sizes and weights | I115: € / ton | J115: 99 | K115: 99 | L115: =_xlfn.XLOOKUP(K115,'Codes éco-part'!$C$6:$C$923,'Codes éco-part'!$B$6:$B$923) -> 940 | M115: 118.8
A116: DIY and gardening products EPR | B116: 3 | C116: 21100210200 | E116: DIY products | F116: Hand tools and their accessories | G116: Solid wood and related products >75% | H116: Strictly <0.5 kg | I116: € / unit | J116: 0.02 | K116: 0.02 | L116: =_xlfn.XLOOKUP(K116,'Codes éco-part'!$C$6:$C$923,'Codes éco-part'!$B$6:$B$923) -> 047 | M116: 0.02
A117: DIY and gardening products EPR | B117: 3 | C117: 21100210201 | D117: Modulated | E117: DIY products | F117: Hand tools and their accessories | G117: Solid wood and related products >75% | H117: Strictly <0.5 kg | I117: € / unit | J117: 0.02 | K117: 0.02 | L117: =_xlfn.XLOOKUP(K117,'Codes éco-part'!$C$6:$C$923,'Codes éco-part'!$B$6:$B$923) -> 047 | M117: 0.02
A118: DIY and gardening products EPR | B118: 3 | C118: 21100210210 | E118: DIY products | F118: Hand tools and their accessories | G118: Solid wood and related products >75% | H118: ≥0.5 kg and <1 kg | I118: € / unit | J118: 0.08 | K118: 0.08 | L118: =_xlfn.XLOOKUP(K118,'Codes éco-part'!$C$6:$C$923,'Codes éco-part'!$B$6:$B$923) -> 003 | M118: 0.1
A119: DIY and gardening products EPR | B119: 3 | C119: 21100210211 | D119: Modulated | E119: DIY products | F119: Hand tools and their accessories | G119: Solid wood and related products >75% | H119: ≥0.5 kg and <1 kg | I119: € / unit | J119: 0.07 | K119: 0.07 | L119: =_xlfn.XLOOKUP(K119,'Codes éco-part'!$C$6:$C$923,'Codes éco-part'!$B$6:$B$923) -> 247 | M119: 0.08
A120: DIY and gardening products EPR | B120: 3 | C120: 21100210220 | E120: DIY products | F120: Hand tools and their accessories | G120: Solid wood and related products >75% | H120: ≥1 kg and <2 kg | I120: € / unit | J120: 0.16 | K120: 0.16 | L120: =_xlfn.XLOOKUP(K120,'Codes éco-part'!$C$6:$C$923,'Codes éco-part'!$B$6:$B$923) -> 099 | M120: 0.19
A121: DIY and gardening products EPR | B121: 3 | C121: 21100210221 | D121: Modulated | E121: DIY products | F121: Hand tools and their accessories | G121: Solid wood and related products >75% | H121: ≥1 kg and <2 kg | I121: € / unit | J121: 0.14 | K121: 0.14 | L121: =_xlfn.XLOOKUP(K121,'Codes éco-part'!$C$6:$C$923,'Codes éco-part'!$B$6:$B$923) -> 098 | M121: 0.17
A122: DIY and gardening products EPR | B122: 3 | C122: 21100210520 | E122: DIY products | F122: Hand tools and their accessories | G122: Solid wood and related products >75% | H122: ≥2 kg and <3 kg | I122: € / unit | J122: 0.28 | K122: 0.28 | L122: =_xlfn.XLOOKUP(K122,'Codes éco-part'!$C$6:$C$923,'Codes éco-part'!$B$6:$B$923) -> 542 | M122: 0.34
A123: DIY and gardening products EPR | B123: 3 | C123: 21100210521 | D123: Modulated | E123: DIY products | F123: Hand tools and their accessories | G123: Solid wood and related products >75% | H123: ≥2 kg and <3 kg | I123: € / unit | J123: 0.25 | K123: 0.25 | L123: =_xlfn.XLOOKUP(K123,'Codes éco-part'!$C$6:$C$923,'Codes éco-part'!$B$6:$B$923) -> 095 | M123: 0.3
A124: DIY and gardening products EPR | B124: 3 | C124: 21100210530 | E124: DIY products | F124: Hand tools and their accessories | G124: Solid wood and related products >75% | H124: ≥3 kg and <5 kg | I124: € / unit | J124: 0.44 | K124: 0.44 | L124: =_xlfn.XLOOKUP(K124,'Codes éco-part'!$C$6:$C$923,'Codes éco-part'!$B$6:$B$923) -> 281 | M124: 0.53
A125: DIY and gardening products EPR | B125: 3 | C125: 21100210531 | D125: Modulated | E125: DIY products | F125: Hand tools and their accessories | G125: Solid wood and related products >75% | H125: ≥3 kg and <5 kg | I125: € / unit | J125: 0.4 | K125: 0.4 | L125: =_xlfn.XLOOKUP(K125,'Codes éco-part'!$C$6:$C$923,'Codes éco-part'!$B$6:$B$923) -> 105 | M125: 0.48
A126: DIY and gardening products EPR | B126: 3 | C126: 21100210540 | E126: DIY products | F126: Hand tools and their accessories | G126: Solid wood and related products >75% | H126: ≥5 kg and <7 kg | I126: € / unit | J126: 0.78 | K126: 0.78 | L126: =_xlfn.XLOOKUP(K126,'Codes éco-part'!$C$6:$C$923,'Codes éco-part'!$B$6:$B$923) -> 312 | M126: 0.94
A127: DIY and gardening products EPR | B127: 3 | C127: 21100210541 | D127: Modulated | E127: DIY products | F127: Hand tools and their accessories | G127: Solid wood and related products >75% | H127: ≥5 kg and <7 kg | I127: € / unit | J127: 0.7 | K127: 0.7 | L127: =_xlfn.XLOOKUP(K127,'Codes éco-part'!$C$6:$C$923,'Codes éco-part'!$B$6:$B$923) -> 282 | M127: 0.84
A128: DIY and gardening products EPR | B128: 3 | C128: 21100250000 | E128: DIY products | F128: Hand tools and their accessories | G128: Chipboard or OSB >75% | H128: Elements of all sizes and weights | I128: € / ton | J128: 110 | K128: 110 | L128: =_xlfn.XLOOKUP(K128,'Codes éco-part'!$C$6:$C$923,'Codes éco-part'!$B$6:$B$923) -> 615 | M128: 132
A129: DIY and gardening products EPR | B129: 3 | C129: 21100250001 | D129: Modulated | E129: DIY products | F129: Hand tools and their accessories | G129: Chipboard or OSB >75% | H129: Elements of all sizes and weights | I129: € / ton | J129: 99 | K129: 99 | L129: =_xlfn.XLOOKUP(K129,'Codes éco-part'!$C$6:$C$923,'Codes éco-part'!$B$6:$B$923) -> 940 | M129: 118.8
A130: DIY and gardening products EPR | B130: 3 | C130: 21100250200 | E130: DIY products | F130: Hand tools and their accessories | G130: Chipboard or OSB >75% | H130: Strictly <0.5 kg | I130: € / unit | J130: 0.02 | K130: 0.02 | L130: =_xlfn.XLOOKUP(K130,'Codes éco-part'!$C$6:$C$923,'Codes éco-part'!$B$6:$B$923) -> 047 | M130: =ROUND(K130*1.2,2) -> 0.02
A131: DIY and gardening products EPR | B131: 3 | C131: 21100250201 | D131: Modulated | E131: DIY products | F131: Hand tools and their accessories | G131: Chipboard or OSB >75% | H131: Strictly <0.5 kg | I131: € / unit | J131: 0.02 | K131: 0.02 | L131: =_xlfn.XLOOKUP(K131,'Codes éco-part'!$C$6:$C$923,'Codes éco-part'!$B$6:$B$923) -> 047 | M131: 0.02
A132: DIY and gardening products EPR | B132: 3 | C132: 21100250210 | E132: DIY products | F132: Hand tools and their accessories | G132: Chipboard or OSB >75% | H132: ≥0.5 kg and <1 kg | I132: € / unit | J132: 0.08 | K132: 0.08 | L132: =_xlfn.XLOOKUP(K132,'Codes éco-part'!$C$6:$C$923,'Codes éco-part'!$B$6:$B$923) -> 003 | M132: 0.1
A133: DIY and gardening products EPR | B133: 3 | C133: 21100250211 | D133: Modulated | E133: DIY products | F133: Hand tools and their accessories | G133: Chipboard or OSB >75% | H133: ≥0.5 kg and <1 kg | I133: € / unit | J133: 0.07 | K133: 0.07 | L133: =_xlfn.XLOOKUP(K133,'Codes éco-part'!$C$6:$C$923,'Codes éco-part'!$B$6:$B$923) -> 247 | M133: 0.08
A134: DIY and gardening products EPR | B134: 3 | C134: 21100250220 | E134: DIY products | F134: Hand tools and their accessories | G134: Chipboard or OSB >75% | H134: ≥1 kg and <2 kg | I134: € / unit | J134: 0.16 | K134: 0.16 | L134: =_xlfn.XLOOKUP(K134,'Codes éco-part'!$C$6:$C$923,'Codes éco-part'!$B$6:$B$923) -> 099 | M134: 0.19
A135: DIY and gardening products EPR | B135: 3 | C135: 21100250221 | D135: Modulated | E135: DIY products | F135: Hand tools and their accessories | G135: Chipboard or OSB >75% | H135: ≥1 kg and <2 kg | I135: € / unit | J135: 0.14 | K135: 0.14 | L135: =_xlfn.XLOOKUP(K135,'Codes éco-part'!$C$6:$C$923,'Codes éco-part'!$B$6:$B$923) -> 098 | M135: 0.17
A136: DIY and gardening products EPR | B136: 3 | C136: 21100250520 | E136: DIY products | F136: Hand tools and their accessories | G136: Chipboard or OSB >75% | H136: ≥2 kg and <3 kg | I136: € / unit | J136: 0.28 | K136: 0.28 | L136: =_xlfn.XLOOKUP(K136,'Codes éco-part'!$C$6:$C$923,'Codes éco-part'!$B$6:$B$923) -> 542 | M136: 0.34
A137: DIY and gardening products EPR | B137: 3 | C137: 21100250521 | D137: Modulated | E137: DIY products | F137: Hand tools and their accessories | G137: Chipboard or OSB >75% | H137: ≥2 kg and <3 kg | I137: € / unit | J137: 0.25 | K137: 0.25 | L137: =_xlfn.XLOOKUP(K137,'Codes éco-part'!$C$6:$C$923,'Codes éco-part'!$B$6:$B$923) -> 095 | M137: 0.3
A138: DIY and gardening products EPR | B138: 3 | C138: 21100250530 | E138: DIY products | F138: Hand tools and their accessories | G138: Chipboard or OSB >75% | H138: ≥3 kg and <5 kg | I138: € / unit | J138: 0.44 | K138: 0.44 | L138: =_xlfn.XLOOKUP(K138,'Codes éco-part'!$C$6:$C$923,'Codes éco-part'!$B$6:$B$923) -> 281 | M138: 0.53
A139: DIY and gardening products EPR | B139: 3 | C139: 21100250531 | D139: Modulated | E139: DIY products | F139: Hand tools and their accessories | G139: Chipboard or OSB >75% | H139: ≥3 kg and <5 kg | I139: € / unit | J139: 0.4 | K139: 0.4 | L139: =_xlfn.XLOOKUP(K139,'Codes éco-part'!$C$6:$C$923,'Codes éco-part'!$B$6:$B$923) -> 105 | M139: 0.48
A140: DIY and gardening products EPR | B140: 3 | C140: 21100250540 | E140: DIY products | F140: Hand tools and their accessories | G140: Chipboard or OSB >75% | H140: ≥5 kg and <7 kg | I140: € / unit | J140: 0.78 | K140: 0.78 | L140: =_xlfn.XLOOKUP(K140,'Codes éco-part'!$C$6:$C$923,'Codes éco-part'!$B$6:$B$923) -> 312 | M140: 0.94
A141: DIY and gardening products EPR | B141: 3 | C141: 21100250541 | D141: Modulated | E141: DIY products | F141: Hand tools and their accessories | G141: Chipboard or OSB >75% | H141: ≥5 kg and <7 kg | I141: € / unit | J141: 0.7 | K141: 0.7 | L141: =_xlfn.XLOOKUP(K141,'Codes éco-part'!$C$6:$C$923,'Codes éco-part'!$B$6:$B$923) -> 282 | M141: 0.84
A142: DIY and gardening products EPR | B142: 3 | C142: 21100280000 | E142: DIY products | F142: Hand tools and their accessories | G142: Metal >90% | H142: Elements of all sizes and weights | I142: € / ton | J142: 14 | K142: 14 | L142: =_xlfn.XLOOKUP(K142,'Codes éco-part'!$C$6:$C$923,'Codes éco-part'!$B$6:$B$923) -> 532 | M142: 16.8
A143: DIY and gardening products EPR | B143: 3 | C143: 21100280001 | D143: Modulated | E143: DIY products | F143: Hand tools and their accessories | G143: Metal >90% | H143: Elements of all sizes and weights | I143: € / ton | J143: 12.6 | K143: 12.6 | L143: =_xlfn.XLOOKUP(K143,'Codes éco-part'!$C$6:$C$923,'Codes éco-part'!$B$6:$B$923) -> 939 | M143: 15.12
A144: DIY and gardening products EPR | B144: 3 | C144: 21100280200 | E144: DIY products | F144: Hand tools and their accessories | G144: Metal >90% | H144: Strictly <0.5 kg | I144: € / unit | J144: 0.01 | K144: 0.01 | L144: =_xlfn.XLOOKUP(K144,'Codes éco-part'!$C$6:$C$923,'Codes éco-part'!$B$6:$B$923) -> 260 | M144: 0.01
A145: DIY and gardening products EPR | B145: 3 | C145: 21100280201 | D145: Modulated | E145: DIY products | F145: Hand tools and their accessories | G145: Metal >90% | H145: Strictly <0.5 kg | I145: € / unit | J145: 0.01 | K145: 0.01 | L145: =_xlfn.XLOOKUP(K145,'Codes éco-part'!$C$6:$C$923,'Codes éco-part'!$B$6:$B$923) -> 260 | M145: 0.01
A146: DIY and gardening products EPR | B146: 3 | C146: 21100280210 | E146: DIY products | F146: Hand tools and their accessories | G146: Metal >90% | H146: ≥0.5 kg and <1 kg | I146: € / unit | J146: 0.01 | K146: 0.01 | L146: =_xlfn.XLOOKUP(K146,'Codes éco-part'!$C$6:$C$923,'Codes éco-part'!$B$6:$B$923) -> 260 | M146: 0.01
A147: DIY and gardening products EPR | B147: 3 | C147: 21100280211 | D147: Modulated | E147: DIY products | F147: Hand tools and their accessories | G147: Metal >90% | H147: ≥0.5 kg and <1 kg | I147: € / unit | J147: 0.01 | K147: 0.01 | L147: =_xlfn.XLOOKUP(K147,'Codes éco-part'!$C$6:$C$923,'Codes éco-part'!$B$6:$B$923) -> 260 | M147: 0.01
A148: DIY and gardening products EPR | B148: 3 | C148: 21100280220 | E148: DIY products | F148: Hand tools and their accessories | G148: Metal >90% | H148: ≥1 kg and <2 kg | I148: € / unit | J148: 0.02 | K148: 0.02 | L148: =_xlfn.XLOOKUP(K148,'Codes éco-part'!$C$6:$C$923,'Codes éco-part'!$B$6:$B$923) -> 047 | M148: 0.02
A149: DIY and gardening products EPR | B149: 3 | C149: 21100280221 | D149: Modulated | E149: DIY products | F149: Hand tools and their accessories | G149: Metal >90% | H149: ≥1 kg and <2 kg | I149: € / unit | J149: 0.02 | K149: 0.02 | L149: =_xlfn.XLOOKUP(K149,'Codes éco-part'!$C$6:$C$923,'Codes éco-part'!$B$6:$B$923) -> 047 | M149: 0.02
A150: DIY and gardening products EPR | B150: 3 | C150: 21100280520 | E150: DIY products | F150: Hand tools and their accessories | G150: Metal >90% | H150: ≥2 kg and <3 kg | I150: € / unit | J150: 0.04 | K150: 0.04 | L150: =_xlfn.XLOOKUP(K150,'Codes éco-part'!$C$6:$C$923,'Codes éco-part'!$B$6:$B$923) -> 002 | M150: 0.05
A151: DIY and gardening products EPR | B151: 3 | C151: 21100280521 | D151: Modulated | E151: DIY products | F151: Hand tools and their accessories | G151: Metal >90% | H151: ≥2 kg and <3 kg | I151: € / unit | J151: 0.04 | K151: 0.04 | L151: =_xlfn.XLOOKUP(K151,'Codes éco-part'!$C$6:$C$923,'Codes éco-part'!$B$6:$B$923) -> 002 | M151: 0.05
A152: DIY and gardening products EPR | B152: 3 | C152: 21100280530 | E152: DIY products | F152: Hand tools and their accessories | G152: Metal >90% | H152: ≥3 kg and <5 kg | I152: € / unit | J152: 0.06 | K152: 0.06 | L152: =_xlfn.XLOOKUP(K152,'Codes éco-part'!$C$6:$C$923,'Codes éco-part'!$B$6:$B$923) -> 096 | M152: 0.07
A153: DIY and gardening products EPR | B153: 3 | C153: 21100280531 | D153: Modulated | E153: DIY products | F153: Hand tools and their accessories | G153: Metal >90% | H153: ≥3 kg and <5 kg | I153: € / unit | J153: 0.05 | K153: 0.05 | L153: =_xlfn.XLOOKUP(K153,'Codes éco-part'!$C$6:$C$923,'Codes éco-part'!$B$6:$B$923) -> 048 | M153: 0.06
A154: DIY and gardening products EPR | B154: 3 | C154: 21100280540 | E154: DIY products | F154: Hand tools and their accessories | G154: Metal >90% | H154: ≥5 kg and <7 kg | I154: € / unit | J154: 0.1 | K154: 0.1 | L154: =_xlfn.XLOOKUP(K154,'Codes éco-part'!$C$6:$C$923,'Codes éco-part'!$B$6:$B$923) -> 094 | M154: 0.12
A155: DIY and gardening products EPR | B155: 3 | C155: 21100280541 | D155: Modulated | E155: DIY products | F155: Hand tools and their accessories | G155: Metal >90% | H155: ≥5 kg and <7 kg | I155: € / unit | J155: 0.09 | K155: 0.09 | L155: =_xlfn.XLOOKUP(K155,'Codes éco-part'!$C$6:$C$923,'Codes éco-part'!$B$6:$B$923) -> 049 | M155: 0.11
A156: DIY and gardening products EPR | B156: 3 | C156: 21100400000 | E156: DIY products | F156: Hand tools and their accessories | G156: Assembly of synthetic rubber or latex >50% and other materials | H156: Elements of all sizes and weights | I156: € / ton | J156: 322 | K156: 322 | L156: =_xlfn.XLOOKUP(K156,'Codes éco-part'!$C$6:$C$923,'Codes éco-part'!$B$6:$B$923) -> 607 | M156: 386.4
A157: DIY and gardening products EPR | B157: 3 | C157: 21100400001 | D157: Modulated | E157: DIY products | F157: Hand tools and their accessories | G157: Assembly of synthetic rubber or latex >50% and other materials | H157: Elements of all sizes and weights | I157: € / ton | J157: 289.8 | K157: 289.8 | L157: =_xlfn.XLOOKUP(K157,'Codes éco-part'!$C$6:$C$923,'Codes éco-part'!$B$6:$B$923) -> 936 | M157: 347.76
A158: DIY and gardening products EPR | B158: 3 | C158: 21100400200 | E158: DIY products | F158: Hand tools and their accessories | G158: Assembly of synthetic rubber or latex >50% and other materials | H158: Strictly <0.5 kg | I158: € / unit | J158: 0.08 | K158: 0.08 | L158: =_xlfn.XLOOKUP(K158,'Codes éco-part'!$C$6:$C$923,'Codes éco-part'!$B$6:$B$923) -> 003 | M158: 0.1
A159: DIY and gardening products EPR | B159: 3 | C159: 21100400201 | D159: Modulated | E159: DIY products | F159: Hand tools and their accessories | G159: Assembly of synthetic rubber or latex >50% and other materials | H159: Strictly <0.5 kg | I159: € / unit | J159: 0.07 | K159: 0.07 | L159: =_xlfn.XLOOKUP(K159,'Codes éco-part'!$C$6:$C$923,'Codes éco-part'!$B$6:$B$923) -> 247 | M159: 0.08
A160: DIY and gardening products EPR | B160: 3 | C160: 21100400210 | E160: DIY products | F160: Hand tools and their accessories | G160: Assembly of synthetic rubber or latex >50% and other materials | H160: ≥0.5 kg and <1 kg | I160: € / unit | J160: 0.24 | K160: 0.24 | L160: =_xlfn.XLOOKUP(K160,'Codes éco-part'!$C$6:$C$923,'Codes éco-part'!$B$6:$B$923) -> 248 | M160: 0.29
A161: DIY and gardening products EPR | B161: 3 | C161: 21100400211 | D161: Modulated | E161: DIY products | F161: Hand tools and their accessories | G161: Assembly of synthetic rubber or latex >50% and other materials | H161: ≥0.5 kg and <1 kg | I161: € / unit | J161: 0.22 | K161: 0.22 | L161: =_xlfn.XLOOKUP(K161,'Codes éco-part'!$C$6:$C$923,'Codes éco-part'!$B$6:$B$923) -> 263 | M161: 0.26
A162: DIY and gardening products EPR | B162: 3 | C162: 21100400220 | E162: DIY products | F162: Hand tools and their accessories | G162: Assembly of synthetic rubber or latex >50% and other materials | H162: ≥1 kg and <2 kg | I162: € / unit | J162: 0.48 | K162: 0.48 | L162: =_xlfn.XLOOKUP(K162,'Codes éco-part'!$C$6:$C$923,'Codes éco-part'!$B$6:$B$923) -> 606 | M162: 0.58
A163: DIY and gardening products EPR | B163: 3 | C163: 21100400221 | D163: Modulated | E163: DIY products | F163: Hand tools and their accessories | G163: Assembly of synthetic rubber or latex >50% and other materials | H163: ≥1 kg and <2 kg | I163: € / unit | J163: 0.43 | K163: 0.43 | L163: =_xlfn.XLOOKUP(K163,'Codes éco-part'!$C$6:$C$923,'Codes éco-part'!$B$6:$B$923) -> 506 | M163: 0.52
A164: DIY and gardening products EPR | B164: 3 | C164: 21100400520 | E164: DIY products | F164: Hand tools and their accessories | G164: Assembly of synthetic rubber or latex >50% and other materials | H164: ≥2 kg and <3 kg | I164: € / unit | J164: 0.81 | K164: 0.81 | L164: =_xlfn.XLOOKUP(K164,'Codes éco-part'!$C$6:$C$923,'Codes éco-part'!$B$6:$B$923) -> 112 | M164: 0.97
A165: DIY and gardening products EPR | B165: 3 | C165: 21100400521 | D165: Modulated | E165: DIY products | F165: Hand tools and their accessories | G165: Assembly of synthetic rubber or latex >50% and other materials | H165: ≥2 kg and <3 kg | I165: € / unit | J165: 0.73 | K165: 0.73 | L165: =_xlfn.XLOOKUP(K165,'Codes éco-part'!$C$6:$C$923,'Codes éco-part'!$B$6:$B$923) -> 255 | M165: 0.88
A166: DIY and gardening products EPR | B166: 3 | C166: 21100400530 | E166: DIY products | F166: Hand tools and their accessories | G166: Assembly of synthetic rubber or latex >50% and other materials | H166: ≥3 kg and <5 kg | I166: € / unit | J166: 1.29 | K166: 1.29 | L166: =_xlfn.XLOOKUP(K166,'Codes éco-part'!$C$6:$C$923,'Codes éco-part'!$B$6:$B$923) -> 608 | M166: 1.55
A167: DIY and gardening products EPR | B167: 3 | C167: 21100400531 | D167: Modulated | E167: DIY products | F167: Hand tools and their accessories | G167: Assembly of synthetic rubber or latex >50% and other materials | H167: ≥3 kg and <5 kg | I167: € / unit | J167: 1.16 | K167: 1.16 | L167: =_xlfn.XLOOKUP(K167,'Codes éco-part'!$C$6:$C$923,'Codes éco-part'!$B$6:$B$923) -> 504 | M167: 1.39
A168: DIY and gardening products EPR | B168: 3 | C168: 21100400540 | E168: DIY products | F168: Hand tools and their accessories | G168: Assembly of synthetic rubber or latex >50% and other materials | H168: ≥5 kg and <7 kg | I168: € / unit | J168: 2.25 | K168: 2.25 | L168: =_xlfn.XLOOKUP(K168,'Codes éco-part'!$C$6:$C$923,'Codes éco-part'!$B$6:$B$923) -> 118 | M168: 2.7
A169: DIY and gardening products EPR | B169: 3 | C169: 21100400541 | D169: Modulated | E169: DIY products | F169: Hand tools and their accessories | G169: Assembly of synthetic rubber or latex >50% and other materials | H169: ≥5 kg and <7 kg | I169: € / unit | J169: 2.03 | K169: 2.03 | L169: =_xlfn.XLOOKUP(K169,'Codes éco-part'!$C$6:$C$923,'Codes éco-part'!$B$6:$B$923) -> 937 | M169: 2.44
A170: DIY and gardening products EPR | B170: 3 | C170: 21100410000 | E170: DIY products | F170: Hand tools and their accessories | G170: Plastic (single-resin) >90% | H170: Elements of all sizes and weights | I170: € / ton | J170: 200 | K170: 200 | L170: =_xlfn.XLOOKUP(K170,'Codes éco-part'!$C$6:$C$923,'Codes éco-part'!$B$6:$B$923) -> 601 | M170: 240
A171: DIY and gardening products EPR | B171: 3 | C171: 21100410001 | D171: Modulated | E171: DIY products | F171: Hand tools and their accessories | G171: Plastic (single-resin) >90% | H171: Elements of all sizes and weights | I171: € / ton | J171: 180 | K171: 180 | L171: =_xlfn.XLOOKUP(K171,'Codes éco-part'!$C$6:$C$923,'Codes éco-part'!$B$6:$B$923) -> 941 | M171: 216
A172: DIY and gardening products EPR | B172: 3 | C172: 21100410200 | E172: DIY products | F172: Hand tools and their accessories | G172: Plastic (single-resin) >90% | H172: Strictly <0.5 kg | I172: € / unit | J172: 0.05 | K172: 0.05 | L172: =_xlfn.XLOOKUP(K172,'Codes éco-part'!$C$6:$C$923,'Codes éco-part'!$B$6:$B$923) -> 048 | M172: 0.06
A173: DIY and gardening products EPR | B173: 3 | C173: 21100410201 | D173: Modulated | E173: DIY products | F173: Hand tools and their accessories | G173: Plastic (single-resin) >90% | H173: Strictly <0.5 kg | I173: € / unit | J173: 0.05 | K173: 0.05 | L173: =_xlfn.XLOOKUP(K173,'Codes éco-part'!$C$6:$C$923,'Codes éco-part'!$B$6:$B$923) -> 048 | M173: 0.06
A174: DIY and gardening products EPR | B174: 3 | C174: 21100410210 | E174: DIY products | F174: Hand tools and their accessories | G174: Plastic (single-resin) >90% | H174: ≥0.5 kg and <1 kg | I174: € / unit | J174: 0.15 | K174: 0.15 | L174: =_xlfn.XLOOKUP(K174,'Codes éco-part'!$C$6:$C$923,'Codes éco-part'!$B$6:$B$923) -> 050 | M174: 0.18
A175: DIY and gardening products EPR | B175: 3 | C175: 21100410211 | D175: Modulated | E175: DIY products | F175: Hand tools and their accessories | G175: Plastic (single-resin) >90% | H175: ≥0.5 kg and <1 kg | I175: € / unit | J175: 0.14 | K175: 0.14 | L175: =_xlfn.XLOOKUP(K175,'Codes éco-part'!$C$6:$C$923,'Codes éco-part'!$B$6:$B$923) -> 098 | M175: 0.17
A176: DIY and gardening products EPR | B176: 3 | C176: 21100410220 | E176: DIY products | F176: Hand tools and their accessories | G176: Plastic (single-resin) >90% | H176: ≥1 kg and <2 kg | I176: € / unit | J176: 0.3 | K176: 0.3 | L176: =_xlfn.XLOOKUP(K176,'Codes éco-part'!$C$6:$C$923,'Codes éco-part'!$B$6:$B$923) -> 446 | M176: 0.36
A177: DIY and gardening products EPR | B177: 3 | C177: 21100410221 | D177: Modulated | E177: DIY products | F177: Hand tools and their accessories | G177: Plastic (single-resin) >90% | H177: ≥1 kg and <2 kg | I177: € / unit | J177: 0.27 | K177: 0.27 | L177: =_xlfn.XLOOKUP(K177,'Codes éco-part'!$C$6:$C$923,'Codes éco-part'!$B$6:$B$923) -> 103 | M177: 0.32
A178: DIY and gardening products EPR | B178: 3 | C178: 21100410520 | E178: DIY products | F178: Hand tools and their accessories | G178: Plastic (single-resin) >90% | H178: ≥2 kg and <3 kg | I178: € / unit | J178: 0.5 | K178: 0.5 | L178: =_xlfn.XLOOKUP(K178,'Codes éco-part'!$C$6:$C$923,'Codes éco-part'!$B$6:$B$923) -> 053 | M178: 0.6
A179: DIY and gardening products EPR | B179: 3 | C179: 21100410521 | D179: Modulated | E179: DIY products | F179: Hand tools and their accessories | G179: Plastic (single-resin) >90% | H179: ≥2 kg and <3 kg | I179: € / unit | J179: 0.45 | K179: 0.45 | L179: =_xlfn.XLOOKUP(K179,'Codes éco-part'!$C$6:$C$923,'Codes éco-part'!$B$6:$B$923) -> 325 | M179: 0.54
A180: DIY and gardening products EPR | B180: 3 | C180: 21100410530 | E180: DIY products | F180: Hand tools and their accessories | G180: Plastic (single-resin) >90% | H180: ≥3 kg and <5 kg | I180: € / unit | J180: 0.8 | K180: 0.8 | L180: =_xlfn.XLOOKUP(K180,'Codes éco-part'!$C$6:$C$923,'Codes éco-part'!$B$6:$B$923) -> 456 | M180: 0.96
A181: DIY and gardening products EPR | B181: 3 | C181: 21100410531 | D181: Modulated | E181: DIY products | F181: Hand tools and their accessories | G181: Plastic (single-resin) >90% | H181: ≥3 kg and <5 kg | I181: € / unit | J181: 0.72 | K181: 0.72 | L181: =_xlfn.XLOOKUP(K181,'Codes éco-part'!$C$6:$C$923,'Codes éco-part'!$B$6:$B$923) -> 454 | M181: 0.86
A182: DIY and gardening products EPR | B182: 3 | C182: 21100410540 | E182: DIY products | F182: Hand tools and their accessories | G182: Plastic (single-resin) >90% | H182: ≥5 kg and <7 kg | I182: € / unit | J182: 1.4 | K182: 1.4 | L182: =_xlfn.XLOOKUP(K182,'Codes éco-part'!$C$6:$C$923,'Codes éco-part'!$B$6:$B$923) -> 463 | M182: 1.68
A183: DIY and gardening products EPR | B183: 3 | C183: 21100410541 | D183: Modulated | E183: DIY products | F183: Hand tools and their accessories | G183: Plastic (single-resin) >90% | H183: ≥5 kg and <7 kg | I183: € / unit | J183: 1.26 | K183: 1.26 | L183: =_xlfn.XLOOKUP(K183,'Codes éco-part'!$C$6:$C$923,'Codes éco-part'!$B$6:$B$923) -> 568 | M183: 1.51
A184: DIY and gardening products EPR | B184: 3 | C184: 21100420000 | E184: DIY products | F184: Hand tools and their accessories | G184: Polyethylene terephthalate (PET) >90% | H184: Elements of all sizes and weights | I184: € / ton | J184: 200 | K184: 200 | L184: =_xlfn.XLOOKUP(K184,'Codes éco-part'!$C$6:$C$923,'Codes éco-part'!$B$6:$B$923) -> 601 | M184: 240
A185: DIY and gardening products EPR | B185: 3 | C185: 21100420001 | D185: Modulated | E185: DIY products | F185: Hand tools and their accessories | G185: Polyethylene terephthalate (PET) >90% | H185: Elements of all sizes and weights | I185: € / ton | J185: 180 | K185: 180 | L185: =_xlfn.XLOOKUP(K185,'Codes éco-part'!$C$6:$C$923,'Codes éco-part'!$B$6:$B$923) -> 941 | M185: 216
A186: DIY and gardening products EPR | B186: 3 | C186: 21100420200 | E186: DIY products | F186: Hand tools and their accessories | G186: Polyethylene terephthalate (PET) >90% | H186: Strictly <0.5 kg | I186: € / unit | J186: 0.05 | K186: 0.05 | L186: =_xlfn.XLOOKUP(K186,'Codes éco-part'!$C$6:$C$923,'Codes éco-part'!$B$6:$B$923) -> 048 | M186: 0.06
A187: DIY and gardening products EPR | B187: 3 | C187: 21100420201 | D187: Modulated | E187: DIY products | F187: Hand tools and their accessories | G187: Polyethylene terephthalate (PET) >90% | H187: Strictly <0.5 kg | I187: € / unit | J187: 0.05 | K187: 0.05 | L187: =_xlfn.XLOOKUP(K187,'Codes éco-part'!$C$6:$C$923,'Codes éco-part'!$B$6:$B$923) -> 048 | M187: 0.06
A188: DIY and gardening products EPR | B188: 3 | C188: 21100420210 | E188: DIY products | F188: Hand tools and their accessories | G188: Polyethylene terephthalate (PET) >90% | H188: ≥0.5 kg and <1 kg | I188: € / unit | J188: 0.15 | K188: 0.15 | L188: =_xlfn.XLOOKUP(K188,'Codes éco-part'!$C$6:$C$923,'Codes éco-part'!$B$6:$B$923) -> 050 | M188: 0.18
A189: DIY and gardening products EPR | B189: 3 | C189: 21100420211 | D189: Modulated | E189: DIY products | F189: Hand tools and their accessories | G189: Polyethylene terephthalate (PET) >90% | H189: ≥0.5 kg and <1 kg | I189: € / unit | J189: 0.14 | K189: 0.14 | L189: =_xlfn.XLOOKUP(K189,'Codes éco-part'!$C$6:$C$923,'Codes éco-part'!$B$6:$B$923) -> 098 | M189: 0.17
A190: DIY and gardening products EPR | B190: 3 | C190: 21100420220 | E190: DIY products | F190: Hand tools and their accessories | G190: Polyethylene terephthalate (PET) >90% | H190: ≥1 kg and <2 kg | I190: € / unit | J190: 0.3 | K190: 0.3 | L190: =_xlfn.XLOOKUP(K190,'Codes éco-part'!$C$6:$C$923,'Codes éco-part'!$B$6:$B$923) -> 446 | M190: 0.36
A191: DIY and gardening products EPR | B191: 3 | C191: 21100420221 | D191: Modulated | E191: DIY products | F191: Hand tools and their accessories | G191: Polyethylene terephthalate (PET) >90% | H191: ≥1 kg and <2 kg | I191: € / unit | J191: 0.27 | K191: 0.27 | L191: =_xlfn.XLOOKUP(K191,'Codes éco-part'!$C$6:$C$923,'Codes éco-part'!$B$6:$B$923) -> 103 | M191: 0.32
A192: DIY and gardening products EPR | B192: 3 | C192: 21100420520 | E192: DIY products | F192: Hand tools and their accessories | G192: Polyethylene terephthalate (PET) >90% | H192: ≥2 kg and <3 kg | I192: € / unit | J192: 0.5 | K192: 0.5 | L192: =_xlfn.XLOOKUP(K192,'Codes éco-part'!$C$6:$C$923,'Codes éco-part'!$B$6:$B$923) -> 053 | M192: 0.6
A193: DIY and gardening products EPR | B193: 3 | C193: 21100420521 | D193: Modulated | E193: DIY products | F193: Hand tools and their accessories | G193: Polyethylene terephthalate (PET) >90% | H193: ≥2 kg and <3 kg | I193: € / unit | J193: 0.45 | K193: 0.45 | L193: =_xlfn.XLOOKUP(K193,'Codes éco-part'!$C$6:$C$923,'Codes éco-part'!$B$6:$B$923) -> 325 | M193: 0.54
A194: DIY and gardening products EPR | B194: 3 | C194: 21100420530 | E194: DIY products | F194: Hand tools and their accessories | G194: Polyethylene terephthalate (PET) >90% | H194: ≥3 kg and <5 kg | I194: € / unit | J194: 0.8 | K194: 0.8 | L194: =_xlfn.XLOOKUP(K194,'Codes éco-part'!$C$6:$C$923,'Codes éco-part'!$B$6:$B$923) -> 456 | M194: =ROUND(K194*1.2,2) -> 0.96
A195: DIY and gardening products EPR | B195: 3 | C195: 21100420531 | D195: Modulated | E195: DIY products | F195: Hand tools and their accessories | G195: Polyethylene terephthalate (PET) >90% | H195: ≥3 kg and <5 kg | I195: € / unit | J195: 0.72 | K195: 0.72 | L195: =_xlfn.XLOOKUP(K195,'Codes éco-part'!$C$6:$C$923,'Codes éco-part'!$B$6:$B$923) -> 454 | M195: 0.86
A196: DIY and gardening products EPR | B196: 3 | C196: 21100420540 | E196: DIY products | F196: Hand tools and their accessories | G196: Polyethylene terephthalate (PET) >90% | H196: ≥5 kg and <7 kg | I196: € / unit | J196: 1.4 | K196: 1.4 | L196: =_xlfn.XLOOKUP(K196,'Codes éco-part'!$C$6:$C$923,'Codes éco-part'!$B$6:$B$923) -> 463 | M196: 1.68
A197: DIY and gardening products EPR | B197: 3 | C197: 21100420541 | D197: Modulated | E197: DIY products | F197: Hand tools and their accessories | G197: Polyethylene terephthalate (PET) >90% | H197: ≥5 kg and <7 kg | I197: € / unit | J197: 1.26 | K197: 1.26 | L197: =_xlfn.XLOOKUP(K197,'Codes éco-part'!$C$6:$C$923,'Codes éco-part'!$B$6:$B$923) -> 568 | M197: 1.51
A198: DIY and gardening products EPR | B198: 3 | C198: 21100450000 | E198: DIY products | F198: Hand tools and their accessories | G198: PE or PP or PP/PE mix >90% | H198: Elements of all sizes and weights | I198: € / ton | J198: 200 | K198: 200 | L198: =_xlfn.XLOOKUP(K198,'Codes éco-part'!$C$6:$C$923,'Codes éco-part'!$B$6:$B$923) -> 601 | M198: 240
A199: DIY and gardening products EPR | B199: 3 | C199: 21100450001 | D199: Modulated | E199: DIY products | F199: Hand tools and their accessories | G199: PE or PP or PP/PE mix >90% | H199: Elements of all sizes and weights | I199: € / ton | J199: 180 | K199: 180 | L199: =_xlfn.XLOOKUP(K199,'Codes éco-part'!$C$6:$C$923,'Codes éco-part'!$B$6:$B$923) -> 941 | M199: 216
A200: DIY and gardening products EPR | B200: 3 | C200: 21100450200 | E200: DIY products | F200: Hand tools and their accessories | G200: PE or PP or PP/PE mix >90% | H200: Strictly <0.5 kg | I200: € / unit | J200: 0.05 | K200: 0.05 | L200: =_xlfn.XLOOKUP(K200,'Codes éco-part'!$C$6:$C$923,'Codes éco-part'!$B$6:$B$923) -> 048 | M200: 0.06
... 4300 more rows

Sheet Eco-fee overview tables
A1: Eco-fee in Euro / ton cost | B1: Single-material (90%) | D1: Primary material (>50%) | F1: Single-material (90%) | H1: Primary material (>50%) | I1: Mixed materials / Other assembly of more than 3 materials with no primary material (excl. column E) or composite materials or unspecified materials
B2: Inert materials, excl. ceramics | C2: Ceramic | D2: Metal | E2: Certified wood or mixed wood/metal | F2: Non-synthetic textiles or biosourced materials (cardboard, paper, linen, hemp, etc.) | G2: Synthetic textiles, polymers, or single-resin plastics | H2: Synthetic textiles or plastics
A4: Cat. 3 – DIY
A5: 1. Hand tools and their accessories | B5: 8.75 | C5: - | D5: 14 | E5: 55 | F5: 65 | G5: 200 | H5: 322 | I5: 322
A6: 2. Large non-electric, non-combustion items and machinery, and their accessories | B6: 8.75 | C6: 12 | D6: 4.5 | E6: 13 | F6: 40 | G6: 60 | H6: 90 | I6: 90
A7: 3. Tools and supports for working at height | B7: 8.75 | C7: 12 | D7: 4.5 | E7: 13 | F7: 40 | G7: 60 | H7: 90 | I7: 90
A8: 4. Personal protection equipment and accessories for DIY | B8: 8.75 | C8: - | D8: 14 | E8: 55 | F8: 65 | G8: 200 | H8: 322 | I8: 322
A9: 5. Tarpaulins for DIY | B9: - | C9: - | D9: - | E9: - | F9: 65 | G9: 200 | H9: 322 | I9: 322
A10: 6. Buckets, troughs, and containers | B10: 8.75 | C10: 15 | D10: 14 | E10: 26 | F10: 65 | G10: 160 | H10: 250 | I10: 250
A12: Cat. 4 – Garden upkeep and landscaping
A13: 7. Garden upkeep hand tools | B13: 8.75 | C13: - | D13: 14 | E13: 55 | F13: 65 | G13: 200 | H13: 322 | I13: 322
A14: 8. Personal protection equipment for gardening | B14: 8.75 | C14: - | D14: 14 | E14: 55 | F14: 65 | G14: 200 | H14: 322 | I14: 322
A15: 9. Flower pots and containers | B15: 8.75 | C15: 15 | D15: 14 | E15: 26 | F15: 65 | G15: 160 | H15: 250 | I15: 250
A16: 10. Tarpaulins, covers, films, and nets | B16: - | C16: - | D16: - | E16: - | F16: 65 | G16: 200 | H16: 322 | I16: 322
A17: 11. Outdoor equipment | B17: 8.75 | C17: 12 | D17: 4.5 | E17: 13 | F17: 40 | G17: 60 | H17: 90 | I17: 90
A18: 12. Non-masonry outdoor structures | B18: 8.75 | C18: 12 | D18: 4.5 | E18: 13 | F18: 40 | G18: 60 | H18: 90 | I18: 90
A20: Alternative pricing scale per weight bracket
A23: Large items, supports for working at height, outdoor equipment, and outdoor structures | B23: Single-material (90%) | D23: Primary material (>50%) | F23: Single-material (90%) | H23: Primary material (>50%) | I23: Mixed materials / Other assembly of more than 3 materials with no primary material (excl. column E) or composite materials or unspecified materials
B24: Inert materials, excl. ceramics | C24: Ceramic | D24: Metal | E24: Certified wood or mixed wood/metal | F24: Non-synthetic textiles or biosourced materials (cardboard, paper, linen, hemp, etc.) | G24: Synthetic textiles, polymers, or single-resin plastics | H24: Synthetic textiles or plastics
A25: strictly <0.5 kg | B25: 0.01 | C25: 0.01 | D25: 0.01 | E25: 0.01 | F25: 0.01 | G25: 0.02 | H25: 0.02 | I25: 0.02
A26: ≥0.5 kg and <1 kg | B26: 0.01 | C26: 0.01 | D26: 0.01 | E26: 0.01 | F26: 0.03 | G26: 0.05 | H26: 0.07 | I26: 0.07
A27: ≥1 kg and <2 kg | B27: 0.01 | C27: 0.02 | D27: 0.01 | E27: 0.02 | F27: 0.06 | G27: 0.09 | H27: 0.14 | I27: 0.14
A28: ≥2 kg and <3 kg | B28: 0.02 | C28: 0.03 | D28: 0.01 | E28: 0.03 | F28: 0.1 | G28: 0.15 | H28: 0.23 | I28: 0.23
A29: ≥3 kg and <5 kg | B29: 0.04 | C29: 0.05 | D29: 0.02 | E29: 0.05 | F29: 0.16 | G29: 0.24 | H29: 0.36 | I29: 0.36
A30: ≥5 kg and <7 kg | B30: 0.06 | C30: 0.08 | D30: 0.03 | E30: 0.09 | F30: 0.28 | G30: 0.42 | H30: 0.63 | I30: 0.63
A31: ≥7 kg and <10 kg | B31: 0.09 | C31: 0.12 | D31: 0.05 | E31: 0.13 | F31: 0.4 | G31: 0.6 | H31: 0.9 | I31: 0.9
A32: ≥10 kg and <15 kg | B32: 0.13 | C32: 0.18 | D32: 0.07 | E32: 0.2 | F32: 0.6 | G32: 0.9 | H32: 1.35 | I32: 1.35
A33: ≥15 kg and <20 kg | B33: 0.18 | C33: 0.24 | D33: 0.09 | E33: 0.26 | F33: 0.8 | G33: 1.2 | H33: 1.8 | I33: 1.8
A34: ≥20 kg and <25 kg | B34: 0.22 | C34: 0.3 | D34: 0.11 | E34: 0.33 | F34: 1 | G34: 1.5 | H34: 2.25 | I34: 2.25
A35: ≥25 kg and <30 kg | B35: 0.26 | C35: 0.36 | D35: 0.14 | E35: 0.39 | F35: 1.2 | G35: 1.8 | H35: 2.7 | I35: 2.7
A36: ≥30 kg and <40 kg | B36: 0.35 | C36: 0.48 | D36: 0.18 | E36: 0.52 | F36: 1.6 | G36: 2.4 | H36: 3.6 | I36: 3.6
A37: ≥40 kg and <50 kg | B37: 0.44 | C37: 0.6 | D37: 0.23 | E37: 0.65 | F37: 2 | G37: 3 | H37: 4.5 | I37: 4.5
A40: Protection equipment, tarpaulins, and tools | B40: Single-material (90%) | D40: Primary material (>50%) | F40: Single-material (90%) | H40: Primary material (>50%) | I40: Mixed materials / Other assembly of more than 3 materials with no primary material (excl. column E) or composite materials or unspecified materials
B41: Inert materials, excl. ceramics | C41: Ceramic | D41: Metal | E41: Certified wood or mixed wood/metal | F41: Non-synthetic textiles or biosourced materials (cardboard, paper, linen, hemp, etc.) | G41: Synthetic textiles, polymers, or single-resin plastics | H41: Synthetic textiles or plastics
A42: strictly <0.5 kg | B42: 0.01 | C42: - | D42: 0.01 | E42: 0.01 | F42: 0.02 | G42: 0.05 | H42: 0.08 | I42: 0.08
A43: ≥0.5 kg and <1 kg | B43: 0.01 | C43: - | D43: 0.01 | E43: 0.04 | F43: 0.05 | G43: 0.15 | H43: 0.24 | I43: 0.24
A44: ≥1 kg and <2 kg | B44: 0.01 | C44: - | D44: 0.02 | E44: 0.08 | F44: 0.1 | G44: 0.3 | H44: 0.48 | I44: 0.48
A45: ≥2 kg and <3 kg | B45: 0.02 | C45: - | D45: 0.04 | E45: 0.14 | F45: 0.16 | G45: 0.5 | H45: 0.81 | I45: 0.81
A46: ≥3 kg and <5 kg | B46: 0.04 | C46: - | D46: 0.06 | E46: 0.22 | F46: 0.26 | G46: 0.8 | H46: 1.29 | I46: 1.29
A47: ≥5 kg and <7 kg | B47: 0.06 | C47: - | D47: 0.1 | E47: 0.39 | F47: 0.46 | G47: 1.4 | H47: 2.25 | I47: 2.25
A50: Flower pots and containers | B50: Single-material (90%) | D50: Primary material (>50%) | F50: Single-material (90%) | H50: Primary material (>50%) | I50: Mixed materials / Other assembly of more than 3 materials with no primary material (excl. column E) or composite materials or unspecified materials
B51: Inert materials, excl. ceramics | C51: Ceramic | D51: Metal | E51: Certified wood or mixed wood/metal | F51: Non-synthetic textiles or biosourced materials (cardboard, paper, linen, hemp, etc.) | G51: Synthetic textiles, polymers, or single-resin plastics | H51: Synthetic textiles or plastics
A52: strictly <0.5 kg | B52: 0.01 | C52: 0.01 | D52: 0.01 | E52: 0.01 | F52: 0.02 | G52: 0.04 | H52: 0.06 | I52: 0.06
A53: ≥0.5 kg and <1 kg | B53: 0.01 | C53: 0.01 | D53: 0.01 | E53: 0.02 | F53: 0.05 | G53: 0.12 | H53: 0.19 | I53: 0.19
A54: ≥1 kg and <2 kg | B54: 0.01 | C54: 0.02 | D54: 0.02 | E54: 0.04 | F54: 0.1 | G54: 0.24 | H54: 0.38 | I54: 0.38
A55: ≥2 kg and <3 kg | B55: 0.02 | C55: 0.04 | D55: 0.04 | E55: 0.07 | F55: 0.16 | G55: 0.4 | H55: 0.63 | I55: 0.63
A56: ≥3 kg and <5 kg | B56: 0.04 | C56: 0.06 | D56: 0.06 | E56: 0.1 | F56: 0.26 | G56: 0.64 | H56: 1 | I56: 1
A57: ≥5 kg and <7 kg | B57: 0.06 | C57: 0.11 | D57: 0.1 | E57: 0.18 | F57: 0.46 | G57: 1.12 | H57: 1.75 | I57: 1.75
A58: ≥7 kg and <10 kg | B58: 0.09 | C58: 0.15 | D58: 0.14 | E58: 0.26 | F58: 0.65 | G58: 1.6 | H58: 2.5 | I58: 2.5
A59: ≥10 kg and <15 kg | B59: 0.13 | C59: 0.23 | D59: 0.21 | E59: 0.39 | F59: 0.98 | G59: 2.4 | H59: 3.75 | I59: 3.75
A60: ≥15 kg and <20 kg | B60: 0.18 | C60: 0.3 | D60: 0.28 | E60: 0.52 | F60: 1.3 | G60: 3.2 | H60: 5 | I60: 5
A63: Simplified codification
A65: Eco-fee per unit | B65: Price per unit | C65: Corresponding code
A68: Cat. 3 – DIY
A69: 1. Hand tools and their accessories | B69: 0.24 | C69: 21100000890
A70: 2. Large non-electric, non-combustion items and machinery, and their accessories | B70: 1.58 | C70: 21101000890
A71: 3. Tools and supports for working at height | B71: 1.13 | C71: 21102000890
A72: 4. Personal protection equipment and accessories for DIY | B72: 0.08 | C72: 21103000890
A73: 5. Tarpaulins for DIY | B73: 1.29 | C73: 21104000890
A74: 6. Buckets, troughs, and containers | B74: 0.06 | C74: 21105000890
A76: Cat. 4 – Garden upkeep and landscaping
A77: 7. Garden upkeep hand tools | B77: 0.48 | C77: 22150000890
A78: 8. Personal protection equipment for gardening | B78: 0.48 | C78: 22151000890
A79: 9. Flower pots and containers | B79: 0.63 | C79: 22152000890
A80: 10. Tarpaulins, covers, films, and nets | B80: 0.48 | C80: 22153000890
A81: 11. Outdoor equipment | B81: 0.77 | C81: 22154000890
A82: 12. Non-masonry outdoor structures | B82: 1.13 | C82: 22155000890

Sheet Small Producer codes
A1: Simplified codification for small producers
A3: Eco-participation per unit | B3: Amount per unit | C3: Code
A6: Cat. 3 – DIY
A7: 1. Hand tools and their accessories | B7: 0.24 | C7: 21100000890
A8: 2. Large non-electric, non-combustion items and machinery, and their accessories | B8: 1.58 | C8: 21101000890
A9: 3. Tools and supports for working at height | B9: 1.13 | C9: 21102000890
A10: 4. Personal protection equipment and accessories for DIY | B10: 0.08 | C10: 21103000890
A11: 5. Tarpaulins for DIY | B11: 1.29 | C11: 21104000890
A12: 6. Buckets, troughs, and containers | B12: 0.06 | C12: 21105000890
A14: Cat. 4 – Garden upkeep and landscaping
A15: 7. Garden upkeep hand tools | B15: 0.48 | C15: 22150000890
A16: 8. Personal protection equipment for gardening | B16: 0.48 | C16: 22151000890
A17: 9. Flower pots and containers | B17: 0.63 | C17: 22152000890
A18: 10. Tarpaulins, covers, films, and nets | B18: 0.48 | C18: 22153000890
A19: 11. Outdoor equipment | B19: 0.77 | C19: 22154000890
A20: 12. Non-masonry outdoor structures | B20: 1.13 | C20: 22155000890
